Workbook

Sheet KORADO
C2: =logic!P4 -> Temperatura: | D2: =logic!$N$64 -> Celsius | H2: =logic!R4 -> Wybór detaliczny
C3: t 1 | D3: t 2 | E3: t i | F3: D T | J3: =logic!O4&" "&logic!M4 -> Wydajność cieplna od | L3: =logic!C45& " "&logic!N4 -> W do | N3: =logic!C45 -> W
C4: 75 | D4: 65 | E4: 20 | F4: =(C4+D4)/2-E4 -> 50 | J4: =logic!K4&" "&logic!M4 -> Wysokość od | K4: =logic!B24 -> wszystko | L4: =logic!$O$64&" "&logic!$N$4 -> mm do | M4: =logic!B34 -> wszystko | N4: =logic!$O$64 -> mm
C5: =logic!J4 -> Wydajność cieplna wedlug EN 442 | J5: =logic!L4&" "&logic!M4 -> Długość od | K5: =logic!B4 -> wszystko | L5: =logic!$O$64&" "&logic!$N$4 -> mm do | M5: =logic!B14 -> wszystko | N5: =logic!$O$64 -> mm
C6: =IF(OR(C4<7,D4<6,C4>110,D4>110,C4<=D4,F4<=0,E4<4,E4>40.5),logic!Q4,0) -> 0
C7: =logic!$AB$4 -> Wykonanie | E7: =logic!$AC$4 -> Wykończenie powierzchni | H7: =logic!U4 -> Sposób podłączenia
C8: =logic!B98 -> LINEAR | E8: =logic!B104 -> FARBA | H8: =lblZpusobPripojeni -> dolne z dołu w dół | P8: =logic!L24 -> Liczba zapisów w wykazie: | Q8: =MAX(Databáze!A:A) -> 0
D12: =IF(AND($K$4=logic!$I$4,$M$4=logic!$I$4),1,IF(D15=$K$4,1,0)) -> 1 | E12: =IF(AND($K$4=logic!$I$4,$M$4=logic!$I$4),1,IF(AND(E15>=$K$4,E15<=$M$4),1,0)) -> 1 | F12: =IF(AND($K$4=logic!$I$4,$M$4=logic!$I$4),1,IF(AND(F15>=$K$4,F15<=$M$4),1,0)) -> 1 | G12: =IF(AND($K$4=logic!$I$4,$M$4=logic!$I$4),1,IF(AND(G15>=$K$4,G15<=$M$4),1,0)) -> 1 | H12: =IF(AND($K$4=logic!$I$4,$M$4=logic!$I$4),1,IF(AND(H15>=$K$4,H15<=$M$4),1,0)) -> 1 | I12: =IF(logic!$A$50=2,0,IF(AND($K$4=logic!$I$4,$M$4=logic!$I$4),1,IF(I15=$K$4,1,0))) -> 1 | J12: =IF(logic!$A$50=2,0,IF(AND($K$4=logic!$I$4,$M$4=logic!$I$4),1,IF(AND(E15>=$K$4,E15<=$M$4),1,0))) -> 1 | K12: =IF(logic!$A$50=2,0,IF(AND($K$4=logic!$I$4,$M$4=logic!$I$4),1,IF(AND(F15>=$K$4,F15<=$M$4),1,0))) -> 1 | L12: =IF(logic!$A$50=2,0,IF(AND($K$4=logic!$I$4,$M$4=logic!$I$4),1,IF(AND(G15>=$K$4,G15<=$M$4),1,0))) -> 1 | M12: =IF(logic!$A$50=2,0,IF(AND($K$4=logic!$I$4,$M$4=logic!$I$4),1,IF(AND(H15>=$K$4,H15<=$M$4),1,0))) -> 1
D13: KORALUX LINEAR MAX | I13: KORALUX LINEAR MAX - M | T13: KORALUX LINEAR MAX | Y13: KORALUX LINEAR MAX - M
C14: =logic!$L$4 -> Długość | D14: =logic!$K$4&" H ["&logic!$O$64&"]" -> Wysokość H [mm] | I14: =logic!$K$4&" H ["&logic!$O$64&"]" -> Wysokość H [mm] | N14: =logic!$L$4 -> Długość | S14: =logic!$L$4 -> Długość | T14: =logic!$K$4&" H [mm]" -> Wysokość H [mm] | Y14: =logic!$K$4&" H [mm]" -> Wysokość H [mm] | AD14: =logic!$L$4 -> Długość
C15: ="L ["&logic!$O$64&"]" -> L [mm] | D15: =IF(logic!$K$64=2,výkony!C16/logic!$M$64,výkony!C16) -> 700 | E15: =IF(logic!$K$64=2,výkony!D16/logic!$M$64,výkony!D16) -> 900 | F15: =IF(logic!$K$64=2,výkony!E16/logic!$M$64,výkony!E16) -> 1220 | G15: =IF(logic!$K$64=2,výkony!F16/logic!$M$64,výkony!F16) -> 1500 | H15: =IF(logic!$K$64=2,výkony!G16/logic!$M$64,výkony!G16) -> 1820 | I15: =IF(logic!$K$64=2,výkony!H16/logic!$M$64,výkony!H16) -> 700 | J15: =IF(logic!$K$64=2,výkony!I16/logic!$M$64,výkony!I16) -> 900 | K15: =IF(logic!$K$64=2,výkony!J16/logic!$M$64,výkony!J16) -> 1220 | L15: =IF(logic!$K$64=2,výkony!K16/logic!$M$64,výkony!K16) -> 1500 | M15: =IF(logic!$K$64=2,výkony!L16/logic!$M$64,výkony!L16) -> 1820 | N15: ="L ["&logic!$O$64&"]" -> L [mm] | S15: L [mm] | T15: 700 | U15: 900 | V15: 1220 | W15: 1500 | X15: 1820 | Y15: 700 | Z15: 900 | AA15: 1220 | AB15: 1500 | AC15: 1820 | AD15: L [mm]
B16: =IF(AND($K$5=logic!$I$4,$M$5=logic!$I$4),1,IF(AND(C16>=$K$5,C16<=$M$5),1,0)) -> 1 | C16: =IF(logic!$K$64=2,výkony!B17/logic!$M$64,výkony!B17) -> 450 | D16: =IF(OR(D$12=0,$B16=0),0,IF(výkony!$D$8<0.7,IF(logic!$A$50=1,výkony!C17,výkony!P17),IF(logic!$A$50=1,výkony!AD17,výkony!AI17))) -> 320 | E16: =IF(OR(E$12=0,$B16=0),0,IF(výkony!$D$8<0.7,IF(logic!$A$50=1,výkony!D17,výkony!Q17),IF(logic!$A$50=1,výkony!AE17,výkony!AJ17))) -> 411 | F16: =IF(OR(F$12=0,$B16=0),0,IF(výkony!$D$8<0.7,IF(logic!$A$50=1,výkony!E17,výkony!R17),IF(logic!$A$50=1,výkony!AF17,výkony!AK17))) -> 557 | G16: =IF(OR(G$12=0,$B16=0),0,IF(výkony!$D$8<0.7,IF(logic!$A$50=1,výkony!F17,výkony!S17),IF(logic!$A$50=1,výkony!AG17,výkony!AL17))) -> 686 | H16: =IF(OR(H$12=0,$B16=0),0,IF(výkony!$D$8<0.7,IF(logic!$A$50=1,výkony!G17,výkony!T17),IF(logic!$A$50=1,výkony!AH17,výkony!AM17))) -> 833 | I16: =IF(OR(I$12=0,$B16=0),0,IF(výkony!$D$8<0.7,IF(logic!$A$50=1,výkony!H17,výkony!U17),IF(logic!$A$50=1,výkony!AI17,výkony!AN17))) -> 320 | J16: =IF(OR(J$12=0,$B16=0),0,IF(výkony!$D$8<0.7,IF(logic!$A$50=1,výkony!I17,výkony!V17),IF(logic!$A$50=1,výkony!AJ17,výkony!AO17))) -> 411 | K16: =IF(OR(K$12=0,$B16=0),0,IF(výkony!$D$8<0.7,IF(logic!$A$50=1,výkony!J17,výkony!W17),IF(logic!$A$50=1,výkony!AK17,výkony!AP17))) -> 557 | L16: =IF(OR(L$12=0,$B16=0),0,IF(výkony!$D$8<0.7,IF(logic!$A$50=1,výkony!K17,výkony!X17),IF(logic!$A$50=1,výkony!AL17,výkony!AQ17))) -> 686 | M16: =IF(OR(M$12=0,$B16=0),0,IF(výkony!$D$8<0.7,IF(logic!$A$50=1,výkony!L17,výkony!Y17),IF(logic!$A$50=1,výkony!AM17,výkony!AR17))) -> 833 | N16: =C16 -> 450 | S16: 450 | T16: ="KLM-"&IF(LEN(T$15)=3,"0"&T$15/10,T$15/10)&"0"&$S16/10&"-00-10" -> KLM-070045-00-10 | U16: ="KLM-"&IF(LEN(U$15)=3,"0"&U$15/10,U$15/10)&"0"&$S16/10&"-00-10" -> KLM-090045-00-10 | V16: KLM-122045-00-10 | W16: KLM-150045-00-10 | X16: KLM-182045-00-10 | Y16: ="KLM-"&IF(LEN(Y$15)=3,"0"&Y$15/10,Y$15/10)&"0"&$S16/10&"-00M10" -> KLM-070045-00M10 | Z16: ="KLM-"&IF(LEN(Z$15)=3,"0"&Z$15/10,Z$15/10)&"0"&$S16/10&"-00M10" -> KLM-090045-00M10 | AA16: KLM-122045-00M10 | AB16: KLM-150045-00M10 | AC16: KLM-182045-00M10 | AD16: 450
B17: =IF(AND($K$5=logic!$I$4,$M$5=logic!$I$4),1,IF(AND(C17>=$K$5,C17<=$M$5),1,0)) -> 1 | C17: =IF(logic!$K$64=2,výkony!B18/logic!$M$64,výkony!B18) -> 600 | D17: =IF(OR(D$12=0,$B17=0),0,IF(výkony!$D$8<0.7,IF(logic!$A$50=1,výkony!C18,výkony!P18),IF(logic!$A$50=1,výkony!AD18,výkony!AI18))) -> 422 | E17: =IF(OR(E$12=0,$B17=0),0,IF(výkony!$D$8<0.7,IF(logic!$A$50=1,výkony!D18,výkony!Q18),IF(logic!$A$50=1,výkony!AE18,výkony!AJ18))) -> 543 | F17: =IF(OR(F$12=0,$B17=0),0,IF(výkony!$D$8<0.7,IF(logic!$A$50=1,výkony!E18,výkony!R18),IF(logic!$A$50=1,výkony!AF18,výkony!AK18))) -> 736 | G17: =IF(OR(G$12=0,$B17=0),0,IF(výkony!$D$8<0.7,IF(logic!$A$50=1,výkony!F18,výkony!S18),IF(logic!$A$50=1,výkony!AG18,výkony!AL18))) -> 906 | H17: =IF(OR(H$12=0,$B17=0),0,IF(výkony!$D$8<0.7,IF(logic!$A$50=1,výkony!G18,výkony!T18),IF(logic!$A$50=1,výkony!AH18,výkony!AM18))) -> 1101 | I17: =IF(OR(I$12=0,$B17=0),0,IF(výkony!$D$8<0.7,IF(logic!$A$50=1,výkony!H18,výkony!U18),IF(logic!$A$50=1,výkony!AI18,výkony!AN18))) -> 422 | J17: =IF(OR(J$12=0,$B17=0),0,IF(výkony!$D$8<0.7,IF(logic!$A$50=1,výkony!I18,výkony!V18),IF(logic!$A$50=1,výkony!AJ18,výkony!AO18))) -> 543 | K17: =IF(OR(K$12=0,$B17=0),0,IF(výkony!$D$8<0.7,IF(logic!$A$50=1,výkony!J18,výkony!W18),IF(logic!$A$50=1,výkony!AK18,výkony!AP18))) -> 736 | L17: =IF(OR(L$12=0,$B17=0),0,IF(výkony!$D$8<0.7,IF(logic!$A$50=1,výkony!K18,výkony!X18),IF(logic!$A$50=1,výkony!AL18,výkony!AQ18))) -> 906 | M17: =IF(OR(M$12=0,$B17=0),0,IF(výkony!$D$8<0.7,IF(logic!$A$50=1,výkony!L18,výkony!Y18),IF(logic!$A$50=1,výkony!AM18,výkony!AR18))) -> 1101 | N17: =C17 -> 600 | S17: 600 | T17: ="KLM-"&IF(LEN(T$15)=3,"0"&T$15/10,T$15/10)&"0"&$S17/10&"-00-10" -> KLM-070060-00-10 | U17: KLM-090060-00-10 | V17: KLM-122060-00-10 | W17: KLM-150060-00-10 | X17: KLM-182060-00-10 | Y17: ="KLM-"&IF(LEN(Y$15)=3,"0"&Y$15/10,Y$15/10)&"0"&$S17/10&"-00M10" -> KLM-070060-00M10 | Z17: KLM-090060-00M10 | AA17: KLM-122060-00M10 | AB17: KLM-150060-00M10 | AC17: KLM-182060-00M10 | AD17: 600
B18: =IF(AND($K$5=logic!$I$4,$M$5=logic!$I$4),1,IF(AND(C18>=$K$5,C18<=$M$5),1,0)) -> 1 | C18: =IF(logic!$K$64=2,výkony!B19/logic!$M$64,výkony!B19) -> 750 | D18: =IF(OR(D$12=0,$B18=0),0,IF(výkony!$D$8<0.7,IF(logic!$A$50=1,výkony!C19,výkony!P19),IF(logic!$A$50=1,výkony!AD19,výkony!AI19))) -> 524 | E18: =IF(OR(E$12=0,$B18=0),0,IF(výkony!$D$8<0.7,IF(logic!$A$50=1,výkony!D19,výkony!Q19),IF(logic!$A$50=1,výkony!AE19,výkony!AJ19))) -> 673 | F18: =IF(OR(F$12=0,$B18=0),0,IF(výkony!$D$8<0.7,IF(logic!$A$50=1,výkony!E19,výkony!R19),IF(logic!$A$50=1,výkony!AF19,výkony!AK19))) -> 913 | G18: =IF(OR(G$12=0,$B18=0),0,IF(výkony!$D$8<0.7,IF(logic!$A$50=1,výkony!F19,výkony!S19),IF(logic!$A$50=1,výkony!AG19,výkony!AL19))) -> 1124 | H18: =IF(OR(H$12=0,$B18=0),0,IF(výkony!$D$8<0.7,IF(logic!$A$50=1,výkony!G19,výkony!T19),IF(logic!$A$50=1,výkony!AH19,výkony!AM19))) -> 1367 | I18: =IF(OR(I$12=0,$B18=0),0,IF(výkony!$D$8<0.7,IF(logic!$A$50=1,výkony!H19,výkony!U19),IF(logic!$A$50=1,výkony!AI19,výkony!AN19))) -> 524 | J18: =IF(OR(J$12=0,$B18=0),0,IF(výkony!$D$8<0.7,IF(logic!$A$50=1,výkony!I19,výkony!V19),IF(logic!$A$50=1,výkony!AJ19,výkony!AO19))) -> 673 | K18: =IF(OR(K$12=0,$B18=0),0,IF(výkony!$D$8<0.7,IF(logic!$A$50=1,výkony!J19,výkony!W19),IF(logic!$A$50=1,výkony!AK19,výkony!AP19))) -> 913 | L18: =IF(OR(L$12=0,$B18=0),0,IF(výkony!$D$8<0.7,IF(logic!$A$50=1,výkony!K19,výkony!X19),IF(logic!$A$50=1,výkony!AL19,výkony!AQ19))) -> 1124 | M18: =IF(OR(M$12=0,$B18=0),0,IF(výkony!$D$8<0.7,IF(logic!$A$50=1,výkony!L19,výkony!Y19),IF(logic!$A$50=1,výkony!AM19,výkony!AR19))) -> 1367 | N18: 750 | S18: 750 | T18: KLM-070075-00-10 | U18: KLM-090075-00-10 | V18: KLM-122075-00-10 | W18: KLM-150075-00-10 | X18: KLM-182075-00-10 | Y18: KLM-070075-00M10 | Z18: KLM-090075-00M10 | AA18: KLM-122075-00M10 | AB18: KLM-150075-00M10 | AC18: KLM-182075-00M10 | AD18: 750
D20: KORALUX LINEAR COMFORT | I20: KORALUX LINEAR COMFORT - M | T20: KORALUX LINEAR COMFORT | Y20: KORALUX LINEAR COMFORT - M
C21: =logic!$L$4 -> Długość | D21: =logic!$K$4&" H ["&logic!$O$64&"]" -> Wysokość H [mm] | I21: =logic!$K$4&" H ["&logic!$O$64&"]" -> Wysokość H [mm] | N21: =logic!$L$4 -> Długość | S21: =logic!$L$4 -> Długość | T21: =logic!$K$4&" H [mm]" -> Wysokość H [mm] | Y21: =logic!$K$4&" H [mm]" -> Wysokość H [mm] | AD21: =logic!$L$4 -> Długość
C22: ="L ["&logic!$O$64&"]" -> L [mm] | D22: =IF(logic!$K$64=2,výkony!C23/logic!$M$64,výkony!C23) -> 700 | E22: =IF(logic!$K$64=2,výkony!D23/logic!$M$64,výkony!D23) -> 900 | F22: =IF(logic!$K$64=2,výkony!E23/logic!$M$64,výkony!E23) -> 1220 | G22: =IF(logic!$K$64=2,výkony!F23/logic!$M$64,výkony!F23) -> 1500 | H22: =IF(logic!$K$64=2,výkony!G23/logic!$M$64,výkony!G23) -> 1820 | I22: =IF(logic!$K$64=2,výkony!H23/logic!$M$64,výkony!H23) -> 700 | J22: =IF(logic!$K$64=2,výkony!I23/logic!$M$64,výkony!I23) -> 900 | K22: =IF(logic!$K$64=2,výkony!J23/logic!$M$64,výkony!J23) -> 1220 | L22: =IF(logic!$K$64=2,výkony!K23/logic!$M$64,výkony!K23) -> 1500 | M22: =IF(logic!$K$64=2,výkony!L23/logic!$M$64,výkony!L23) -> 1820 | N22: ="L ["&logic!$O$64&"]" -> L [mm] | S22: L [mm] | T22: 700 | U22: 900 | V22: 1220 | W22: 1500 | X22: 1820 | Y22: 700 | Z22: 900 | AA22: 1220 | AB22: 1500 | AC22: 1820 | AD22: L [mm]
B23: =IF(AND($K$5=logic!$I$4,$M$5=logic!$I$4),1,IF(AND(C23>=$K$5,C23<=$M$5),1,0)) -> 1 | C23: =IF(logic!$K$64=2,výkony!B24/logic!$M$64,výkony!B24) -> 450 | D23: =IF(OR(D$12=0,$B23=0),0,IF(výkony!$D$8<0.7,IF(logic!$A$50=1,výkony!C24,výkony!P24),IF(logic!$A$50=1,výkony!AD24,výkony!AI24))) -> 287 | E23: =IF(OR(E$12=0,$B23=0),0,IF(výkony!$D$8<0.7,IF(logic!$A$50=1,výkony!D24,výkony!Q24),IF(logic!$A$50=1,výkony!AE24,výkony!AJ24))) -> 369 | F23: =IF(OR(F$12=0,$B23=0),0,IF(výkony!$D$8<0.7,IF(logic!$A$50=1,výkony!E24,výkony!R24),IF(logic!$A$50=1,výkony!AF24,výkony!AK24))) -> 504 | G23: =IF(OR(G$12=0,$B23=0),0,IF(výkony!$D$8<0.7,IF(logic!$A$50=1,výkony!F24,výkony!S24),IF(logic!$A$50=1,výkony!AG24,výkony!AL24))) -> 626 | H23: =IF(OR(H$12=0,$B23=0),0,IF(výkony!$D$8<0.7,IF(logic!$A$50=1,výkony!G24,výkony!T24),IF(logic!$A$50=1,výkony!AH24,výkony!AM24))) -> 772 | I23: =IF(OR(I$12=0,$B23=0),0,IF(výkony!$D$8<0.7,IF(logic!$A$50=1,výkony!H24,výkony!U24),IF(logic!$A$50=1,výkony!AI24,výkony!AN24))) -> 287 | J23: =IF(OR(J$12=0,$B23=0),0,IF(výkony!$D$8<0.7,IF(logic!$A$50=1,výkony!I24,výkony!V24),IF(logic!$A$50=1,výkony!AJ24,výkony!AO24))) -> 369 | K23: =IF(OR(K$12=0,$B23=0),0,IF(výkony!$D$8<0.7,IF(logic!$A$50=1,výkony!J24,výkony!W24),IF(logic!$A$50=1,výkony!AK24,výkony!AP24))) -> 504 | L23: =IF(OR(L$12=0,$B23=0),0,IF(výkony!$D$8<0.7,IF(logic!$A$50=1,výkony!K24,výkony!X24),IF(logic!$A$50=1,výkony!AL24,výkony!AQ24))) -> 626 | M23: =IF(OR(M$12=0,$B23=0),0,IF(výkony!$D$8<0.7,IF(logic!$A$50=1,výkony!L24,výkony!Y24),IF(logic!$A$50=1,výkony!AM24,výkony!AR24))) -> 772 | N23: =C23 -> 450 | S23: 450 | T23: ="KLT-"&IF(LEN(T$22)=3,"0"&T$22/10,T$22/10)&"0"&$S23/10&"-00-10" -> KLT-070045-00-10 | U23: ="KLT-"&IF(LEN(U$22)=3,"0"&U$22/10,U$22/10)&"0"&$S23/10&"-00-10" -> KLT-090045-00-10 | V23: KLT-122045-00-10 | W23: KLT-150045-00-10 | X23: KLT-182045-00-10 | Y23: ="KLT-"&IF(LEN(Y$22)=3,"0"&Y$22/10,Y$22/10)&"0"&$S23/10&"-00M10" -> KLT-070045-00M10 | Z23: ="KLT-"&IF(LEN(Z$22)=3,"0"&Z$22/10,Z$22/10)&"0"&$S23/10&"-00M10" -> KLT-090045-00M10 | AA23: KLT-122045-00M10 | AB23: KLT-150045-00M10 | AC23: KLT-182045-00M10 | AD23: 450
B24: =IF(AND($K$5=logic!$I$4,$M$5=logic!$I$4),1,IF(AND(C24>=$K$5,C24<=$M$5),1,0)) -> 1 | C24: =IF(logic!$K$64=2,výkony!B25/logic!$M$64,výkony!B25) -> 500 | D24: =IF(OR(D$12=0,$B24=0),0,IF(výkony!$D$8<0.7,IF(logic!$A$50=1,výkony!C25,výkony!P25),IF(logic!$A$50=1,výkony!AD25,výkony!AI25))) -> 315 | E24: =IF(OR(E$12=0,$B24=0),0,IF(výkony!$D$8<0.7,IF(logic!$A$50=1,výkony!D25,výkony!Q25),IF(logic!$A$50=1,výkony!AE25,výkony!AJ25))) -> 405 | F24: =IF(OR(F$12=0,$B24=0),0,IF(výkony!$D$8<0.7,IF(logic!$A$50=1,výkony!E25,výkony!R25),IF(logic!$A$50=1,výkony!AF25,výkony!AK25))) -> 553 | G24: =IF(OR(G$12=0,$B24=0),0,IF(výkony!$D$8<0.7,IF(logic!$A$50=1,výkony!F25,výkony!S25),IF(logic!$A$50=1,výkony!AG25,výkony!AL25))) -> 687 | H24: =IF(OR(H$12=0,$B24=0),0,IF(výkony!$D$8<0.7,IF(logic!$A$50=1,výkony!G25,výkony!T25),IF(logic!$A$50=1,výkony!AH25,výkony!AM25))) -> 848 | I24: =IF(OR(I$12=0,$B24=0),0,IF(výkony!$D$8<0.7,IF(logic!$A$50=1,výkony!H25,výkony!U25),IF(logic!$A$50=1,výkony!AI25,výkony!AN25))) -> 315 | J24: =IF(OR(J$12=0,$B24=0),0,IF(výkony!$D$8<0.7,IF(logic!$A$50=1,výkony!I25,výkony!V25),IF(logic!$A$50=1,výkony!AJ25,výkony!AO25))) -> 405 | K24: =IF(OR(K$12=0,$B24=0),0,IF(výkony!$D$8<0.7,IF(logic!$A$50=1,výkony!J25,výkony!W25),IF(logic!$A$50=1,výkony!AK25,výkony!AP25))) -> 553 | L24: =IF(OR(L$12=0,$B24=0),0,IF(výkony!$D$8<0.7,IF(logic!$A$50=1,výkony!K25,výkony!X25),IF(logic!$A$50=1,výkony!AL25,výkony!AQ25))) -> 687 | M24: =IF(OR(M$12=0,$B24=0),0,IF(výkony!$D$8<0.7,IF(logic!$A$50=1,výkony!L25,výkony!Y25),IF(logic!$A$50=1,výkony!AM25,výkony!AR25))) -> 848 | N24: =C24 -> 500 | S24: 500 | T24: ="KLT-"&IF(LEN(T$22)=3,"0"&T$22/10,T$22/10)&"0"&$S24/10&"-00-10" -> KLT-070050-00-10 | U24: KLT-090050-00-10 | V24: KLT-122050-00-10 | W24: KLT-150050-00-10 | X24: KLT-182050-00-10 | Y24: ="KLT-"&IF(LEN(Y$22)=3,"0"&Y$22/10,Y$22/10)&"0"&$S24/10&"-00M10" -> KLT-070050-00M10 | Z24: KLT-090050-00M10 | AA24: KLT-122050-00M10 | AB24: KLT-150050-00M10 | AC24: KLT-182050-00M10 | AD24: 500
B25: =IF(AND($K$5=logic!$I$4,$M$5=logic!$I$4),1,IF(AND(C25>=$K$5,C25<=$M$5),1,0)) -> 1 | C25: =IF(logic!$K$64=2,výkony!B26/logic!$M$64,výkony!B26) -> 600 | D25: =IF(OR(D$12=0,$B25=0),0,IF(výkony!$D$8<0.7,IF(logic!$A$50=1,výkony!C26,výkony!P26),IF(logic!$A$50=1,výkony!AD26,výkony!AI26))) -> 370 | E25: =IF(OR(E$12=0,$B25=0),0,IF(výkony!$D$8<0.7,IF(logic!$A$50=1,výkony!D26,výkony!Q26),IF(logic!$A$50=1,výkony!AE26,výkony!AJ26))) -> 475 | F25: =IF(OR(F$12=0,$B25=0),0,IF(výkony!$D$8<0.7,IF(logic!$A$50=1,výkony!E26,výkony!R26),IF(logic!$A$50=1,výkony!AF26,výkony!AK26))) -> 650 | G25: =IF(OR(G$12=0,$B25=0),0,IF(výkony!$D$8<0.7,IF(logic!$A$50=1,výkony!F26,výkony!S26),IF(logic!$A$50=1,výkony!AG26,výkony!AL26))) -> 808 | H25: =IF(OR(H$12=0,$B25=0),0,IF(výkony!$D$8<0.7,IF(logic!$A$50=1,výkony!G26,výkony!T26),IF(logic!$A$50=1,výkony!AH26,výkony!AM26))) -> 996 | I25: =IF(OR(I$12=0,$B25=0),0,IF(výkony!$D$8<0.7,IF(logic!$A$50=1,výkony!H26,výkony!U26),IF(logic!$A$50=1,výkony!AI26,výkony!AN26))) -> 370 | J25: =IF(OR(J$12=0,$B25=0),0,IF(výkony!$D$8<0.7,IF(logic!$A$50=1,výkony!I26,výkony!V26),IF(logic!$A$50=1,výkony!AJ26,výkony!AO26))) -> 475 | K25: =IF(OR(K$12=0,$B25=0),0,IF(výkony!$D$8<0.7,IF(logic!$A$50=1,výkony!J26,výkony!W26),IF(logic!$A$50=1,výkony!AK26,výkony!AP26))) -> 650 | L25: =IF(OR(L$12=0,$B25=0),0,IF(výkony!$D$8<0.7,IF(logic!$A$50=1,výkony!K26,výkony!X26),IF(logic!$A$50=1,výkony!AL26,výkony!AQ26))) -> 808 | M25: =IF(OR(M$12=0,$B25=0),0,IF(výkony!$D$8<0.7,IF(logic!$A$50=1,výkony!L26,výkony!Y26),IF(logic!$A$50=1,výkony!AM26,výkony!AR26))) -> 996 | N25: 600 | S25: 600 | T25: KLT-070060-00-10 | U25: KLT-090060-00-10 | V25: KLT-122060-00-10 | W25: KLT-150060-00-10 | X25: KLT-182060-00-10 | Y25: KLT-070060-00M10 | Z25: KLT-090060-00M10 | AA25: KLT-122060-00M10 | AB25: KLT-150060-00M10 | AC25: KLT-182060-00M10 | AD25: 600
B26: =IF(AND($K$5=logic!$I$4,$M$5=logic!$I$4),1,IF(AND(C26>=$K$5,C26<=$M$5),1,0)) -> 1 | C26: =IF(logic!$K$64=2,výkony!B27/logic!$M$64,výkony!B27) -> 750 | D26: =IF(OR(D$12=0,$B26=0),0,IF(výkony!$D$8<0.7,IF(logic!$A$50=1,výkony!C27,výkony!P27),IF(logic!$A$50=1,výkony!AD27,výkony!AI27))) -> 450 | E26: =IF(OR(E$12=0,$B26=0),0,IF(výkony!$D$8<0.7,IF(logic!$A$50=1,výkony!D27,výkony!Q27),IF(logic!$A$50=1,výkony!AE27,výkony!AJ27))) -> 579 | F26: =IF(OR(F$12=0,$B26=0),0,IF(výkony!$D$8<0.7,IF(logic!$A$50=1,výkony!E27,výkony!R27),IF(logic!$A$50=1,výkony!AF27,výkony!AK27))) -> 791 | G26: =IF(OR(G$12=0,$B26=0),0,IF(výkony!$D$8<0.7,IF(logic!$A$50=1,výkony!F27,výkony!S27),IF(logic!$A$50=1,výkony!AG27,výkony!AL27))) -> 984 | H26: =IF(OR(H$12=0,$B26=0),0,IF(výkony!$D$8<0.7,IF(logic!$A$50=1,výkony!G27,výkony!T27),IF(logic!$A$50=1,výkony!AH27,výkony!AM27))) -> 1213 | I26: =IF(OR(I$12=0,$B26=0),0,IF(výkony!$D$8<0.7,IF(logic!$A$50=1,výkony!H27,výkony!U27),IF(logic!$A$50=1,výkony!AI27,výkony!AN27))) -> 450 | J26: =IF(OR(J$12=0,$B26=0),0,IF(výkony!$D$8<0.7,IF(logic!$A$50=1,výkony!I27,výkony!V27),IF(logic!$A$50=1,výkony!AJ27,výkony!AO27))) -> 579 | K26: =IF(OR(K$12=0,$B26=0),0,IF(výkony!$D$8<0.7,IF(logic!$A$50=1,výkony!J27,výkony!W27),IF(logic!$A$50=1,výkony!AK27,výkony!AP27))) -> 791 | L26: =IF(OR(L$12=0,$B26=0),0,IF(výkony!$D$8<0.7,IF(logic!$A$50=1,výkony!K27,výkony!X27),IF(logic!$A$50=1,výkony!AL27,výkony!AQ27))) -> 984 | M26: =IF(OR(M$12=0,$B26=0),0,IF(výkony!$D$8<0.7,IF(logic!$A$50=1,výkony!L27,výkony!Y27),IF(logic!$A$50=1,výkony!AM27,výkony!AR27))) -> 1213 | N26: 750 | S26: 750 | T26: KLT-070075-00-10 | U26: KLT-090075-00-10 | V26: KLT-122075-00-10 | W26: KLT-150075-00-10 | X26: KLT-182075-00-10 | Y26: KLT-070075-00M10 | Z26: KLT-090075-00M10 | AA26: KLT-122075-00M10 | AB26: KLT-150075-00M10 | AC26: KLT-182075-00M10 | AD26: 750
D28: KORALUX LINEAR CLASSIC | I28: KORALUX LINEAR CLASSIC - M | T28: KORALUX LINEAR CLASSIC | Y28: KORALUX LINEAR CLASSIC - M
C29: =logic!$L$4 -> Długość | D29: =logic!$K$4&" H ["&logic!$O$64&"]" -> Wysokość H [mm] | I29: =logic!$K$4&" H ["&logic!$O$64&"]" -> Wysokość H [mm] | N29: =logic!$L$4 -> Długość | S29: =logic!$L$4 -> Długość | T29: =logic!$K$4&" H [mm]" -> Wysokość H [mm] | Y29: =logic!$K$4&" H [mm]" -> Wysokość H [mm] | AD29: =logic!$L$4 -> Długość
C30: ="L ["&logic!$O$64&"]" -> L [mm] | D30: =IF(logic!$K$64=2,výkony!C31/logic!$M$64,výkony!C31) -> 700 | E30: =IF(logic!$K$64=2,výkony!D31/logic!$M$64,výkony!D31) -> 900 | F30: =IF(logic!$K$64=2,výkony!E31/logic!$M$64,výkony!E31) -> 1220 | G30: =IF(logic!$K$64=2,výkony!F31/logic!$M$64,výkony!F31) -> 1500 | H30: =IF(logic!$K$64=2,výkony!G31/logic!$M$64,výkony!G31) -> 1820 | I30: =IF(logic!$K$64=2,výkony!H31/logic!$M$64,výkony!H31) -> 700 | J30: =IF(logic!$K$64=2,výkony!I31/logic!$M$64,výkony!I31) -> 900 | K30: =IF(logic!$K$64=2,výkony!J31/logic!$M$64,výkony!J31) -> 1220 | L30: =IF(logic!$K$64=2,výkony!K31/logic!$M$64,výkony!K31) -> 1500 | M30: =IF(logic!$K$64=2,výkony!L31/logic!$M$64,výkony!L31) -> 1820 | N30: ="L ["&logic!$O$64&"]" -> L [mm] | S30: L [mm] | T30: 700 | U30: 900 | V30: 1220 | W30: 1500 | X30: 1820 | Y30: 700 | Z30: 900 | AA30: 1220 | AB30: 1500 | AC30: 1820 | AD30: L [mm]
B31: =IF(AND($K$5=logic!$I$4,$M$5=logic!$I$4),1,IF(AND(C31>=$K$5,C31<=$M$5),1,0)) -> 1 | C31: =IF(logic!$K$64=2,výkony!B32/logic!$M$64,výkony!B32) -> 450 | D31: =IF(OR(D$12=0,$B31=0),0,IF(výkony!$D$8<0.7,IF(logic!$A$50=1,výkony!C32,výkony!P32),IF(logic!$A$50=1,výkony!AD32,výkony!AI32))) -> 255 | E31: =IF(OR(E$12=0,$B31=0),0,IF(výkony!$D$8<0.7,IF(logic!$A$50=1,výkony!D32,výkony!Q32),IF(logic!$A$50=1,výkony!AE32,výkony!AJ32))) -> 333 | F31: =IF(OR(F$12=0,$B31=0),0,IF(výkony!$D$8<0.7,IF(logic!$A$50=1,výkony!E32,výkony!R32),IF(logic!$A$50=1,výkony!AF32,výkony!AK32))) -> 462 | G31: =IF(OR(G$12=0,$B31=0),0,IF(výkony!$D$8<0.7,IF(logic!$A$50=1,výkony!F32,výkony!S32),IF(logic!$A$50=1,výkony!AG32,výkony!AL32))) -> 581 | H31: =IF(OR(H$12=0,$B31=0),0,IF(výkony!$D$8<0.7,IF(logic!$A$50=1,výkony!G32,výkony!T32),IF(logic!$A$50=1,výkony!AH32,výkony!AM32))) -> 725 | I31: =IF(OR(I$12=0,$B31=0),0,IF(výkony!$D$8<0.7,IF(logic!$A$50=1,výkony!H32,výkony!U32),IF(logic!$A$50=1,výkony!AI32,výkony!AN32))) -> 255 | J31: =IF(OR(J$12=0,$B31=0),0,IF(výkony!$D$8<0.7,IF(logic!$A$50=1,výkony!I32,výkony!V32),IF(logic!$A$50=1,výkony!AJ32,výkony!AO32))) -> 333 | K31: =IF(OR(K$12=0,$B31=0),0,IF(výkony!$D$8<0.7,IF(logic!$A$50=1,výkony!J32,výkony!W32),IF(logic!$A$50=1,výkony!AK32,výkony!AP32))) -> 462 | L31: =IF(OR(L$12=0,$B31=0),0,IF(výkony!$D$8<0.7,IF(logic!$A$50=1,výkony!K32,výkony!X32),IF(logic!$A$50=1,výkony!AL32,výkony!AQ32))) -> 581 | M31: =IF(OR(M$12=0,$B31=0),0,IF(výkony!$D$8<0.7,IF(logic!$A$50=1,výkony!L32,výkony!Y32),IF(logic!$A$50=1,výkony!AM32,výkony!AR32))) -> 725 | N31: =C31 -> 450 | S31: 450 | T31: ="KLC-"&IF(LEN(T$30)=3,"0"&T$30/10,T$30/10)&"0"&$S31/10&"-00-10" -> KLC-070045-00-10 | U31: ="KLC-"&IF(LEN(U$30)=3,"0"&U$30/10,U$30/10)&"0"&$S31/10&"-00-10" -> KLC-090045-00-10 | V31: KLC-122045-00-10 | W31: KLC-150045-00-10 | X31: KLC-182045-00-10 | Y31: ="KLC-"&IF(LEN(Y$30)=3,"0"&Y$30/10,Y$30/10)&"0"&$S31/10&"-00M10" -> KLC-070045-00M10 | Z31: ="KLC-"&IF(LEN(Z$30)=3,"0"&Z$30/10,Z$30/10)&"0"&$S31/10&"-00M10" -> KLC-090045-00M10 | AA31: KLC-122045-00M10 | AB31: KLC-150045-00M10 | AC31: KLC-182045-00M10 | AD31: 450
B32: =IF(AND($K$5=logic!$I$4,$M$5=logic!$I$4),1,IF(AND(C32>=$K$5,C32<=$M$5),1,0)) -> 1 | C32: =IF(logic!$K$64=2,výkony!B33/logic!$M$64,výkony!B33) -> 500 | D32: =IF(OR(D$12=0,$B32=0),0,IF(výkony!$D$8<0.7,IF(logic!$A$50=1,výkony!C33,výkony!P33),IF(logic!$A$50=1,výkony!AD33,výkony!AI33))) -> 280 | E32: =IF(OR(E$12=0,$B32=0),0,IF(výkony!$D$8<0.7,IF(logic!$A$50=1,výkony!D33,výkony!Q33),IF(logic!$A$50=1,výkony!AE33,výkony!AJ33))) -> 365 | F32: =IF(OR(F$12=0,$B32=0),0,IF(výkony!$D$8<0.7,IF(logic!$A$50=1,výkony!E33,výkony!R33),IF(logic!$A$50=1,výkony!AF33,výkony!AK33))) -> 507 | G32: =IF(OR(G$12=0,$B32=0),0,IF(výkony!$D$8<0.7,IF(logic!$A$50=1,výkony!F33,výkony!S33),IF(logic!$A$50=1,výkony!AG33,výkony!AL33))) -> 638 | H32: =IF(OR(H$12=0,$B32=0),0,IF(výkony!$D$8<0.7,IF(logic!$A$50=1,výkony!G33,výkony!T33),IF(logic!$A$50=1,výkony!AH33,výkony!AM33))) -> 795 | I32: =IF(OR(I$12=0,$B32=0),0,IF(výkony!$D$8<0.7,IF(logic!$A$50=1,výkony!H33,výkony!U33),IF(logic!$A$50=1,výkony!AI33,výkony!AN33))) -> 280 | J32: =IF(OR(J$12=0,$B32=0),0,IF(výkony!$D$8<0.7,IF(logic!$A$50=1,výkony!I33,výkony!V33),IF(logic!$A$50=1,výkony!AJ33,výkony!AO33))) -> 365 | K32: =IF(OR(K$12=0,$B32=0),0,IF(výkony!$D$8<0.7,IF(logic!$A$50=1,výkony!J33,výkony!W33),IF(logic!$A$50=1,výkony!AK33,výkony!AP33))) -> 507 | L32: =IF(OR(L$12=0,$B32=0),0,IF(výkony!$D$8<0.7,IF(logic!$A$50=1,výkony!K33,výkony!X33),IF(logic!$A$50=1,výkony!AL33,výkony!AQ33))) -> 638 | M32: =IF(OR(M$12=0,$B32=0),0,IF(výkony!$D$8<0.7,IF(logic!$A$50=1,výkony!L33,výkony!Y33),IF(logic!$A$50=1,výkony!AM33,výkony!AR33))) -> 795 | N32: =C32 -> 500 | S32: 500 | T32: ="KLC-"&IF(LEN(T$30)=3,"0"&T$30/10,T$30/10)&"0"&$S32/10&"-00-10" -> KLC-070050-00-10 | U32: KLC-090050-00-10 | V32: KLC-122050-00-10 | W32: KLC-150050-00-10 | X32: KLC-182050-00-10 | Y32: ="KLC-"&IF(LEN(Y$30)=3,"0"&Y$30/10,Y$30/10)&"0"&$S32/10&"-00M10" -> KLC-070050-00M10 | Z32: KLC-090050-00M10 | AA32: KLC-122050-00M10 | AB32: KLC-150050-00M10 | AC32: KLC-182050-00M10 | AD32: 500
B33: =IF(AND($K$5=logic!$I$4,$M$5=logic!$I$4),1,IF(AND(C33>=$K$5,C33<=$M$5),1,0)) -> 1 | C33: =IF(logic!$K$64=2,výkony!B34/logic!$M$64,výkony!B34) -> 600 | D33: =IF(OR(D$12=0,$B33=0),0,IF(výkony!$D$8<0.7,IF(logic!$A$50=1,výkony!C34,výkony!P34),IF(logic!$A$50=1,výkony!AD34,výkony!AI34))) -> 329 | E33: =IF(OR(E$12=0,$B33=0),0,IF(výkony!$D$8<0.7,IF(logic!$A$50=1,výkony!D34,výkony!Q34),IF(logic!$A$50=1,výkony!AE34,výkony!AJ34))) -> 429 | F33: =IF(OR(F$12=0,$B33=0),0,IF(výkony!$D$8<0.7,IF(logic!$A$50=1,výkony!E34,výkony!R34),IF(logic!$A$50=1,výkony!AF34,výkony!AK34))) -> 596 | G33: =IF(OR(G$12=0,$B33=0),0,IF(výkony!$D$8<0.7,IF(logic!$A$50=1,výkony!F34,výkony!S34),IF(logic!$A$50=1,výkony!AG34,výkony!AL34))) -> 750 | H33: =IF(OR(H$12=0,$B33=0),0,IF(výkony!$D$8<0.7,IF(logic!$A$50=1,výkony!G34,výkony!T34),IF(logic!$A$50=1,výkony!AH34,výkony!AM34))) -> 934 | I33: =IF(OR(I$12=0,$B33=0),0,IF(výkony!$D$8<0.7,IF(logic!$A$50=1,výkony!H34,výkony!U34),IF(logic!$A$50=1,výkony!AI34,výkony!AN34))) -> 329 | J33: =IF(OR(J$12=0,$B33=0),0,IF(výkony!$D$8<0.7,IF(logic!$A$50=1,výkony!I34,výkony!V34),IF(logic!$A$50=1,výkony!AJ34,výkony!AO34))) -> 429 | K33: =IF(OR(K$12=0,$B33=0),0,IF(výkony!$D$8<0.7,IF(logic!$A$50=1,výkony!J34,výkony!W34),IF(logic!$A$50=1,výkony!AK34,výkony!AP34))) -> 596 | L33: =IF(OR(L$12=0,$B33=0),0,IF(výkony!$D$8<0.7,IF(logic!$A$50=1,výkony!K34,výkony!X34),IF(logic!$A$50=1,výkony!AL34,výkony!AQ34))) -> 750 | M33: =IF(OR(M$12=0,$B33=0),0,IF(výkony!$D$8<0.7,IF(logic!$A$50=1,výkony!L34,výkony!Y34),IF(logic!$A$50=1,výkony!AM34,výkony!AR34))) -> 934 | N33: 600 | S33: 600 | T33: KLC-070060-00-10 | U33: KLC-090060-00-10 | V33: KLC-122060-00-10 | W33: KLC-150060-00-10 | X33: KLC-182060-00-10 | Y33: KLC-070060-00M10 | Z33: KLC-090060-00M10 | AA33: KLC-122060-00M10 | AB33: KLC-150060-00M10 | AC33: KLC-182060-00M10 | AD33: 600
B34: =IF(AND($K$5=logic!$I$4,$M$5=logic!$I$4),1,IF(AND(C34>=$K$5,C34<=$M$5),1,0)) -> 1 | C34: =IF(logic!$K$64=2,výkony!B35/logic!$M$64,výkony!B35) -> 750 | D34: =IF(OR(D$12=0,$B34=0),0,IF(výkony!$D$8<0.7,IF(logic!$A$50=1,výkony!C35,výkony!P35),IF(logic!$A$50=1,výkony!AD35,výkony!AI35))) -> 400 | E34: =IF(OR(E$12=0,$B34=0),0,IF(výkony!$D$8<0.7,IF(logic!$A$50=1,výkony!D35,výkony!Q35),IF(logic!$A$50=1,výkony!AE35,výkony!AJ35))) -> 522 | F34: =IF(OR(F$12=0,$B34=0),0,IF(výkony!$D$8<0.7,IF(logic!$A$50=1,výkony!E35,výkony!R35),IF(logic!$A$50=1,výkony!AF35,výkony!AK35))) -> 726 | G34: =IF(OR(G$12=0,$B34=0),0,IF(výkony!$D$8<0.7,IF(logic!$A$50=1,výkony!F35,výkony!S35),IF(logic!$A$50=1,výkony!AG35,výkony!AL35))) -> 913 | H34: =IF(OR(H$12=0,$B34=0),0,IF(výkony!$D$8<0.7,IF(logic!$A$50=1,výkony!G35,výkony!T35),IF(logic!$A$50=1,výkony!AH35,výkony!AM35))) -> 1138 | I34: =IF(OR(I$12=0,$B34=0),0,IF(výkony!$D$8<0.7,IF(logic!$A$50=1,výkony!H35,výkony!U35),IF(logic!$A$50=1,výkony!AI35,výkony!AN35))) -> 400 | J34: =IF(OR(J$12=0,$B34=0),0,IF(výkony!$D$8<0.7,IF(logic!$A$50=1,výkony!I35,výkony!V35),IF(logic!$A$50=1,výkony!AJ35,výkony!AO35))) -> 522 | K34: =IF(OR(K$12=0,$B34=0),0,IF(výkony!$D$8<0.7,IF(logic!$A$50=1,výkony!J35,výkony!W35),IF(logic!$A$50=1,výkony!AK35,výkony!AP35))) -> 726 | L34: =IF(OR(L$12=0,$B34=0),0,IF(výkony!$D$8<0.7,IF(logic!$A$50=1,výkony!K35,výkony!X35),IF(logic!$A$50=1,výkony!AL35,výkony!AQ35))) -> 913 | M34: =IF(OR(M$12=0,$B34=0),0,IF(výkony!$D$8<0.7,IF(logic!$A$50=1,výkony!L35,výkony!Y35),IF(logic!$A$50=1,výkony!AM35,výkony!AR35))) -> 1138 | N34: 750 | S34: 750 | T34: KLC-070075-00-10 | U34: KLC-090075-00-10 | V34: KLC-122075-00-10 | W34: KLC-150075-00-10 | X34: KLC-182075-00-10 | Y34: KLC-070075-00M10 | Z34: KLC-090075-00M10 | AA34: KLC-122075-00M10 | AB34: KLC-150075-00M10 | AC34: KLC-182075-00M10 | AD34: 750
J35: =IF(logic!$A$50=2,0,IF(AND($K$4=logic!$I$4,$M$4=logic!$I$4),1,IF(AND(J39>=$K$4,F15<=$M$4),1,0))) -> 1 | K35: =IF(logic!$A$50=2,0,IF(AND($K$4=logic!$I$4,$M$4=logic!$I$4),1,IF(AND(K39>=$K$4,G15<=$M$4),1,0))) -> 1 | L35: =IF(logic!$A$50=2,0,IF(AND($K$4=logic!$I$4,$M$4=logic!$I$4),1,IF(AND(L39>=$K$4,H15<=$M$4),1,0))) -> 1
D36: KORALUX STANDARD | T36: KORALUX STANDARD | Z36: KORALUX NEO
C37: =logic!$L$4 -> Długość | D37: =logic!$K$4&" H ["&logic!$O$64&"]" -> Wysokość H [mm] | J37: KORALUX NEO | S37: =logic!$L$4 -> Długość | T37: =logic!$K$4&" H [mm]" -> Wysokość H [mm] | Y37: =logic!$L$4 -> Długość | Z37: =logic!$K$4&" H ["&logic!$O$64&"]" -> Wysokość H [mm]
C38: ="L ["&logic!$O$64&"]" -> L [mm] | D38: =IF(logic!$K$64=2,výkony!C39/logic!$M$64,výkony!C39) -> 700 | E38: =IF(logic!$K$64=2,výkony!D39/logic!$M$64,výkony!D39) -> 900 | F38: =IF(logic!$K$64=2,výkony!E39/logic!$M$64,výkony!E39) -> 1220 | G38: =IF(logic!$K$64=2,výkony!F39/logic!$M$64,výkony!F39) -> 1500 | I38: =logic!$L$4 -> Długość | J38: =logic!$K$4&" H ["&logic!$O$64&"]" -> Wysokość H [mm] | S38: L [mm] | T38: 700 | U38: 900 | V38: 1220 | W38: 1500 | Y38: ="L ["&logic!$O$64&"]" -> L [mm] | Z38: 1100 | AA38: 1420 | AB38: 1700
B39: =IF(AND($K$5=logic!$I$4,$M$5=logic!$I$4),1,IF(C39=$K$5,1,0)) -> 1 | C39: =IF(logic!$K$64=2,výkony!B40/logic!$M$64,výkony!B40) -> 400 | D39: =IF(OR(D$12=0,$B39=0),0,IF(výkony!$D$8<0.7,IF(logic!$A$50=1,výkony!C40,výkony!P40),IF(logic!$A$50=1,výkony!AD40,výkony!AI40))) -> 198 | E39: =IF(OR(E$12=0,$B39=0),0,IF(výkony!$D$8<0.7,IF(logic!$A$50=1,výkony!D40,výkony!Q40),IF(logic!$A$50=1,výkony!AE40,výkony!AJ40))) -> 254 | F39: =IF(OR(F$12=0,$B39=0),0,IF(výkony!$D$8<0.7,IF(logic!$A$50=1,výkony!E40,výkony!R40),IF(logic!$A$50=1,výkony!AF40,výkony!AK40))) -> 345 | G39: =IF(OR(G$12=0,$B39=0),0,IF(výkony!$D$8<0.7,IF(logic!$A$50=1,výkony!F40,výkony!S40),IF(logic!$A$50=1,výkony!AG40,výkony!AL40))) -> 427 | I39: ="L ["&logic!$O$64&"]" -> L [mm] | J39: =IF(logic!$K$64=2,výkony!I40/logic!$M$64,výkony!I40) -> 1100 | K39: =IF(logic!$K$64=2,výkony!J40/logic!$M$64,výkony!J40) -> 1420 | L39: =IF(logic!$K$64=2,výkony!K40/logic!$M$64,výkony!K40) -> 1700 | S39: 400 | T39: ="KSC-"&IF(LEN(T$38)=3,"0"&T$38/10,T$38/10)&"0"&$S39/10&"-00-10" -> KSC-070040-00-10 | U39: KSC-090040-00-10 | V39: KSC-122040-00-10 | W39: KSC-150040-00-10 | Y39: 500 | Z39: KLN-110050-00-10 | AA39: KLN-142050-00-10 | AB39: KLN-170050-00-10
B40: =IF(AND($K$5=logic!$I$4,$M$5=logic!$I$4),1,IF(AND(C40>=$K$5,C40<=$M$5),1,0)) -> 1 | C40: =IF(logic!$K$64=2,výkony!B41/logic!$M$64,výkony!B41) -> 500 | D40: =IF(OR(D$12=0,$B40=0),0,IF(výkony!$D$8<0.7,IF(logic!$A$50=1,výkony!C41,výkony!P41),IF(logic!$A$50=1,výkony!AD41,výkony!AI41))) -> 231 | E40: =IF(OR(E$12=0,$B40=0),0,IF(výkony!$D$8<0.7,IF(logic!$A$50=1,výkony!D41,výkony!Q41),IF(logic!$A$50=1,výkony!AE41,výkony!AJ41))) -> 297 | F40: =IF(OR(F$12=0,$B40=0),0,IF(výkony!$D$8<0.7,IF(logic!$A$50=1,výkony!E41,výkony!R41),IF(logic!$A$50=1,výkony!AF41,výkony!AK41))) -> 403 | G40: =IF(OR(G$12=0,$B40=0),0,IF(výkony!$D$8<0.7,IF(logic!$A$50=1,výkony!F41,výkony!S41),IF(logic!$A$50=1,výkony!AG41,výkony!AL41))) -> 499 | I40: =IF(logic!$K$64=2,výkony!H41/logic!$M$64,výkony!H41) -> 500 | J40: =IF(OR(J$12=0,$B40=0),0,IF(výkony!$D$8<0.7,IF(logic!$A$50=1,výkony!I41,výkony!V41),IF(logic!$A$50=1,výkony!AJ41,výkony!AW41))) -> 520 | K40: =IF(OR(K$12=0,$B40=0),0,IF(výkony!$D$8<0.7,IF(logic!$A$50=1,výkony!J41,výkony!W41),IF(logic!$A$50=1,výkony!AK41,výkony!AX41))) -> 670 | L40: =IF(OR(L$12=0,$B40=0),0,IF(výkony!$D$8<0.7,IF(logic!$A$50=1,výkony!K41,výkony!X41),IF(logic!$A$50=1,výkony!AL41,výkony!AY41))) -> 803 | S40: 500 | T40: KSC-070050-00-10 | U40: KSC-090050-00-10 | V40: KSC-122050-00-10 | W40: KSC-150050-00-10 | Y40: 600 | Z40: KLN-110060-00-10 | AA40: KLN-142060-00-10 | AB40: KLN-170060-00-10
B41: =IF(AND($K$5=logic!$I$4,$M$5=logic!$I$4),1,IF(AND(C41>=$K$5,C41<=$M$5),1,0)) -> 1 | C41: =IF(logic!$K$64=2,výkony!B42/logic!$M$64,výkony!B42) -> 600 | D41: =IF(OR(D$12=0,$B41=0),0,IF(výkony!$D$8<0.7,IF(logic!$A$50=1,výkony!C42,výkony!P42),IF(logic!$A$50=1,výkony!AD42,výkony!AI42))) -> 263 | E41: =IF(OR(E$12=0,$B41=0),0,IF(výkony!$D$8<0.7,IF(logic!$A$50=1,výkony!D42,výkony!Q42),IF(logic!$A$50=1,výkony!AE42,výkony!AJ42))) -> 337 | F41: =IF(OR(F$12=0,$B41=0),0,IF(výkony!$D$8<0.7,IF(logic!$A$50=1,výkony!E42,výkony!R42),IF(logic!$A$50=1,výkony!AF42,výkony!AK42))) -> 458 | G41: =IF(OR(G$12=0,$B41=0),0,IF(výkony!$D$8<0.7,IF(logic!$A$50=1,výkony!F42,výkony!S42),IF(logic!$A$50=1,výkony!AG42,výkony!AL42))) -> 567 | I41: =IF(logic!$K$64=2,výkony!H42/logic!$M$64,výkony!H42) -> 600 | J41: =IF(OR(J$12=0,$B41=0),0,IF(výkony!$D$8<0.7,IF(logic!$A$50=1,výkony!I42,výkony!V42),IF(logic!$A$50=1,výkony!AJ42,výkony!AW42))) -> 593 | K41: =IF(OR(K$12=0,$B41=0),0,IF(výkony!$D$8<0.7,IF(logic!$A$50=1,výkony!J42,výkony!W42),IF(logic!$A$50=1,výkony!AK42,výkony!AX42))) -> 763 | L41: =IF(OR(L$12=0,$B41=0),0,IF(výkony!$D$8<0.7,IF(logic!$A$50=1,výkony!K42,výkony!X42),IF(logic!$A$50=1,výkony!AL42,výkony!AY42))) -> 914 | S41: 600 | T41: KSC-070060-00-10 | U41: KSC-090060-00-10 | V41: KSC-122060-00-10 | W41: KSC-150060-00-10
D43: KORALUX LINEAR EXCLUSIVE - M
C44: =logic!$L$4 -> Długość | D44: =logic!$K$4&" H ["&logic!$O$64&"]" -> Wysokość H [mm]
C45: ="L ["&logic!$O$64&"]" -> L [mm] | D45: =IF(logic!$K$64=2,výkony!C76/logic!$M$64,výkony!C76) -> 900 | E45: =IF(logic!$K$64=2,výkony!D76/logic!$M$64,výkony!D76) -> 1220 | F45: =IF(logic!$K$64=2,výkony!E76/logic!$M$64,výkony!E76) -> 1500 | G45: =IF(logic!$K$64=2,výkony!F76/logic!$M$64,výkony!F76) -> 1820
B46: =IF(AND($K$5=logic!$I$4,$M$5=logic!$I$4),1,IF(C46=$K$5,1,0)) -> 1 | C46: =IF(logic!$K$64=2,výkony!B77/logic!$M$64,výkony!B77) -> 450 | D46: =IF(OR(D$12=0,$B46=0),0,IF(výkony!$D$8<0.7,IF(logic!$A$50=1,výkony!C47,výkony!P47),IF(logic!$A$50=1,výkony!AD47,výkony!AI47))) -> 249 | E46: =IF(OR(E$12=0,$B46=0),0,IF(výkony!$D$8<0.7,IF(logic!$A$50=1,výkony!D47,výkony!Q47),IF(logic!$A$50=1,výkony!AE47,výkony!AJ47))) -> 338 | F46: =IF(OR(F$12=0,$B46=0),0,IF(výkony!$D$8<0.7,IF(logic!$A$50=1,výkony!E47,výkony!R47),IF(logic!$A$50=1,výkony!AF47,výkony!AK47))) -> 419 | G46: =IF(OR(G$12=0,$B46=0),0,IF(výkony!$D$8<0.7,IF(logic!$A$50=1,výkony!F47,výkony!S47),IF(logic!$A$50=1,výkony!AG47,výkony!AL47))) -> 516
B47: =IF(AND($K$5=logic!$I$4,$M$5=logic!$I$4),1,IF(AND(C47>=$K$5,C47<=$M$5),1,0)) -> 1 | C47: =IF(logic!$K$64=2,výkony!B78/logic!$M$64,výkony!B78) -> 600 | D47: =IF(OR(D$12=0,$B47=0),0,IF(výkony!$D$8<0.7,IF(logic!$A$50=1,výkony!C48,výkony!P48),IF(logic!$A$50=1,výkony!AD48,výkony!AI48))) -> 319 | E47: =IF(OR(E$12=0,$B47=0),0,IF(výkony!$D$8<0.7,IF(logic!$A$50=1,výkony!D48,výkony!Q48),IF(logic!$A$50=1,výkony!AE48,výkony!AJ48))) -> 433 | F47: =IF(OR(F$12=0,$B47=0),0,IF(výkony!$D$8<0.7,IF(logic!$A$50=1,výkony!E48,výkony!R48),IF(logic!$A$50=1,výkony!AF48,výkony!AK48))) -> 537 | G47: =IF(OR(G$12=0,$B47=0),0,IF(výkony!$D$8<0.7,IF(logic!$A$50=1,výkony!F48,výkony!S48),IF(logic!$A$50=1,výkony!AG48,výkony!AL48))) -> 662
B48: =IF(AND($K$5=logic!$I$4,$M$5=logic!$I$4),1,IF(AND(C48>=$K$5,C48<=$M$5),1,0)) -> 1 | C48: =IF(logic!$K$64=2,výkony!B79/logic!$M$64,výkony!B79) -> 750 | D48: =IF(OR(D$12=0,$B48=0),0,IF(výkony!$D$8<0.7,IF(logic!$A$50=1,výkony!C49,výkony!P49),IF(logic!$A$50=1,výkony!AD49,výkony!AI49))) -> 387 | E48: =IF(OR(E$12=0,$B48=0),0,IF(výkony!$D$8<0.7,IF(logic!$A$50=1,výkony!D49,výkony!Q49),IF(logic!$A$50=1,výkony!AE49,výkony!AJ49))) -> 526 | F48: =IF(OR(F$12=0,$B48=0),0,IF(výkony!$D$8<0.7,IF(logic!$A$50=1,výkony!E49,výkony!R49),IF(logic!$A$50=1,výkony!AF49,výkony!AK49))) -> 652 | G48: =IF(OR(G$12=0,$B48=0),0,IF(výkony!$D$8<0.7,IF(logic!$A$50=1,výkony!F49,výkony!S49),IF(logic!$A$50=1,výkony!AG49,výkony!AL49))) -> 802
D50: KORALUX RONDO MAX | I50: KORALUX RONDO MAX - M | T50: KORALUX RONDO MAX | Y50: KORALUX RONDO MAX - M
C51: =logic!$L$4 -> Długość | D51: =logic!$K$4&" H ["&logic!$O$64&"]" -> Wysokość H [mm] | I51: =logic!$K$4&" H ["&logic!$O$64&"]" -> Wysokość H [mm] | N51: =logic!$L$4 -> Długość | S51: =logic!$L$4 -> Długość | T51: =logic!$K$4&" H [mm]" -> Wysokość H [mm] | Y51: =logic!$K$4&" H [mm]" -> Wysokość H [mm] | AD51: =logic!$L$4 -> Długość
C52: ="L ["&logic!$O$64&"]" -> L [mm] | D52: =IF(logic!$K$64=2,výkony!C53/logic!$M$64,výkony!C53) -> 700 | E52: =IF(logic!$K$64=2,výkony!D53/logic!$M$64,výkony!D53) -> 900 | F52: =IF(logic!$K$64=2,výkony!E53/logic!$M$64,výkony!E53) -> 1220 | G52: =IF(logic!$K$64=2,výkony!F53/logic!$M$64,výkony!F53) -> 1500 | H52: =IF(logic!$K$64=2,výkony!G53/logic!$M$64,výkony!G53) -> 1820 | I52: =IF(logic!$K$64=2,výkony!H53/logic!$M$64,výkony!H53) -> 700 | J52: =IF(logic!$K$64=2,výkony!I53/logic!$M$64,výkony!I53) -> 900 | K52: =IF(logic!$K$64=2,výkony!J53/logic!$M$64,výkony!J53) -> 1220 | L52: =IF(logic!$K$64=2,výkony!K53/logic!$M$64,výkony!K53) -> 1500 | M52: =IF(logic!$K$64=2,výkony!L53/logic!$M$64,výkony!L53) -> 1820 | N52: ="L ["&logic!$O$64&"]" -> L [mm] | S52: L [mm] | T52: 700 | U52: 900 | V52: 1220 | W52: 1500 | X52: 1820 | Y52: 700 | Z52: 900 | AA52: 1220 | AB52: 1500 | AC52: 1820 | AD52: L [mm]
B53: =IF(AND($K$5=logic!$I$4,$M$5=logic!$I$4),1,IF(AND(C53>=$K$5,C53<=$M$5),1,0)) -> 1 | C53: =IF(logic!$K$64=2,výkony!B54/logic!$M$64,výkony!B54) -> 450 | D53: =IF(OR(D$12=0,$B53=0),0,IF(výkony!$D$8<0.7,IF(logic!$A$50=1,výkony!C54,výkony!P54),IF(logic!$A$50=1,výkony!AD54,výkony!AI54))) -> 335 | E53: =IF(OR(E$12=0,$B53=0),0,IF(výkony!$D$8<0.7,IF(logic!$A$50=1,výkony!D54,výkony!Q54),IF(logic!$A$50=1,výkony!AE54,výkony!AJ54))) -> 432 | F53: =IF(OR(F$12=0,$B53=0),0,IF(výkony!$D$8<0.7,IF(logic!$A$50=1,výkony!E54,výkony!R54),IF(logic!$A$50=1,výkony!AF54,výkony!AK54))) -> 589 | G53: =IF(OR(G$12=0,$B53=0),0,IF(výkony!$D$8<0.7,IF(logic!$A$50=1,výkony!F54,výkony!S54),IF(logic!$A$50=1,výkony!AG54,výkony!AL54))) -> 725 | H53: =IF(OR(H$12=0,$B53=0),0,IF(výkony!$D$8<0.7,IF(logic!$A$50=1,výkony!G54,výkony!T54),IF(logic!$A$50=1,výkony!AH54,výkony!AM54))) -> 879 | I53: =IF(OR(I$12=0,$B53=0),0,IF(výkony!$D$8<0.7,IF(logic!$A$50=1,výkony!H54,výkony!U54),IF(logic!$A$50=1,výkony!AI54,výkony!AN54))) -> 335 | J53: =IF(OR(J$12=0,$B53=0),0,IF(výkony!$D$8<0.7,IF(logic!$A$50=1,výkony!I54,výkony!V54),IF(logic!$A$50=1,výkony!AJ54,výkony!AO54))) -> 432 | K53: =IF(OR(K$12=0,$B53=0),0,IF(výkony!$D$8<0.7,IF(logic!$A$50=1,výkony!J54,výkony!W54),IF(logic!$A$50=1,výkony!AK54,výkony!AP54))) -> 589 | L53: =IF(OR(L$12=0,$B53=0),0,IF(výkony!$D$8<0.7,IF(logic!$A$50=1,výkony!K54,výkony!X54),IF(logic!$A$50=1,výkony!AL54,výkony!AQ54))) -> 725 | M53: =IF(OR(M$12=0,$B53=0),0,IF(výkony!$D$8<0.7,IF(logic!$A$50=1,výkony!L54,výkony!Y54),IF(logic!$A$50=1,výkony!AM54,výkony!AR54))) -> 879 | N53: =C53 -> 450 | S53: 445 | T53: ="KRM-"&IF(LEN(T$52)=3,"0"&T$52/10,T$52/10)&"0"&ROUND($S53/10,0)&"-00-10" -> KRM-070045-00-10 | U53: ="KRM-"&IF(LEN(U$52)=3,"0"&U$52/10,U$52/10)&"0"&ROUND($S53/10,0)&"-00-10" -> KRM-090045-00-10 | V53: KRM-122045-00-10 | W53: KRM-150045-00-10 | X53: KRM-182045-00-10 | Y53: ="KRM-"&IF(LEN(Y$52)=3,"0"&Y$52/10,Y$52/10)&"0"&ROUND($S53/10,0)&"-00M10" -> KRM-070045-00M10 | Z53: ="KRM-"&IF(LEN(Z$52)=3,"0"&Z$52/10,Z$52/10)&"0"&ROUND($S53/10,0)&"-00M10" -> KRM-090045-00M10 | AA53: KRM-122045-00M10 | AB53: KRM-150045-00M10 | AC53: KRM-182045-00M10 | AD53: 445
B54: =IF(AND($K$5=logic!$I$4,$M$5=logic!$I$4),1,IF(AND(C54>=$K$5,C54<=$M$5),1,0)) -> 1 | C54: =IF(logic!$K$64=2,výkony!B55/logic!$M$64,výkony!B55) -> 600 | D54: =IF(OR(D$12=0,$B54=0),0,IF(výkony!$D$8<0.7,IF(logic!$A$50=1,výkony!C55,výkony!P55),IF(logic!$A$50=1,výkony!AD55,výkony!AI55))) -> 444 | E54: =IF(OR(E$12=0,$B54=0),0,IF(výkony!$D$8<0.7,IF(logic!$A$50=1,výkony!D55,výkony!Q55),IF(logic!$A$50=1,výkony!AE55,výkony!AJ55))) -> 574 | F54: =IF(OR(F$12=0,$B54=0),0,IF(výkony!$D$8<0.7,IF(logic!$A$50=1,výkony!E55,výkony!R55),IF(logic!$A$50=1,výkony!AF55,výkony!AK55))) -> 781 | G54: =IF(OR(G$12=0,$B54=0),0,IF(výkony!$D$8<0.7,IF(logic!$A$50=1,výkony!F55,výkony!S55),IF(logic!$A$50=1,výkony!AG55,výkony!AL55))) -> 962 | H54: =IF(OR(H$12=0,$B54=0),0,IF(výkony!$D$8<0.7,IF(logic!$A$50=1,výkony!G55,výkony!T55),IF(logic!$A$50=1,výkony!AH55,výkony!AM55))) -> 1166 | I54: =IF(OR(I$12=0,$B54=0),0,IF(výkony!$D$8<0.7,IF(logic!$A$50=1,výkony!H55,výkony!U55),IF(logic!$A$50=1,výkony!AI55,výkony!AN55))) -> 444 | J54: =IF(OR(J$12=0,$B54=0),0,IF(výkony!$D$8<0.7,IF(logic!$A$50=1,výkony!I55,výkony!V55),IF(logic!$A$50=1,výkony!AJ55,výkony!AO55))) -> 574 | K54: =IF(OR(K$12=0,$B54=0),0,IF(výkony!$D$8<0.7,IF(logic!$A$50=1,výkony!J55,výkony!W55),IF(logic!$A$50=1,výkony!AK55,výkony!AP55))) -> 781 | L54: =IF(OR(L$12=0,$B54=0),0,IF(výkony!$D$8<0.7,IF(logic!$A$50=1,výkony!K55,výkony!X55),IF(logic!$A$50=1,výkony!AL55,výkony!AQ55))) -> 962 | M54: =IF(OR(M$12=0,$B54=0),0,IF(výkony!$D$8<0.7,IF(logic!$A$50=1,výkony!L55,výkony!Y55),IF(logic!$A$50=1,výkony!AM55,výkony!AR55))) -> 1166 | N54: =C54 -> 600 | S54: 595 | T54: ="KRM-"&IF(LEN(T$52)=3,"0"&T$52/10,T$52/10)&"0"&ROUND($S54/10,0)&"-00-10" -> KRM-070060-00-10 | U54: KRM-090060-00-10 | V54: KRM-122060-00-10 | W54: KRM-150060-00-10 | X54: KRM-182060-00-10 | Y54: ="KRM-"&IF(LEN(Y$52)=3,"0"&Y$52/10,Y$52/10)&"0"&ROUND($S54/10,0)&"-00M10" -> KRM-070060-00M10 | Z54: KRM-090060-00M10 | AA54: KRM-122060-00M10 | AB54: KRM-150060-00M10 | AC54: KRM-182060-00M10 | AD54: 595
B55: =IF(AND($K$5=logic!$I$4,$M$5=logic!$I$4),1,IF(AND(C55>=$K$5,C55<=$M$5),1,0)) -> 1 | C55: =IF(logic!$K$64=2,výkony!B56/logic!$M$64,výkony!B56) -> 750 | D55: =IF(OR(D$12=0,$B55=0),0,IF(výkony!$D$8<0.7,IF(logic!$A$50=1,výkony!C56,výkony!P56),IF(logic!$A$50=1,výkony!AD56,výkony!AI56))) -> 553 | E55: =IF(OR(E$12=0,$B55=0),0,IF(výkony!$D$8<0.7,IF(logic!$A$50=1,výkony!D56,výkony!Q56),IF(logic!$A$50=1,výkony!AE56,výkony!AJ56))) -> 714 | F55: =IF(OR(F$12=0,$B55=0),0,IF(výkony!$D$8<0.7,IF(logic!$A$50=1,výkony!E56,výkony!R56),IF(logic!$A$50=1,výkony!AF56,výkony!AK56))) -> 973 | G55: =IF(OR(G$12=0,$B55=0),0,IF(výkony!$D$8<0.7,IF(logic!$A$50=1,výkony!F56,výkony!S56),IF(logic!$A$50=1,výkony!AG56,výkony!AL56))) -> 1197 | H55: =IF(OR(H$12=0,$B55=0),0,IF(výkony!$D$8<0.7,IF(logic!$A$50=1,výkony!G56,výkony!T56),IF(logic!$A$50=1,výkony!AH56,výkony!AM56))) -> 1452 | I55: =IF(OR(I$12=0,$B55=0),0,IF(výkony!$D$8<0.7,IF(logic!$A$50=1,výkony!H56,výkony!U56),IF(logic!$A$50=1,výkony!AI56,výkony!AN56))) -> 553 | J55: =IF(OR(J$12=0,$B55=0),0,IF(výkony!$D$8<0.7,IF(logic!$A$50=1,výkony!I56,výkony!V56),IF(logic!$A$50=1,výkony!AJ56,výkony!AO56))) -> 714 | K55: =IF(OR(K$12=0,$B55=0),0,IF(výkony!$D$8<0.7,IF(logic!$A$50=1,výkony!J56,výkony!W56),IF(logic!$A$50=1,výkony!AK56,výkony!AP56))) -> 973 | L55: =IF(OR(L$12=0,$B55=0),0,IF(výkony!$D$8<0.7,IF(logic!$A$50=1,výkony!K56,výkony!X56),IF(logic!$A$50=1,výkony!AL56,výkony!AQ56))) -> 1197 | M55: =IF(OR(M$12=0,$B55=0),0,IF(výkony!$D$8<0.7,IF(logic!$A$50=1,výkony!L56,výkony!Y56),IF(logic!$A$50=1,výkony!AM56,výkony!AR56))) -> 1452 | N55: 750 | S55: 745 | T55: KRM-070075-00-10 | U55: KRM-090075-00-10 | V55: KRM-122075-00-10 | W55: KRM-150075-00-10 | X55: KRM-182075-00-10 | Y55: KRM-070075-00M10 | Z55: KRM-090075-00M10 | AA55: KRM-122075-00M10 | AB55: KRM-150075-00M10 | AC55: KRM-182075-00M10 | AD55: 745
D57: KORALUX RONDO COMFORT | I57: KORALUX RONDO COMFORT - M | T57: KORALUX RONDO COMFORT | Y57: KORALUX RONDO COMFORT - M
C58: =logic!$L$4 -> Długość | D58: =logic!$K$4&" H ["&logic!$O$64&"]" -> Wysokość H [mm] | I58: =logic!$K$4&" H ["&logic!$O$64&"]" -> Wysokość H [mm] | N58: =logic!$L$4 -> Długość | S58: =logic!$L$4 -> Długość | T58: =logic!$K$4&" H [mm]" -> Wysokość H [mm] | Y58: =logic!$K$4&" H [mm]" -> Wysokość H [mm] | AD58: =logic!$L$4 -> Długość
C59: ="L ["&logic!$O$64&"]" -> L [mm] | D59: =IF(logic!$K$64=2,výkony!C60/logic!$M$64,výkony!C60) -> 700 | E59: =IF(logic!$K$64=2,výkony!D60/logic!$M$64,výkony!D60) -> 900 | F59: =IF(logic!$K$64=2,výkony!E60/logic!$M$64,výkony!E60) -> 1220 | G59: =IF(logic!$K$64=2,výkony!F60/logic!$M$64,výkony!F60) -> 1500 | H59: =IF(logic!$K$64=2,výkony!G60/logic!$M$64,výkony!G60) -> 1820 | I59: =IF(logic!$K$64=2,výkony!H60/logic!$M$64,výkony!H60) -> 700 | J59: =IF(logic!$K$64=2,výkony!I60/logic!$M$64,výkony!I60) -> 900 | K59: =IF(logic!$K$64=2,výkony!J60/logic!$M$64,výkony!J60) -> 1220 | L59: =IF(logic!$K$64=2,výkony!K60/logic!$M$64,výkony!K60) -> 1500 | M59: =IF(logic!$K$64=2,výkony!L60/logic!$M$64,výkony!L60) -> 1820 | N59: ="L ["&logic!$O$64&"]" -> L [mm] | S59: L [mm] | T59: 700 | U59: 900 | V59: 1220 | W59: 1500 | X59: 1820 | Y59: 700 | Z59: 900 | AA59: 1220 | AB59: 1500 | AC59: 1820 | AD59: L [mm]
B60: =IF(AND($K$5=logic!$I$4,$M$5=logic!$I$4),1,IF(AND(C60>=$K$5,C60<=$M$5),1,0)) -> 1 | C60: =IF(logic!$K$64=2,výkony!B61/logic!$M$64,výkony!B61) -> 450 | D60: =IF(OR(D$12=0,$B60=0),0,IF(výkony!$D$8<0.7,IF(logic!$A$50=1,výkony!C61,výkony!P61),IF(logic!$A$50=1,výkony!AD61,výkony!AI61))) -> 287 | E60: =IF(OR(E$12=0,$B60=0),0,IF(výkony!$D$8<0.7,IF(logic!$A$50=1,výkony!D61,výkony!Q61),IF(logic!$A$50=1,výkony!AE61,výkony!AJ61))) -> 369 | F60: =IF(OR(F$12=0,$B60=0),0,IF(výkony!$D$8<0.7,IF(logic!$A$50=1,výkony!E61,výkony!R61),IF(logic!$A$50=1,výkony!AF61,výkony!AK61))) -> 504 | G60: =IF(OR(G$12=0,$B60=0),0,IF(výkony!$D$8<0.7,IF(logic!$A$50=1,výkony!F61,výkony!S61),IF(logic!$A$50=1,výkony!AG61,výkony!AL61))) -> 626 | H60: =IF(OR(H$12=0,$B60=0),0,IF(výkony!$D$8<0.7,IF(logic!$A$50=1,výkony!G61,výkony!T61),IF(logic!$A$50=1,výkony!AH61,výkony!AM61))) -> 772 | I60: =IF(OR(I$12=0,$B60=0),0,IF(výkony!$D$8<0.7,IF(logic!$A$50=1,výkony!H61,výkony!U61),IF(logic!$A$50=1,výkony!AI61,výkony!AN61))) -> 287 | J60: =IF(OR(J$12=0,$B60=0),0,IF(výkony!$D$8<0.7,IF(logic!$A$50=1,výkony!I61,výkony!V61),IF(logic!$A$50=1,výkony!AJ61,výkony!AO61))) -> 369 | K60: =IF(OR(K$12=0,$B60=0),0,IF(výkony!$D$8<0.7,IF(logic!$A$50=1,výkony!J61,výkony!W61),IF(logic!$A$50=1,výkony!AK61,výkony!AP61))) -> 504 | L60: =IF(OR(L$12=0,$B60=0),0,IF(výkony!$D$8<0.7,IF(logic!$A$50=1,výkony!K61,výkony!X61),IF(logic!$A$50=1,výkony!AL61,výkony!AQ61))) -> 626 | M60: =IF(OR(M$12=0,$B60=0),0,IF(výkony!$D$8<0.7,IF(logic!$A$50=1,výkony!L61,výkony!Y61),IF(logic!$A$50=1,výkony!AM61,výkony!AR61))) -> 772 | N60: =C60 -> 450 | S60: 445 | T60: ="KRT-"&IF(LEN(T$59)=3,"0"&T$59/10,T$59/10)&"0"&ROUND($S60/10,0)&"-00-10" -> KRT-070045-00-10 | U60: ="KRT-"&IF(LEN(U$59)=3,"0"&U$59/10,U$59/10)&"0"&ROUND($S60/10,0)&"-00-10" -> KRT-090045-00-10 | V60: KRT-122045-00-10 | W60: KRT-150045-00-10 | X60: KRT-182045-00-10 | Y60: ="KRT-"&IF(LEN(Y$59)=3,"0"&Y$59/10,Y$59/10)&"0"&ROUND($S60/10,0)&"-00M10" -> KRT-070045-00M10 | Z60: ="KRT-"&IF(LEN(Z$59)=3,"0"&Z$59/10,Z$59/10)&"0"&ROUND($S60/10,0)&"-00M10" -> KRT-090045-00M10 | AA60: KRT-122045-00M10 | AB60: KRT-150045-00M10 | AC60: KRT-182045-00M10 | AD60: 445
B61: =IF(AND($K$5=logic!$I$4,$M$5=logic!$I$4),1,IF(AND(C61>=$K$5,C61<=$M$5),1,0)) -> 1 | C61: =IF(logic!$K$64=2,výkony!B62/logic!$M$64,výkony!B62) -> 500 | D61: =IF(OR(D$12=0,$B61=0),0,IF(výkony!$D$8<0.7,IF(logic!$A$50=1,výkony!C62,výkony!P62),IF(logic!$A$50=1,výkony!AD62,výkony!AI62))) -> 315 | E61: =IF(OR(E$12=0,$B61=0),0,IF(výkony!$D$8<0.7,IF(logic!$A$50=1,výkony!D62,výkony!Q62),IF(logic!$A$50=1,výkony!AE62,výkony!AJ62))) -> 405 | F61: =IF(OR(F$12=0,$B61=0),0,IF(výkony!$D$8<0.7,IF(logic!$A$50=1,výkony!E62,výkony!R62),IF(logic!$A$50=1,výkony!AF62,výkony!AK62))) -> 553 | G61: =IF(OR(G$12=0,$B61=0),0,IF(výkony!$D$8<0.7,IF(logic!$A$50=1,výkony!F62,výkony!S62),IF(logic!$A$50=1,výkony!AG62,výkony!AL62))) -> 687 | H61: =IF(OR(H$12=0,$B61=0),0,IF(výkony!$D$8<0.7,IF(logic!$A$50=1,výkony!G62,výkony!T62),IF(logic!$A$50=1,výkony!AH62,výkony!AM62))) -> 848 | I61: =IF(OR(I$12=0,$B61=0),0,IF(výkony!$D$8<0.7,IF(logic!$A$50=1,výkony!H62,výkony!U62),IF(logic!$A$50=1,výkony!AI62,výkony!AN62))) -> 315 | J61: =IF(OR(J$12=0,$B61=0),0,IF(výkony!$D$8<0.7,IF(logic!$A$50=1,výkony!I62,výkony!V62),IF(logic!$A$50=1,výkony!AJ62,výkony!AO62))) -> 405 | K61: =IF(OR(K$12=0,$B61=0),0,IF(výkony!$D$8<0.7,IF(logic!$A$50=1,výkony!J62,výkony!W62),IF(logic!$A$50=1,výkony!AK62,výkony!AP62))) -> 553 | L61: =IF(OR(L$12=0,$B61=0),0,IF(výkony!$D$8<0.7,IF(logic!$A$50=1,výkony!K62,výkony!X62),IF(logic!$A$50=1,výkony!AL62,výkony!AQ62))) -> 687 | M61: =IF(OR(M$12=0,$B61=0),0,IF(výkony!$D$8<0.7,IF(logic!$A$50=1,výkony!L62,výkony!Y62),IF(logic!$A$50=1,výkony!AM62,výkony!AR62))) -> 848 | N61: =C61 -> 500 | S61: 495 | T61: ="KRT-"&IF(LEN(T$59)=3,"0"&T$59/10,T$59/10)&"0"&ROUND($S61/10,0)&"-00-10" -> KRT-070050-00-10 | U61: KRT-090050-00-10 | V61: KRT-122050-00-10 | W61: KRT-150050-00-10 | X61: KRT-182050-00-10 | Y61: ="KRT-"&IF(LEN(Y$59)=3,"0"&Y$59/10,Y$59/10)&"0"&ROUND($S61/10,0)&"-00M10" -> KRT-070050-00M10 | Z61: KRT-090050-00M10 | AA61: KRT-122050-00M10 | AB61: KRT-150050-00M10 | AC61: KRT-182050-00M10 | AD61: 495
B62: =IF(AND($K$5=logic!$I$4,$M$5=logic!$I$4),1,IF(AND(C62>=$K$5,C62<=$M$5),1,0)) -> 1 | C62: =IF(logic!$K$64=2,výkony!B63/logic!$M$64,výkony!B63) -> 600 | D62: =IF(OR(D$12=0,$B62=0),0,IF(výkony!$D$8<0.7,IF(logic!$A$50=1,výkony!C63,výkony!P63),IF(logic!$A$50=1,výkony!AD63,výkony!AI63))) -> 370 | E62: =IF(OR(E$12=0,$B62=0),0,IF(výkony!$D$8<0.7,IF(logic!$A$50=1,výkony!D63,výkony!Q63),IF(logic!$A$50=1,výkony!AE63,výkony!AJ63))) -> 475 | F62: =IF(OR(F$12=0,$B62=0),0,IF(výkony!$D$8<0.7,IF(logic!$A$50=1,výkony!E63,výkony!R63),IF(logic!$A$50=1,výkony!AF63,výkony!AK63))) -> 650 | G62: =IF(OR(G$12=0,$B62=0),0,IF(výkony!$D$8<0.7,IF(logic!$A$50=1,výkony!F63,výkony!S63),IF(logic!$A$50=1,výkony!AG63,výkony!AL63))) -> 808 | H62: =IF(OR(H$12=0,$B62=0),0,IF(výkony!$D$8<0.7,IF(logic!$A$50=1,výkony!G63,výkony!T63),IF(logic!$A$50=1,výkony!AH63,výkony!AM63))) -> 996 | I62: =IF(OR(I$12=0,$B62=0),0,IF(výkony!$D$8<0.7,IF(logic!$A$50=1,výkony!H63,výkony!U63),IF(logic!$A$50=1,výkony!AI63,výkony!AN63))) -> 370 | J62: =IF(OR(J$12=0,$B62=0),0,IF(výkony!$D$8<0.7,IF(logic!$A$50=1,výkony!I63,výkony!V63),IF(logic!$A$50=1,výkony!AJ63,výkony!AO63))) -> 475 | K62: =IF(OR(K$12=0,$B62=0),0,IF(výkony!$D$8<0.7,IF(logic!$A$50=1,výkony!J63,výkony!W63),IF(logic!$A$50=1,výkony!AK63,výkony!AP63))) -> 650 | L62: =IF(OR(L$12=0,$B62=0),0,IF(výkony!$D$8<0.7,IF(logic!$A$50=1,výkony!K63,výkony!X63),IF(logic!$A$50=1,výkony!AL63,výkony!AQ63))) -> 808 | M62: =IF(OR(M$12=0,$B62=0),0,IF(výkony!$D$8<0.7,IF(logic!$A$50=1,výkony!L63,výkony!Y63),IF(logic!$A$50=1,výkony!AM63,výkony!AR63))) -> 996 | N62: 600 | S62: 595 | T62: KRT-070060-00-10 | U62: KRT-090060-00-10 | V62: KRT-122060-00-10 | W62: KRT-150060-00-10 | X62: KRT-182060-00-10 | Y62: KRT-070060-00M10 | Z62: KRT-090060-00M10 | AA62: KRT-122060-00M10 | AB62: KRT-150060-00M10 | AC62: KRT-182060-00M10 | AD62: 595
B63: =IF(AND($K$5=logic!$I$4,$M$5=logic!$I$4),1,IF(AND(C63>=$K$5,C63<=$M$5),1,0)) -> 1 | C63: =IF(logic!$K$64=2,výkony!B64/logic!$M$64,výkony!B64) -> 750 | D63: =IF(OR(D$12=0,$B63=0),0,IF(výkony!$D$8<0.7,IF(logic!$A$50=1,výkony!C64,výkony!P64),IF(logic!$A$50=1,výkony!AD64,výkony!AI64))) -> 450 | E63: =IF(OR(E$12=0,$B63=0),0,IF(výkony!$D$8<0.7,IF(logic!$A$50=1,výkony!D64,výkony!Q64),IF(logic!$A$50=1,výkony!AE64,výkony!AJ64))) -> 579 | F63: =IF(OR(F$12=0,$B63=0),0,IF(výkony!$D$8<0.7,IF(logic!$A$50=1,výkony!E64,výkony!R64),IF(logic!$A$50=1,výkony!AF64,výkony!AK64))) -> 791 | G63: =IF(OR(G$12=0,$B63=0),0,IF(výkony!$D$8<0.7,IF(logic!$A$50=1,výkony!F64,výkony!S64),IF(logic!$A$50=1,výkony!AG64,výkony!AL64))) -> 984 | H63: =IF(OR(H$12=0,$B63=0),0,IF(výkony!$D$8<0.7,IF(logic!$A$50=1,výkony!G64,výkony!T64),IF(logic!$A$50=1,výkony!AH64,výkony!AM64))) -> 1213 | I63: =IF(OR(I$12=0,$B63=0),0,IF(výkony!$D$8<0.7,IF(logic!$A$50=1,výkony!H64,výkony!U64),IF(logic!$A$50=1,výkony!AI64,výkony!AN64))) -> 450 | J63: =IF(OR(J$12=0,$B63=0),0,IF(výkony!$D$8<0.7,IF(logic!$A$50=1,výkony!I64,výkony!V64),IF(logic!$A$50=1,výkony!AJ64,výkony!AO64))) -> 579 | K63: =IF(OR(K$12=0,$B63=0),0,IF(výkony!$D$8<0.7,IF(logic!$A$50=1,výkony!J64,výkony!W64),IF(logic!$A$50=1,výkony!AK64,výkony!AP64))) -> 791 | L63: =IF(OR(L$12=0,$B63=0),0,IF(výkony!$D$8<0.7,IF(logic!$A$50=1,výkony!K64,výkony!X64),IF(logic!$A$50=1,výkony!AL64,výkony!AQ64))) -> 984 | M63: =IF(OR(M$12=0,$B63=0),0,IF(výkony!$D$8<0.7,IF(logic!$A$50=1,výkony!L64,výkony!Y64),IF(logic!$A$50=1,výkony!AM64,výkony!AR64))) -> 1213 | N63: 750 | S63: 745 | T63: KRT-070075-00-10 | U63: KRT-090075-00-10 | V63: KRT-122075-00-10 | W63: KRT-150075-00-10 | X63: KRT-182075-00-10 | Y63: KRT-070075-00M10 | Z63: KRT-090075-00M10 | AA63: KRT-122075-00M10 | AB63: KRT-150075-00M10 | AC63: KRT-182075-00M10 | AD63: 745
D65: KORALUX RONDO CLASSIC | I65: KORALUX RONDO CLASSIC - M | T65: KORALUX RONDO CLASSIC | Y65: KORALUX RONDO CLASSIC - M
C66: =logic!$L$4 -> Długość | D66: =logic!$K$4&" H ["&logic!$O$64&"]" -> Wysokość H [mm] | I66: =logic!$K$4&" H ["&logic!$O$64&"]" -> Wysokość H [mm] | N66: =logic!$L$4 -> Długość | S66: =logic!$L$4 -> Długość | T66: =logic!$K$4&" H [mm]" -> Wysokość H [mm] | Y66: =logic!$K$4&" H [mm]" -> Wysokość H [mm] | AD66: =logic!$L$4 -> Długość
C67: ="L ["&logic!$O$64&"]" -> L [mm] | D67: =IF(logic!$K$64=2,výkony!C68/logic!$M$64,výkony!C68) -> 700 | E67: =IF(logic!$K$64=2,výkony!D68/logic!$M$64,výkony!D68) -> 900 | F67: =IF(logic!$K$64=2,výkony!E68/logic!$M$64,výkony!E68) -> 1220 | G67: =IF(logic!$K$64=2,výkony!F68/logic!$M$64,výkony!F68) -> 1500 | H67: =IF(logic!$K$64=2,výkony!G68/logic!$M$64,výkony!G68) -> 1820 | I67: =IF(logic!$K$64=2,výkony!H68/logic!$M$64,výkony!H68) -> 700 | J67: =IF(logic!$K$64=2,výkony!I68/logic!$M$64,výkony!I68) -> 900 | K67: =IF(logic!$K$64=2,výkony!J68/logic!$M$64,výkony!J68) -> 1220 | L67: =IF(logic!$K$64=2,výkony!K68/logic!$M$64,výkony!K68) -> 1500 | M67: =IF(logic!$K$64=2,výkony!L68/logic!$M$64,výkony!L68) -> 1820 | N67: ="L ["&logic!$O$64&"]" -> L [mm] | S67: L [mm] | T67: 700 | U67: 900 | V67: 1220 | W67: 1500 | X67: 1820 | Y67: 700 | Z67: 900 | AA67: 1220 | AB67: 1500 | AC67: 1820 | AD67: L [mm]
B68: =IF(AND($K$5=logic!$I$4,$M$5=logic!$I$4),1,IF(AND(C68>=$K$5,C68<=$M$5),1,0)) -> 1 | C68: =IF(logic!$K$64=2,výkony!B69/logic!$M$64,výkony!B69) -> 450 | D68: =IF(OR(D$12=0,$B68=0),0,IF(výkony!$D$8<0.7,IF(logic!$A$50=1,výkony!C69,výkony!P69),IF(logic!$A$50=1,výkony!AD69,výkony!AI69))) -> 255 | E68: =IF(OR(E$12=0,$B68=0),0,IF(výkony!$D$8<0.7,IF(logic!$A$50=1,výkony!D69,výkony!Q69),IF(logic!$A$50=1,výkony!AE69,výkony!AJ69))) -> 333 | F68: =IF(OR(F$12=0,$B68=0),0,IF(výkony!$D$8<0.7,IF(logic!$A$50=1,výkony!E69,výkony!R69),IF(logic!$A$50=1,výkony!AF69,výkony!AK69))) -> 462 | G68: =IF(OR(G$12=0,$B68=0),0,IF(výkony!$D$8<0.7,IF(logic!$A$50=1,výkony!F69,výkony!S69),IF(logic!$A$50=1,výkony!AG69,výkony!AL69))) -> 581 | H68: =IF(OR(H$12=0,$B68=0),0,IF(výkony!$D$8<0.7,IF(logic!$A$50=1,výkony!G69,výkony!T69),IF(logic!$A$50=1,výkony!AH69,výkony!AM69))) -> 725 | I68: =IF(OR(I$12=0,$B68=0),0,IF(výkony!$D$8<0.7,IF(logic!$A$50=1,výkony!H69,výkony!U69),IF(logic!$A$50=1,výkony!AI69,výkony!AN69))) -> 255 | J68: =IF(OR(J$12=0,$B68=0),0,IF(výkony!$D$8<0.7,IF(logic!$A$50=1,výkony!I69,výkony!V69),IF(logic!$A$50=1,výkony!AJ69,výkony!AO69))) -> 333 | K68: =IF(OR(K$12=0,$B68=0),0,IF(výkony!$D$8<0.7,IF(logic!$A$50=1,výkony!J69,výkony!W69),IF(logic!$A$50=1,výkony!AK69,výkony!AP69))) -> 462 | L68: =IF(OR(L$12=0,$B68=0),0,IF(výkony!$D$8<0.7,IF(logic!$A$50=1,výkony!K69,výkony!X69),IF(logic!$A$50=1,výkony!AL69,výkony!AQ69))) -> 581 | M68: =IF(OR(M$12=0,$B68=0),0,IF(výkony!$D$8<0.7,IF(logic!$A$50=1,výkony!L69,výkony!Y69),IF(logic!$A$50=1,výkony!AM69,výkony!AR69))) -> 725 | N68: =C68 -> 450 | S68: 445 | T68: ="KRC-"&IF(LEN(T$67)=3,"0"&T$67/10,T$67/10)&"0"&ROUND($S68/10,0)&"-00-10" -> KRC-070045-00-10 | U68: ="KRC-"&IF(LEN(U$67)=3,"0"&U$67/10,U$67/10)&"0"&ROUND($S68/10,0)&"-00-10" -> KRC-090045-00-10 | V68: KRC-122045-00-10 | W68: KRC-150045-00-10 | X68: KRC-182045-00-10 | Y68: ="KRC-"&IF(LEN(Y$67)=3,"0"&Y$67/10,Y$67/10)&"0"&ROUND($S68/10,0)&"-00M10" -> KRC-070045-00M10 | Z68: ="KRC-"&IF(LEN(Z$67)=3,"0"&Z$67/10,Z$67/10)&"0"&ROUND($S68/10,0)&"-00M10" -> KRC-090045-00M10 | AA68: KRC-122045-00M10 | AB68: KRC-150045-00M10 | AC68: KRC-182045-00M10 | AD68: 445
B69: 1 | C69: =IF(logic!$K$64=2,výkony!B70/logic!$M$64,výkony!B70) -> 500 | D69: =IF(OR(D$12=0,$B69=0),0,IF(výkony!$D$8<0.7,IF(logic!$A$50=1,výkony!C70,výkony!P70),IF(logic!$A$50=1,výkony!AD70,výkony!AI70))) -> 280 | E69: =IF(OR(E$12=0,$B69=0),0,IF(výkony!$D$8<0.7,IF(logic!$A$50=1,výkony!D70,výkony!Q70),IF(logic!$A$50=1,výkony!AE70,výkony!AJ70))) -> 365 | F69: =IF(OR(F$12=0,$B69=0),0,IF(výkony!$D$8<0.7,IF(logic!$A$50=1,výkony!E70,výkony!R70),IF(logic!$A$50=1,výkony!AF70,výkony!AK70))) -> 507 | G69: =IF(OR(G$12=0,$B69=0),0,IF(výkony!$D$8<0.7,IF(logic!$A$50=1,výkony!F70,výkony!S70),IF(logic!$A$50=1,výkony!AG70,výkony!AL70))) -> 638 | H69: =IF(OR(H$12=0,$B69=0),0,IF(výkony!$D$8<0.7,IF(logic!$A$50=1,výkony!G70,výkony!T70),IF(logic!$A$50=1,výkony!AH70,výkony!AM70))) -> 795 | I69: =IF(OR(I$12=0,$B69=0),0,IF(výkony!$D$8<0.7,IF(logic!$A$50=1,výkony!H70,výkony!U70),IF(logic!$A$50=1,výkony!AI70,výkony!AN70))) -> 280 | J69: =IF(OR(J$12=0,$B69=0),0,IF(výkony!$D$8<0.7,IF(logic!$A$50=1,výkony!I70,výkony!V70),IF(logic!$A$50=1,výkony!AJ70,výkony!AO70))) -> 365 | K69: =IF(OR(K$12=0,$B69=0),0,IF(výkony!$D$8<0.7,IF(logic!$A$50=1,výkony!J70,výkony!W70),IF(logic!$A$50=1,výkony!AK70,výkony!AP70))) -> 507 | L69: =IF(OR(L$12=0,$B69=0),0,IF(výkony!$D$8<0.7,IF(logic!$A$50=1,výkony!K70,výkony!X70),IF(logic!$A$50=1,výkony!AL70,výkony!AQ70))) -> 638 | M69: =IF(OR(M$12=0,$B69=0),0,IF(výkony!$D$8<0.7,IF(logic!$A$50=1,výkony!L70,výkony!Y70),IF(logic!$A$50=1,výkony!AM70,výkony!AR70))) -> 795 | N69: =C69 -> 500 | S69: 495 | T69: ="KRC-"&IF(LEN(T$67)=3,"0"&T$67/10,T$67/10)&"0"&ROUND($S69/10,0)&"-00-10" -> KRC-070050-00-10 | U69: KRC-090050-00-10 | V69: KRC-122050-00-10 | W69: KRC-150050-00-10 | X69: KRC-182050-00-10 | Y69: ="KRC-"&IF(LEN(Y$67)=3,"0"&Y$67/10,Y$67/10)&"0"&ROUND($S69/10,0)&"-00M10" -> KRC-070050-00M10 | Z69: KRC-090050-00M10 | AA69: KRC-122050-00M10 | AB69: KRC-150050-00M10 | AC69: KRC-182050-00M10 | AD69: 495
B70: =IF(AND($K$5=logic!$I$4,$M$5=logic!$I$4),1,IF(AND(C70>=$K$5,C70<=$M$5),1,0)) -> 1 | C70: =IF(logic!$K$64=2,výkony!B71/logic!$M$64,výkony!B71) -> 600 | D70: =IF(OR(D$12=0,$B70=0),0,IF(výkony!$D$8<0.7,IF(logic!$A$50=1,výkony!C71,výkony!P71),IF(logic!$A$50=1,výkony!AD71,výkony!AI71))) -> 329 | E70: =IF(OR(E$12=0,$B70=0),0,IF(výkony!$D$8<0.7,IF(logic!$A$50=1,výkony!D71,výkony!Q71),IF(logic!$A$50=1,výkony!AE71,výkony!AJ71))) -> 429 | F70: =IF(OR(F$12=0,$B70=0),0,IF(výkony!$D$8<0.7,IF(logic!$A$50=1,výkony!E71,výkony!R71),IF(logic!$A$50=1,výkony!AF71,výkony!AK71))) -> 596 | G70: =IF(OR(G$12=0,$B70=0),0,IF(výkony!$D$8<0.7,IF(logic!$A$50=1,výkony!F71,výkony!S71),IF(logic!$A$50=1,výkony!AG71,výkony!AL71))) -> 750 | H70: =IF(OR(H$12=0,$B70=0),0,IF(výkony!$D$8<0.7,IF(logic!$A$50=1,výkony!G71,výkony!T71),IF(logic!$A$50=1,výkony!AH71,výkony!AM71))) -> 934 | I70: =IF(OR(I$12=0,$B70=0),0,IF(výkony!$D$8<0.7,IF(logic!$A$50=1,výkony!H71,výkony!U71),IF(logic!$A$50=1,výkony!AI71,výkony!AN71))) -> 329 | J70: =IF(OR(J$12=0,$B70=0),0,IF(výkony!$D$8<0.7,IF(logic!$A$50=1,výkony!I71,výkony!V71),IF(logic!$A$50=1,výkony!AJ71,výkony!AO71))) -> 429 | K70: =IF(OR(K$12=0,$B70=0),0,IF(výkony!$D$8<0.7,IF(logic!$A$50=1,výkony!J71,výkony!W71),IF(logic!$A$50=1,výkony!AK71,výkony!AP71))) -> 596 | L70: =IF(OR(L$12=0,$B70=0),0,IF(výkony!$D$8<0.7,IF(logic!$A$50=1,výkony!K71,výkony!X71),IF(logic!$A$50=1,výkony!AL71,výkony!AQ71))) -> 750 | M70: =IF(OR(M$12=0,$B70=0),0,IF(výkony!$D$8<0.7,IF(logic!$A$50=1,výkony!L71,výkony!Y71),IF(logic!$A$50=1,výkony!AM71,výkony!AR71))) -> 934 | N70: 600 | S70: 595 | T70: KRC-070060-00-10 | U70: KRC-090060-00-10 | V70: KRC-122060-00-10 | W70: KRC-150060-00-10 | X70: KRC-182060-00-10 | Y70: KRC-070060-00M10 | Z70: KRC-090060-00M10 | AA70: KRC-122060-00M10 | AB70: KRC-150060-00M10 | AC70: KRC-182060-00M10 | AD70: 595
B71: =IF(AND($K$5=logic!$I$4,$M$5=logic!$I$4),1,IF(AND(C71>=$K$5,C71<=$M$5),1,0)) -> 1 | C71: =IF(logic!$K$64=2,výkony!B72/logic!$M$64,výkony!B72) -> 750 | D71: =IF(OR(D$12=0,$B71=0),0,IF(výkony!$D$8<0.7,IF(logic!$A$50=1,výkony!C72,výkony!P72),IF(logic!$A$50=1,výkony!AD72,výkony!AI72))) -> 400 | E71: =IF(OR(E$12=0,$B71=0),0,IF(výkony!$D$8<0.7,IF(logic!$A$50=1,výkony!D72,výkony!Q72),IF(logic!$A$50=1,výkony!AE72,výkony!AJ72))) -> 522 | F71: =IF(OR(F$12=0,$B71=0),0,IF(výkony!$D$8<0.7,IF(logic!$A$50=1,výkony!E72,výkony!R72),IF(logic!$A$50=1,výkony!AF72,výkony!AK72))) -> 726 | G71: =IF(OR(G$12=0,$B71=0),0,IF(výkony!$D$8<0.7,IF(logic!$A$50=1,výkony!F72,výkony!S72),IF(logic!$A$50=1,výkony!AG72,výkony!AL72))) -> 913 | H71: =IF(OR(H$12=0,$B71=0),0,IF(výkony!$D$8<0.7,IF(logic!$A$50=1,výkony!G72,výkony!T72),IF(logic!$A$50=1,výkony!AH72,výkony!AM72))) -> 1138 | I71: =IF(OR(I$12=0,$B71=0),0,IF(výkony!$D$8<0.7,IF(logic!$A$50=1,výkony!H72,výkony!U72),IF(logic!$A$50=1,výkony!AI72,výkony!AN72))) -> 400 | J71: =IF(OR(J$12=0,$B71=0),0,IF(výkony!$D$8<0.7,IF(logic!$A$50=1,výkony!I72,výkony!V72),IF(logic!$A$50=1,výkony!AJ72,výkony!AO72))) -> 522 | K71: =IF(OR(K$12=0,$B71=0),0,IF(výkony!$D$8<0.7,IF(logic!$A$50=1,výkony!J72,výkony!W72),IF(logic!$A$50=1,výkony!AK72,výkony!AP72))) -> 726 | L71: =IF(OR(L$12=0,$B71=0),0,IF(výkony!$D$8<0.7,IF(logic!$A$50=1,výkony!K72,výkony!X72),IF(logic!$A$50=1,výkony!AL72,výkony!AQ72))) -> 913 | M71: =IF(OR(M$12=0,$B71=0),0,IF(výkony!$D$8<0.7,IF(logic!$A$50=1,výkony!L72,výkony!Y72),IF(logic!$A$50=1,výkony!AM72,výkony!AR72))) -> 1138 | N71: 750 | S71: 745 | T71: KRC-070075-00-10 | U71: KRC-090075-00-10 | V71: KRC-122075-00-10 | W71: KRC-150075-00-10 | X71: KRC-182075-00-10 | Y71: KRC-070075-00M10 | Z71: KRC-090075-00M10 | AA71: KRC-122075-00M10 | AB71: KRC-150075-00M10 | AC71: KRC-182075-00M10 | AD71: 745
D73: KORALUX RONDO EXCLUSIVE - M | T73: KORALUX LINEAR EXCLUSIVE - M | Z73: KORALUX RONDO EXCLUSIVE - M
C74: =logic!$L$4 -> Długość | D74: =logic!$K$4&" H ["&logic!$O$64&"]" -> Wysokość H [mm] | S74: =logic!$L$4 -> Długość | T74: =logic!$K$4&" H [mm]" -> Wysokość H [mm] | Y74: =logic!$L$4 -> Długość | Z74: =logic!$K$4&" H [mm]" -> Wysokość H [mm]
C75: ="L ["&logic!$O$64&"]" -> L [mm] | D75: =IF(logic!$K$64=2,výkony!C76/logic!$M$64,výkony!C76) -> 900 | E75: =IF(logic!$K$64=2,výkony!D76/logic!$M$64,výkony!D76) -> 1220 | F75: =IF(logic!$K$64=2,výkony!E76/logic!$M$64,výkony!E76) -> 1500 | G75: =IF(logic!$K$64=2,výkony!F76/logic!$M$64,výkony!F76) -> 1820 | S75: L [mm] | T75: 900 | U75: 1220 | V75: 1500 | W75: 1820 | Y75: L [mm] | Z75: 900 | AA75: 1220 | AB75: 1500 | AC75: 1820
B76: =IF(AND($K$5=logic!$I$4,$M$5=logic!$I$4),1,IF(AND(C46>=$K$5,C46<=$M$5),1,0)) -> 1 | C76: =IF(logic!$K$64=2,výkony!B77/logic!$M$64,výkony!B77) -> 450 | D76: =IF(OR(D$12=0,$B76=0),0,IF(výkony!$D$8<0.7,IF(logic!$A$50=1,výkony!C77,výkony!P77),IF(logic!$A$50=1,výkony!AD77,výkony!AI77))) -> 249 | E76: =IF(OR(E$12=0,$B76=0),0,IF(výkony!$D$8<0.7,IF(logic!$A$50=1,výkony!D77,výkony!Q77),IF(logic!$A$50=1,výkony!AE77,výkony!AJ77))) -> 338 | F76: =IF(OR(F$12=0,$B76=0),0,IF(výkony!$D$8<0.7,IF(logic!$A$50=1,výkony!E77,výkony!R77),IF(logic!$A$50=1,výkony!AF77,výkony!AK77))) -> 419 | G76: =IF(OR(G$12=0,$B76=0),0,IF(výkony!$D$8<0.7,IF(logic!$A$50=1,výkony!F77,výkony!S77),IF(logic!$A$50=1,výkony!AG77,výkony!AL77))) -> 516 | S76: 445 | T76: ="KLX-"&IF(LEN(T$75)=3,"0"&T$75/10,T$75/10)&"0"&ROUND($S76/10,0)&"-00M27" -> KLX-090045-00M27 | U76: ="KLX-"&IF(LEN(U$75)=3,"0"&U$75/10,U$75/10)&"0"&ROUND($S76/10,0)&"-00M27" -> KLX-122045-00M27 | V76: KLX-150045-00M27 | W76: KLX-182045-00M27 | Y76: 450 | Z76: ="KRX-"&IF(LEN(Z$75)=3,"0"&Z$75/10,Z$75/10)&"0"&ROUND($S76/10,0)&"-00M27" -> KRX-090045-00M27 | AA76: ="KRX-"&IF(LEN(AA$75)=3,"0"&AA$75/10,AA$75/10)&"0"&ROUND($S76/10,0)&"-00M27" -> KRX-122045-00M27 | AB76: KRX-150045-00M27 | AC76: KRX-182045-00M27
B77: =IF(AND($K$5=logic!$I$4,$M$5=logic!$I$4),1,IF(AND(C47>=$K$5,C47<=$M$5),1,0)) -> 1 | C77: =IF(logic!$K$64=2,výkony!B78/logic!$M$64,výkony!B78) -> 600 | D77: =IF(OR(D$12=0,$B77=0),0,IF(výkony!$D$8<0.7,IF(logic!$A$50=1,výkony!C78,výkony!P78),IF(logic!$A$50=1,výkony!AD78,výkony!AI78))) -> 319 | E77: =IF(OR(E$12=0,$B77=0),0,IF(výkony!$D$8<0.7,IF(logic!$A$50=1,výkony!D78,výkony!Q78),IF(logic!$A$50=1,výkony!AE78,výkony!AJ78))) -> 433 | F77: =IF(OR(F$12=0,$B77=0),0,IF(výkony!$D$8<0.7,IF(logic!$A$50=1,výkony!E78,výkony!R78),IF(logic!$A$50=1,výkony!AF78,výkony!AK78))) -> 537 | G77: =IF(OR(G$12=0,$B77=0),0,IF(výkony!$D$8<0.7,IF(logic!$A$50=1,výkony!F78,výkony!S78),IF(logic!$A$50=1,výkony!AG78,výkony!AL78))) -> 662 | S77: 595 | T77: ="KLX-"&IF(LEN(T$75)=3,"0"&T$75/10,T$75/10)&"0"&ROUND($S77/10,0)&"-00M27" -> KLX-090060-00M27 | U77: KLX-122060-00M27 | V77: KLX-150060-00M27 | W77: KLX-182060-00M27 | Y77: 600 | Z77: ="KRX-"&IF(LEN(Z$75)=3,"0"&Z$75/10,Z$75/10)&"0"&ROUND($S77/10,0)&"-00M27" -> KRX-090060-00M27 | AA77: KRX-122060-00M27 | AB77: KRX-150060-00M27 | AC77: KRX-182060-00M27
B78: =IF(AND($K$5=logic!$I$4,$M$5=logic!$I$4),1,IF(AND(C48>=$K$5,C48<=$M$5),1,0)) -> 1 | C78: =IF(logic!$K$64=2,výkony!B79/logic!$M$64,výkony!B79) -> 750 | D78: =IF(OR(D$12=0,$B78=0),0,IF(výkony!$D$8<0.7,IF(logic!$A$50=1,výkony!C79,výkony!P79),IF(logic!$A$50=1,výkony!AD79,výkony!AI79))) -> 387 | E78: =IF(OR(E$12=0,$B78=0),0,IF(výkony!$D$8<0.7,IF(logic!$A$50=1,výkony!D79,výkony!Q79),IF(logic!$A$50=1,výkony!AE79,výkony!AJ79))) -> 526 | F78: =IF(OR(F$12=0,$B78=0),0,IF(výkony!$D$8<0.7,IF(logic!$A$50=1,výkony!E79,výkony!R79),IF(logic!$A$50=1,výkony!AF79,výkony!AK79))) -> 652 | G78: =IF(OR(G$12=0,$B78=0),0,IF(výkony!$D$8<0.7,IF(logic!$A$50=1,výkony!F79,výkony!S79),IF(logic!$A$50=1,výkony!AG79,výkony!AL79))) -> 802 | S78: 745 | T78: KLX-090075-00M27 | U78: KLX-122075-00M27 | V78: KLX-150075-00M27 | W78: KLX-182075-00M27 | Y78: 750 | Z78: KRX-090075-00M27 | AA78: KRX-122075-00M27 | AB78: KRX-150075-00M27 | AC78: KRX-182075-00M27

Sheet Databáze (hidden)
A1: =logic!AB24 -> Identyfikacja:
A6: =logic!Q24 -> Num | B6: =logic!R24 -> Model | C6: =logic!S24 -> Numer zamówienia | D6: =logic!U24 -> Wysokość [mm] [mm] | E6: =logic!V24 -> Długość [mm] [mm] | F6: =logic!W24 -> t1 | G6: =logic!X24 -> t2 | H6: =logic!Y24 -> ti | I6: =logic!Z24&" "&logic!$E$45 -> Wydajność cieplna [W] | J6: =logic!U4 -> Sposób podłączenia | K6: =logic!AA24 -> Notatka

Sheet výkony (hidden)
C2: 320 | E2: 1.2363 | J2: 2) LOGARITMICKÝ teplotní rozdíl
C3: =logic!P4 -> Temperatura: | O3: =C5 -> 75 | P3: - | Q3: =D5 -> 65 | S3: = | T3: =(O3-Q3)/(LN((P4-R4)/(P5-R5))) -> 49.83288655 | U3: K | AG3: 1) ARITMETICKÝ teplotní rozdíl
C4: t 1 | D4: t 2 | E4: t i | F4: D T | H4: =logic!Y4 -> Unité de chaleur: | O4: ln | P4: =C5 -> 75 | Q4: - | R4: =E5 -> 20 | W4: LOGARITMICKÝ ROZDÍL TEPLOT Δtln,N | AV4: ARITMETICKÝ ROZDÍL TEPLOT ΔtN
C5: =IF(logic!$K$64=1,KORADO!C4,výkony!C6) -> 75 | D5: =IF(logic!$K$64=1,KORADO!D4,výkony!D6) -> 65 | E5: =IF(logic!$K$64=1,KORADO!E4,výkony!E6) -> 20 | F5: =(C5+D5)/2-E5 -> 50 | H5: =logic!C45 -> W | I5: =logic!D45 -> 1 | P5: =D5 -> 65 | Q5: - | R5: =E5 -> 20 | Z5: 75 | AA5: - | AB5: 65 | AD5: = | AE5: =(Z5-AB5)/(LN((AA6-AC6)/(AA7-AC7))) -> 49.83288655 | AK5: =C5 -> 75 | AL5: + | AM5: =D5 -> 65 | AN5: - | AO5: =E5 -> 20 | AP5: = | AQ5: =(AK5+AM5)/AK6-AO5 -> 50 | AR5: K | AX5: 75 | AY5: + | AZ5: 65 | BA5: - | BB5: 20 | BC5: = | BD5: =(AX5+AZ5)/AX6-BB5 -> 50 | BE5: K
C6: =ROUND((t_1-32)/1.8,2) -> 23.89 | D6: =ROUND((t_2-32)/1.8,2) -> 18.33 | E6: =ROUND((t_i-32)/1.8,2) -> -6.67 | F6: =(C6+D6)/2-E6 -> 27.78 | Z6: ln | AA6: 75 | AB6: - | AC6: 20 | AK6: 2 | AX6: 2
M7: =C2 -> 320 | N7: * | O7: ( | P7: =T3 -> 49.83288655 | Q7: ) | R7: =E2 -> 1.2363 | S7: = | T7: =M7*POWER(P7/P8,R7) -> 320 | V7: W | AA7: 65 | AB7: - | AC7: 20 | AJ7: =U3 -> K | AK7: =C2 -> 320 | AL7: ( | AM7: =AQ5 -> 50 | AN7: ) | AO7: =E2 -> 1.2363 | AP7: = | AQ7: =AK7*POWER(AM7/AM8,AO7) -> 320 | AS7: W
C8: C = | D8: =(D5-E5)/(C5-E5) -> 0.8181818182 | F8: =(D5-E5)/(C5-E5) -> 0.8181818182 | P8: =AE5 -> 49.83288655 | AM8: 50
B10: LOGARITMICKÝ VÝPOČET | AC10: ARITMETICKÝ VÝPOČET
C13: VÝKONY PRO ZAPOJENÍ ZDOLA DOLŮ | O13: VÝKONY PRO ÚHLOPŘÍČNÉ ZAPOJENÍ | AD13: VÝKONY PRO ZAPOJENÍ ZDOLA DOLŮ | AP13: VÝKONY PRO ÚHLOPŘÍČNÉ ZAPOJENÍ
C14: KORALUX LINEAR MAX | H14: KORALUX LINEAR MAX - M | P14: KORALUX LINEAR MAX | U14: KORALUX LINEAR MAX - M | AD14: KORALUX LINEAR MAX | AI14: KORALUX LINEAR MAX - M | AQ14: KORALUX LINEAR MAX | AV14: KORALUX LINEAR MAX - M
B15: Délka L | C15: Výška H [mm] | H15: Výška H [mm] | M15: Délka L | O15: Délka L | P15: Výška H [mm] | U15: Výška H [mm] | Z15: Délka L | AC15: Délka L | AD15: Výška H [mm] | AI15: Výška H [mm] | AN15: Délka L | AP15: Délka L | AQ15: Výška H [mm] | AV15: Výška H [mm] | BA15: Délka L
B16: [mm] | C16: 700 | D16: 900 | E16: 1220 | F16: 1500 | G16: 1820 | H16: 700 | I16: 900 | J16: 1220 | K16: 1500 | L16: 1820 | M16: [mm] | O16: [mm] | P16: 700 | Q16: 900 | R16: 1220 | S16: 1500 | T16: 1820 | U16: 700 | V16: 900 | W16: 1220 | X16: 1500 | Y16: 1820 | Z16: [mm] | AC16: [mm] | AD16: 700 | AE16: 900 | AF16: 1220 | AG16: 1500 | AH16: 1820 | AI16: 700 | AJ16: 900 | AK16: 1220 | AL16: 1500 | AM16: 1820 | AN16: [mm] | AP16: [mm] | AQ16: 700 | AR16: 900 | AS16: 1220 | AT16: 1500 | AU16: 1820 | AV16: 700 | AW16: 900 | AX16: 1220 | AY16: 1500 | AZ16: 1820 | BA16: [mm]
B17: 450 | C17: =ROUND((((($C$5-$D$5)/(LN(($C$5-$E$5)/($D$5-$E$5))))/49.8328865456397)^vstupy!C22)*vstupy!C15*$I$5,0) -> 320 | D17: =ROUND((((($C$5-$D$5)/(LN(($C$5-$E$5)/($D$5-$E$5))))/49.8328865456397)^vstupy!D$22)*vstupy!D15*$I$5,0) -> 411 | E17: =ROUND((((($C$5-$D$5)/(LN(($C$5-$E$5)/($D$5-$E$5))))/49.8328865456397)^vstupy!E$22)*vstupy!E15*$I$5,0) -> 557 | F17: =ROUND((((($C$5-$D$5)/(LN(($C$5-$E$5)/($D$5-$E$5))))/49.8328865456397)^vstupy!F$22)*vstupy!F15*$I$5,0) -> 686 | G17: =ROUND((((($C$5-$D$5)/(LN(($C$5-$E$5)/($D$5-$E$5))))/49.8328865456397)^vstupy!G$22)*vstupy!G15*$I$5,0) -> 833 | H17: =ROUND((((($C$5-$D$5)/(LN(($C$5-$E$5)/($D$5-$E$5))))/49.8328865456397)^vstupy!H$22)*vstupy!H15*$I$5,0) -> 320 | I17: =ROUND((((($C$5-$D$5)/(LN(($C$5-$E$5)/($D$5-$E$5))))/49.8328865456397)^vstupy!I$22)*vstupy!I15*$I$5,0) -> 411 | J17: =ROUND((((($C$5-$D$5)/(LN(($C$5-$E$5)/($D$5-$E$5))))/49.8328865456397)^vstupy!J$22)*vstupy!J15*$I$5,0) -> 557 | K17: =ROUND((((($C$5-$D$5)/(LN(($C$5-$E$5)/($D$5-$E$5))))/49.8328865456397)^vstupy!K$22)*vstupy!K15*$I$5,0) -> 686 | L17: =ROUND((((($C$5-$D$5)/(LN(($C$5-$E$5)/($D$5-$E$5))))/49.8328865456397)^vstupy!L$22)*vstupy!L15*$I$5,0) -> 833 | M17: 450 | O17: 450 | P17: =ROUND((((($C$5-$D$5)/(LN(($C$5-$E$5)/($D$5-$E$5))))/49.8328865456397)^vstupy!P$22)*vstupy!P15*$I$5,0) -> 341 | Q17: =ROUND((((($C$5-$D$5)/(LN(($C$5-$E$5)/($D$5-$E$5))))/49.8328865456397)^vstupy!Q$22)*vstupy!Q15*$I$5,0) -> 436 | R17: =ROUND((((($C$5-$D$5)/(LN(($C$5-$E$5)/($D$5-$E$5))))/49.8328865456397)^vstupy!R$22)*vstupy!R15*$I$5,0) -> 592 | S17: =ROUND((((($C$5-$D$5)/(LN(($C$5-$E$5)/($D$5-$E$5))))/49.8328865456397)^vstupy!S$22)*vstupy!S15*$I$5,0) -> 735 | T17: =ROUND((((($C$5-$D$5)/(LN(($C$5-$E$5)/($D$5-$E$5))))/49.8328865456397)^vstupy!T$22)*vstupy!T15*$I$5,0) -> 906 | Z17: 450 | AC17: 450 | AD17: =ROUND((vstupy!C15*POWER($F$5/50,vstupy!C22))*$I$5,0) -> 320 | AE17: =ROUND((vstupy!D15*POWER($F$5/50,vstupy!D22))*$I$5,0) -> 411 | AF17: =ROUND((vstupy!E15*POWER($F$5/50,vstupy!E22))*$I$5,0) -> 557 | AG17: =ROUND((vstupy!F15*POWER($F$5/50,vstupy!F22))*$I$5,0) -> 686 | AH17: =ROUND((vstupy!G15*POWER($F$5/50,vstupy!G22))*$I$5,0) -> 833 | AI17: =ROUND((vstupy!H15*POWER($F$5/50,vstupy!H22))*$I$5,0) -> 320 | AJ17: =ROUND((vstupy!I15*POWER($F$5/50,vstupy!I22))*$I$5,0) -> 411 | AK17: =ROUND((vstupy!J15*POWER($F$5/50,vstupy!J22))*$I$5,0) -> 557 | AL17: =ROUND((vstupy!K15*POWER($F$5/50,vstupy!K22))*$I$5,0) -> 686 | AM17: =ROUND((vstupy!L15*POWER($F$5/50,vstupy!L22))*$I$5,0) -> 833 | AN17: 450 | AP17: 450 | AQ17: =ROUND((vstupy!P15*POWER($F$5/50,vstupy!P22))*$I$5,0) -> 341 | AR17: =ROUND((vstupy!Q15*POWER($F$5/50,vstupy!Q22))*$I$5,0) -> 436 | AS17: =ROUND((vstupy!R15*POWER($F$5/50,vstupy!R22))*$I$5,0) -> 592 | AT17: =ROUND((vstupy!S15*POWER($F$5/50,vstupy!S22))*$I$5,0) -> 735 | AU17: =ROUND((vstupy!T15*POWER($F$5/50,vstupy!T22))*$I$5,0) -> 906 | BA17: 450
B18: 600 | C18: =ROUND((((($C$5-$D$5)/(LN(($C$5-$E$5)/($D$5-$E$5))))/49.8328865456397)^vstupy!C23)*vstupy!C16*$I$5,0) -> 422 | D18: =ROUND((((($C$5-$D$5)/(LN(($C$5-$E$5)/($D$5-$E$5))))/49.8328865456397)^vstupy!D23)*vstupy!D16*$I$5,0) -> 543 | E18: =ROUND((((($C$5-$D$5)/(LN(($C$5-$E$5)/($D$5-$E$5))))/49.8328865456397)^vstupy!E23)*vstupy!E16*$I$5,0) -> 736 | F18: =ROUND((((($C$5-$D$5)/(LN(($C$5-$E$5)/($D$5-$E$5))))/49.8328865456397)^vstupy!F23)*vstupy!F16*$I$5,0) -> 906 | G18: =ROUND((((($C$5-$D$5)/(LN(($C$5-$E$5)/($D$5-$E$5))))/49.8328865456397)^vstupy!G23)*vstupy!G16*$I$5,0) -> 1101 | H18: =ROUND((((($C$5-$D$5)/(LN(($C$5-$E$5)/($D$5-$E$5))))/49.8328865456397)^vstupy!H23)*vstupy!H16*$I$5,0) -> 422 | I18: =ROUND((((($C$5-$D$5)/(LN(($C$5-$E$5)/($D$5-$E$5))))/49.8328865456397)^vstupy!I23)*vstupy!I16*$I$5,0) -> 543 | J18: =ROUND((((($C$5-$D$5)/(LN(($C$5-$E$5)/($D$5-$E$5))))/49.8328865456397)^vstupy!J23)*vstupy!J16*$I$5,0) -> 736 | K18: =ROUND((((($C$5-$D$5)/(LN(($C$5-$E$5)/($D$5-$E$5))))/49.8328865456397)^vstupy!K23)*vstupy!K16*$I$5,0) -> 906 | L18: =ROUND((((($C$5-$D$5)/(LN(($C$5-$E$5)/($D$5-$E$5))))/49.8328865456397)^vstupy!L23)*vstupy!L16*$I$5,0) -> 1101 | M18: 600 | O18: 600 | P18: =ROUND((((($C$5-$D$5)/(LN(($C$5-$E$5)/($D$5-$E$5))))/49.8328865456397)^vstupy!P23)*vstupy!P16*$I$5,0) -> 454 | Q18: =ROUND((((($C$5-$D$5)/(LN(($C$5-$E$5)/($D$5-$E$5))))/49.8328865456397)^vstupy!Q23)*vstupy!Q16*$I$5,0) -> 580 | R18: =ROUND((((($C$5-$D$5)/(LN(($C$5-$E$5)/($D$5-$E$5))))/49.8328865456397)^vstupy!R23)*vstupy!R16*$I$5,0) -> 789 | S18: =ROUND((((($C$5-$D$5)/(LN(($C$5-$E$5)/($D$5-$E$5))))/49.8328865456397)^vstupy!S23)*vstupy!S16*$I$5,0) -> 979 | T18: =ROUND((((($C$5-$D$5)/(LN(($C$5-$E$5)/($D$5-$E$5))))/49.8328865456397)^vstupy!T23)*vstupy!T16*$I$5,0) -> 1206 | Z18: 600 | AC18: 600 | AD18: =ROUND((vstupy!C16*POWER($F$5/50,vstupy!C23))*$I$5,0) -> 422 | AE18: =ROUND((vstupy!D16*POWER($F$5/50,vstupy!D23))*$I$5,0) -> 543 | AF18: =ROUND((vstupy!E16*POWER($F$5/50,vstupy!E23))*$I$5,0) -> 736 | AG18: =ROUND((vstupy!F16*POWER($F$5/50,vstupy!F23))*$I$5,0) -> 906 | AH18: =ROUND((vstupy!G16*POWER($F$5/50,vstupy!G23))*$I$5,0) -> 1101 | AI18: =ROUND((vstupy!H16*POWER($F$5/50,vstupy!H23))*$I$5,0) -> 422 | AJ18: =ROUND((vstupy!I16*POWER($F$5/50,vstupy!I23))*$I$5,0) -> 543 | AK18: =ROUND((vstupy!J16*POWER($F$5/50,vstupy!J23))*$I$5,0) -> 736 | AL18: =ROUND((vstupy!K16*POWER($F$5/50,vstupy!K23))*$I$5,0) -> 906 | AM18: =ROUND((vstupy!L16*POWER($F$5/50,vstupy!L23))*$I$5,0) -> 1101 | AN18: 600 | AP18: 600 | AQ18: =ROUND((vstupy!P16*POWER($F$5/50,vstupy!P23))*$I$5,0) -> 454 | AR18: =ROUND((vstupy!Q16*POWER($F$5/50,vstupy!Q23))*$I$5,0) -> 580 | AS18: =ROUND((vstupy!R16*POWER($F$5/50,vstupy!R23))*$I$5,0) -> 789 | AT18: =ROUND((vstupy!S16*POWER($F$5/50,vstupy!S23))*$I$5,0) -> 979 | AU18: =ROUND((vstupy!T16*POWER($F$5/50,vstupy!T23))*$I$5,0) -> 1206 | BA18: 600
B19: 750 | C19: =ROUND((((($C$5-$D$5)/(LN(($C$5-$E$5)/($D$5-$E$5))))/49.8328865456397)^vstupy!C24)*vstupy!C17*$I$5,0) -> 524 | D19: =ROUND((((($C$5-$D$5)/(LN(($C$5-$E$5)/($D$5-$E$5))))/49.8328865456397)^vstupy!D24)*vstupy!D17*$I$5,0) -> 673 | E19: =ROUND((((($C$5-$D$5)/(LN(($C$5-$E$5)/($D$5-$E$5))))/49.8328865456397)^vstupy!E24)*vstupy!E17*$I$5,0) -> 913 | F19: =ROUND((((($C$5-$D$5)/(LN(($C$5-$E$5)/($D$5-$E$5))))/49.8328865456397)^vstupy!F24)*vstupy!F17*$I$5,0) -> 1124 | G19: =ROUND((((($C$5-$D$5)/(LN(($C$5-$E$5)/($D$5-$E$5))))/49.8328865456397)^vstupy!G24)*vstupy!G17*$I$5,0) -> 1367 | H19: =ROUND((((($C$5-$D$5)/(LN(($C$5-$E$5)/($D$5-$E$5))))/49.8328865456397)^vstupy!H24)*vstupy!H17*$I$5,0) -> 524 | I19: =ROUND((((($C$5-$D$5)/(LN(($C$5-$E$5)/($D$5-$E$5))))/49.8328865456397)^vstupy!I24)*vstupy!I17*$I$5,0) -> 673 | J19: =ROUND((((($C$5-$D$5)/(LN(($C$5-$E$5)/($D$5-$E$5))))/49.8328865456397)^vstupy!J24)*vstupy!J17*$I$5,0) -> 913 | K19: =ROUND((((($C$5-$D$5)/(LN(($C$5-$E$5)/($D$5-$E$5))))/49.8328865456397)^vstupy!K24)*vstupy!K17*$I$5,0) -> 1124 | L19: =ROUND((((($C$5-$D$5)/(LN(($C$5-$E$5)/($D$5-$E$5))))/49.8328865456397)^vstupy!L24)*vstupy!L17*$I$5,0) -> 1367 | M19: 750 | O19: 750 | P19: =ROUND((((($C$5-$D$5)/(LN(($C$5-$E$5)/($D$5-$E$5))))/49.8328865456397)^vstupy!P24)*vstupy!P17*$I$5,0) -> 567 | Q19: =ROUND((((($C$5-$D$5)/(LN(($C$5-$E$5)/($D$5-$E$5))))/49.8328865456397)^vstupy!Q24)*vstupy!Q17*$I$5,0) -> 725 | R19: =ROUND((((($C$5-$D$5)/(LN(($C$5-$E$5)/($D$5-$E$5))))/49.8328865456397)^vstupy!R24)*vstupy!R17*$I$5,0) -> 985 | S19: =ROUND((((($C$5-$D$5)/(LN(($C$5-$E$5)/($D$5-$E$5))))/49.8328865456397)^vstupy!S24)*vstupy!S17*$I$5,0) -> 1222 | T19: =ROUND((((($C$5-$D$5)/(LN(($C$5-$E$5)/($D$5-$E$5))))/49.8328865456397)^vstupy!T24)*vstupy!T17*$I$5,0) -> 1507 | Z19: 750 | AC19: 750 | AD19: =ROUND((vstupy!C17*POWER($F$5/50,vstupy!C24))*$I$5,0) -> 524 | AE19: =ROUND((vstupy!D17*POWER($F$5/50,vstupy!D24))*$I$5,0) -> 673 | AF19: =ROUND((vstupy!E17*POWER($F$5/50,vstupy!E24))*$I$5,0) -> 913 | AG19: =ROUND((vstupy!F17*POWER($F$5/50,vstupy!F24))*$I$5,0) -> 1124 | AH19: =ROUND((vstupy!G17*POWER($F$5/50,vstupy!G24))*$I$5,0) -> 1367 | AI19: =ROUND((vstupy!H17*POWER($F$5/50,vstupy!H24))*$I$5,0) -> 524 | AJ19: =ROUND((vstupy!I17*POWER($F$5/50,vstupy!I24))*$I$5,0) -> 673 | AK19: =ROUND((vstupy!J17*POWER($F$5/50,vstupy!J24))*$I$5,0) -> 913 | AL19: =ROUND((vstupy!K17*POWER($F$5/50,vstupy!K24))*$I$5,0) -> 1124 | AM19: =ROUND((vstupy!L17*POWER($F$5/50,vstupy!L24))*$I$5,0) -> 1367 | AN19: 750 | AP19: 750 | AQ19: =ROUND((vstupy!P17*POWER($F$5/50,vstupy!P24))*$I$5,0) -> 567 | AR19: =ROUND((vstupy!Q17*POWER($F$5/50,vstupy!Q24))*$I$5,0) -> 725 | AS19: =ROUND((vstupy!R17*POWER($F$5/50,vstupy!R24))*$I$5,0) -> 985 | AT19: =ROUND((vstupy!S17*POWER($F$5/50,vstupy!S24))*$I$5,0) -> 1222 | AU19: =ROUND((vstupy!T17*POWER($F$5/50,vstupy!T24))*$I$5,0) -> 1507 | BA19: 750
C21: KORALUX LINEAR COMFORT | H21: KORALUX LINEAR COMFORT - M | P21: KORALUX LINEAR COMFORT | U21: KORALUX LINEAR COMFORT - M | AD21: KORALUX LINEAR COMFORT | AI21: KORALUX LINEAR COMFORT - M | AQ21: KORALUX LINEAR COMFORT | AV21: KORALUX LINEAR COMFORT - M
B22: Délka L | C22: Výška H [mm] | H22: Výška H [mm] | M22: Délka L | O22: Délka L | P22: Výška H [mm] | U22: Výška H [mm] | Z22: Délka L | AC22: Délka L | AD22: Výška H [mm] | AI22: Výška H [mm] | AN22: Délka L | AP22: Délka L | AQ22: Výška H [mm] | AV22: Výška H [mm] | BA22: Délka L
B23: [mm] | C23: 700 | D23: 900 | E23: 1220 | F23: 1500 | G23: 1820 | H23: 700 | I23: 900 | J23: 1220 | K23: 1500 | L23: 1820 | M23: [mm] | O23: [mm] | P23: 700 | Q23: 900 | R23: 1220 | S23: 1500 | T23: 1820 | U23: 700 | V23: 900 | W23: 1220 | X23: 1500 | Y23: 1820 | Z23: [mm] | AC23: [mm] | AD23: 700 | AE23: 900 | AF23: 1220 | AG23: 1500 | AH23: 1820 | AI23: 700 | AJ23: 900 | AK23: 1220 | AL23: 1500 | AM23: 1820 | AN23: [mm] | AP23: [mm] | AQ23: 700 | AR23: 900 | AS23: 1220 | AT23: 1500 | AU23: 1820 | AV23: 700 | AW23: 900 | AX23: 1220 | AY23: 1500 | AZ23: 1820 | BA23: [mm]
B24: 450 | C24: =ROUND((((($C$5-$D$5)/(LN(($C$5-$E$5)/($D$5-$E$5))))/49.8328865456397)^vstupy!C37)*vstupy!C29*$I$5,0) -> 287 | D24: =ROUND((((($C$5-$D$5)/(LN(($C$5-$E$5)/($D$5-$E$5))))/49.8328865456397)^vstupy!D37)*vstupy!D29*$I$5,0) -> 369 | E24: =ROUND((((($C$5-$D$5)/(LN(($C$5-$E$5)/($D$5-$E$5))))/49.8328865456397)^vstupy!E37)*vstupy!E29*$I$5,0) -> 504 | F24: =ROUND((((($C$5-$D$5)/(LN(($C$5-$E$5)/($D$5-$E$5))))/49.8328865456397)^vstupy!F37)*vstupy!F29*$I$5,0) -> 626 | G24: =ROUND((((($C$5-$D$5)/(LN(($C$5-$E$5)/($D$5-$E$5))))/49.8328865456397)^vstupy!G37)*vstupy!G29*$I$5,0) -> 772 | H24: =ROUND((((($C$5-$D$5)/(LN(($C$5-$E$5)/($D$5-$E$5))))/49.8328865456397)^vstupy!H37)*vstupy!H29*$I$5,0) -> 287 | I24: =ROUND((((($C$5-$D$5)/(LN(($C$5-$E$5)/($D$5-$E$5))))/49.8328865456397)^vstupy!I37)*vstupy!I29*$I$5,0) -> 369 | J24: =ROUND((((($C$5-$D$5)/(LN(($C$5-$E$5)/($D$5-$E$5))))/49.8328865456397)^vstupy!J37)*vstupy!J29*$I$5,0) -> 504 | K24: =ROUND((((($C$5-$D$5)/(LN(($C$5-$E$5)/($D$5-$E$5))))/49.8328865456397)^vstupy!K37)*vstupy!K29*$I$5,0) -> 626 | L24: =ROUND((((($C$5-$D$5)/(LN(($C$5-$E$5)/($D$5-$E$5))))/49.8328865456397)^vstupy!L37)*vstupy!L29*$I$5,0) -> 772 | M24: 450 | O24: 450 | P24: =ROUND((((($C$5-$D$5)/(LN(($C$5-$E$5)/($D$5-$E$5))))/49.8328865456397)^vstupy!P37)*vstupy!P29*$I$5,0) -> 312 | Q24: =ROUND((((($C$5-$D$5)/(LN(($C$5-$E$5)/($D$5-$E$5))))/49.8328865456397)^vstupy!Q37)*vstupy!Q29*$I$5,0) -> 402 | R24: =ROUND((((($C$5-$D$5)/(LN(($C$5-$E$5)/($D$5-$E$5))))/49.8328865456397)^vstupy!R37)*vstupy!R29*$I$5,0) -> 549 | S24: =ROUND((((($C$5-$D$5)/(LN(($C$5-$E$5)/($D$5-$E$5))))/49.8328865456397)^vstupy!S37)*vstupy!S29*$I$5,0) -> 682 | T24: =ROUND((((($C$5-$D$5)/(LN(($C$5-$E$5)/($D$5-$E$5))))/49.8328865456397)^vstupy!T37)*vstupy!T29*$I$5,0) -> 841 | Z24: 450 | AC24: 450 | AD24: =ROUND((vstupy!C29*POWER($F$5/50,vstupy!C37))*$I$5,0) -> 287 | AE24: =ROUND((vstupy!D29*POWER($F$5/50,vstupy!D37))*$I$5,0) -> 369 | AF24: =ROUND((vstupy!E29*POWER($F$5/50,vstupy!E37))*$I$5,0) -> 504 | AG24: =ROUND((vstupy!F29*POWER($F$5/50,vstupy!F37))*$I$5,0) -> 626 | AH24: =ROUND((vstupy!G29*POWER($F$5/50,vstupy!G37))*$I$5,0) -> 772 | AI24: =ROUND((vstupy!H29*POWER($F$5/50,vstupy!H37))*$I$5,0) -> 287 | AJ24: =ROUND((vstupy!I29*POWER($F$5/50,vstupy!I37))*$I$5,0) -> 369 | AK24: =ROUND((vstupy!J29*POWER($F$5/50,vstupy!J37))*$I$5,0) -> 504 | AL24: =ROUND((vstupy!K29*POWER($F$5/50,vstupy!K37))*$I$5,0) -> 626 | AM24: =ROUND((vstupy!L29*POWER($F$5/50,vstupy!L37))*$I$5,0) -> 772 | AN24: 450 | AP24: 450 | AQ24: =ROUND((vstupy!P29*POWER($F$5/50,vstupy!P37))*$I$5,0) -> 312 | AR24: =ROUND((vstupy!Q29*POWER($F$5/50,vstupy!Q37))*$I$5,0) -> 402 | AS24: =ROUND((vstupy!R29*POWER($F$5/50,vstupy!R37))*$I$5,0) -> 549 | AT24: =ROUND((vstupy!S29*POWER($F$5/50,vstupy!S37))*$I$5,0) -> 682 | AU24: =ROUND((vstupy!T29*POWER($F$5/50,vstupy!T37))*$I$5,0) -> 841 | BA24: 450
B25: 500 | C25: =ROUND((((($C$5-$D$5)/(LN(($C$5-$E$5)/($D$5-$E$5))))/49.8328865456397)^vstupy!C38)*vstupy!C30*$I$5,0) -> 315 | D25: =ROUND((((($C$5-$D$5)/(LN(($C$5-$E$5)/($D$5-$E$5))))/49.8328865456397)^vstupy!D38)*vstupy!D30*$I$5,0) -> 405 | E25: =ROUND((((($C$5-$D$5)/(LN(($C$5-$E$5)/($D$5-$E$5))))/49.8328865456397)^vstupy!E38)*vstupy!E30*$I$5,0) -> 553 | F25: =ROUND((((($C$5-$D$5)/(LN(($C$5-$E$5)/($D$5-$E$5))))/49.8328865456397)^vstupy!F38)*vstupy!F30*$I$5,0) -> 687 | G25: =ROUND((((($C$5-$D$5)/(LN(($C$5-$E$5)/($D$5-$E$5))))/49.8328865456397)^vstupy!G38)*vstupy!G30*$I$5,0) -> 848 | H25: =ROUND((((($C$5-$D$5)/(LN(($C$5-$E$5)/($D$5-$E$5))))/49.8328865456397)^vstupy!H38)*vstupy!H30*$I$5,0) -> 315 | I25: =ROUND((((($C$5-$D$5)/(LN(($C$5-$E$5)/($D$5-$E$5))))/49.8328865456397)^vstupy!I38)*vstupy!I30*$I$5,0) -> 405 | J25: =ROUND((((($C$5-$D$5)/(LN(($C$5-$E$5)/($D$5-$E$5))))/49.8328865456397)^vstupy!J38)*vstupy!J30*$I$5,0) -> 553 | K25: =ROUND((((($C$5-$D$5)/(LN(($C$5-$E$5)/($D$5-$E$5))))/49.8328865456397)^vstupy!K38)*vstupy!K30*$I$5,0) -> 687 | L25: =ROUND((((($C$5-$D$5)/(LN(($C$5-$E$5)/($D$5-$E$5))))/49.8328865456397)^vstupy!L38)*vstupy!L30*$I$5,0) -> 848 | M25: 500 | O25: 500 | P25: =ROUND((((($C$5-$D$5)/(LN(($C$5-$E$5)/($D$5-$E$5))))/49.8328865456397)^vstupy!P38)*vstupy!P30*$I$5,0) -> 342 | Q25: =ROUND((((($C$5-$D$5)/(LN(($C$5-$E$5)/($D$5-$E$5))))/49.8328865456397)^vstupy!Q38)*vstupy!Q30*$I$5,0) -> 440 | R25: =ROUND((((($C$5-$D$5)/(LN(($C$5-$E$5)/($D$5-$E$5))))/49.8328865456397)^vstupy!R38)*vstupy!R30*$I$5,0) -> 601 | S25: =ROUND((((($C$5-$D$5)/(LN(($C$5-$E$5)/($D$5-$E$5))))/49.8328865456397)^vstupy!S38)*vstupy!S30*$I$5,0) -> 747 | T25: =ROUND((((($C$5-$D$5)/(LN(($C$5-$E$5)/($D$5-$E$5))))/49.8328865456397)^vstupy!T38)*vstupy!T30*$I$5,0) -> 921 | AC25: 500 | AD25: =ROUND((vstupy!C30*POWER($F$5/50,vstupy!C38))*$I$5,0) -> 315 | AE25: =ROUND((vstupy!D30*POWER($F$5/50,vstupy!D38))*$I$5,0) -> 405 | AF25: =ROUND((vstupy!E30*POWER($F$5/50,vstupy!E38))*$I$5,0) -> 553 | AG25: =ROUND((vstupy!F30*POWER($F$5/50,vstupy!F38))*$I$5,0) -> 687 | AH25: =ROUND((vstupy!G30*POWER($F$5/50,vstupy!G38))*$I$5,0) -> 848 | AI25: =ROUND((vstupy!H30*POWER($F$5/50,vstupy!H38))*$I$5,0) -> 315 | AJ25: =ROUND((vstupy!I30*POWER($F$5/50,vstupy!I38))*$I$5,0) -> 405 | AK25: =ROUND((vstupy!J30*POWER($F$5/50,vstupy!J38))*$I$5,0) -> 553 | AL25: =ROUND((vstupy!K30*POWER($F$5/50,vstupy!K38))*$I$5,0) -> 687 | AM25: =ROUND((vstupy!L30*POWER($F$5/50,vstupy!L38))*$I$5,0) -> 848 | AN25: 500 | AP25: 500 | AQ25: =ROUND((vstupy!P30*POWER($F$5/50,vstupy!P38))*$I$5,0) -> 342 | AR25: =ROUND((vstupy!Q30*POWER($F$5/50,vstupy!Q38))*$I$5,0) -> 440 | AS25: =ROUND((vstupy!R30*POWER($F$5/50,vstupy!R38))*$I$5,0) -> 601 | AT25: =ROUND((vstupy!S30*POWER($F$5/50,vstupy!S38))*$I$5,0) -> 747 | AU25: =ROUND((vstupy!T30*POWER($F$5/50,vstupy!T38))*$I$5,0) -> 921 | BA25: 500
B26: 600 | C26: =ROUND((((($C$5-$D$5)/(LN(($C$5-$E$5)/($D$5-$E$5))))/49.8328865456397)^vstupy!C39)*vstupy!C31*$I$5,0) -> 370 | D26: =ROUND((((($C$5-$D$5)/(LN(($C$5-$E$5)/($D$5-$E$5))))/49.8328865456397)^vstupy!D39)*vstupy!D31*$I$5,0) -> 475 | E26: =ROUND((((($C$5-$D$5)/(LN(($C$5-$E$5)/($D$5-$E$5))))/49.8328865456397)^vstupy!E39)*vstupy!E31*$I$5,0) -> 650 | F26: =ROUND((((($C$5-$D$5)/(LN(($C$5-$E$5)/($D$5-$E$5))))/49.8328865456397)^vstupy!F39)*vstupy!F31*$I$5,0) -> 808 | G26: =ROUND((((($C$5-$D$5)/(LN(($C$5-$E$5)/($D$5-$E$5))))/49.8328865456397)^vstupy!G39)*vstupy!G31*$I$5,0) -> 996 | H26: =ROUND((((($C$5-$D$5)/(LN(($C$5-$E$5)/($D$5-$E$5))))/49.8328865456397)^vstupy!H39)*vstupy!H31*$I$5,0) -> 370 | I26: =ROUND((((($C$5-$D$5)/(LN(($C$5-$E$5)/($D$5-$E$5))))/49.8328865456397)^vstupy!I39)*vstupy!I31*$I$5,0) -> 475 | J26: =ROUND((((($C$5-$D$5)/(LN(($C$5-$E$5)/($D$5-$E$5))))/49.8328865456397)^vstupy!J39)*vstupy!J31*$I$5,0) -> 650 | K26: =ROUND((((($C$5-$D$5)/(LN(($C$5-$E$5)/($D$5-$E$5))))/49.8328865456397)^vstupy!K39)*vstupy!K31*$I$5,0) -> 808 | L26: =ROUND((((($C$5-$D$5)/(LN(($C$5-$E$5)/($D$5-$E$5))))/49.8328865456397)^vstupy!L39)*vstupy!L31*$I$5,0) -> 996 | M26: 600 | O26: 600 | P26: =ROUND((((($C$5-$D$5)/(LN(($C$5-$E$5)/($D$5-$E$5))))/49.8328865456397)^vstupy!P39)*vstupy!P31*$I$5,0) -> 400 | Q26: =ROUND((((($C$5-$D$5)/(LN(($C$5-$E$5)/($D$5-$E$5))))/49.8328865456397)^vstupy!Q39)*vstupy!Q31*$I$5,0) -> 515 | R26: =ROUND((((($C$5-$D$5)/(LN(($C$5-$E$5)/($D$5-$E$5))))/49.8328865456397)^vstupy!R39)*vstupy!R31*$I$5,0) -> 703 | S26: =ROUND((((($C$5-$D$5)/(LN(($C$5-$E$5)/($D$5-$E$5))))/49.8328865456397)^vstupy!S39)*vstupy!S31*$I$5,0) -> 874 | T26: =ROUND((((($C$5-$D$5)/(LN(($C$5-$E$5)/($D$5-$E$5))))/49.8328865456397)^vstupy!T39)*vstupy!T31*$I$5,0) -> 1078 | Z26: 600 | AC26: 600 | AD26: =ROUND((vstupy!C31*POWER($F$5/50,vstupy!C39))*$I$5,0) -> 370 | AE26: =ROUND((vstupy!D31*POWER($F$5/50,vstupy!D39))*$I$5,0) -> 475 | AF26: =ROUND((vstupy!E31*POWER($F$5/50,vstupy!E39))*$I$5,0) -> 650 | AG26: =ROUND((vstupy!F31*POWER($F$5/50,vstupy!F39))*$I$5,0) -> 808 | AH26: =ROUND((vstupy!G31*POWER($F$5/50,vstupy!G39))*$I$5,0) -> 996 | AI26: =ROUND((vstupy!H31*POWER($F$5/50,vstupy!H39))*$I$5,0) -> 370 | AJ26: =ROUND((vstupy!I31*POWER($F$5/50,vstupy!I39))*$I$5,0) -> 475 | AK26: =ROUND((vstupy!J31*POWER($F$5/50,vstupy!J39))*$I$5,0) -> 650 | AL26: =ROUND((vstupy!K31*POWER($F$5/50,vstupy!K39))*$I$5,0) -> 808 | AM26: =ROUND((vstupy!L31*POWER($F$5/50,vstupy!L39))*$I$5,0) -> 996 | AN26: 600 | AP26: 600 | AQ26: =ROUND((vstupy!P31*POWER($F$5/50,vstupy!P39))*$I$5,0) -> 400 | AR26: =ROUND((vstupy!Q31*POWER($F$5/50,vstupy!Q39))*$I$5,0) -> 515 | AS26: =ROUND((vstupy!R31*POWER($F$5/50,vstupy!R39))*$I$5,0) -> 703 | AT26: =ROUND((vstupy!S31*POWER($F$5/50,vstupy!S39))*$I$5,0) -> 874 | AU26: =ROUND((vstupy!T31*POWER($F$5/50,vstupy!T39))*$I$5,0) -> 1078 | BA26: 600
B27: 750 | C27: =ROUND((((($C$5-$D$5)/(LN(($C$5-$E$5)/($D$5-$E$5))))/49.8328865456397)^vstupy!C40)*vstupy!C32*$I$5,0) -> 450 | D27: =ROUND((((($C$5-$D$5)/(LN(($C$5-$E$5)/($D$5-$E$5))))/49.8328865456397)^vstupy!D40)*vstupy!D32*$I$5,0) -> 579 | E27: =ROUND((((($C$5-$D$5)/(LN(($C$5-$E$5)/($D$5-$E$5))))/49.8328865456397)^vstupy!E40)*vstupy!E32*$I$5,0) -> 791 | F27: =ROUND((((($C$5-$D$5)/(LN(($C$5-$E$5)/($D$5-$E$5))))/49.8328865456397)^vstupy!F40)*vstupy!F32*$I$5,0) -> 984 | G27: =ROUND((((($C$5-$D$5)/(LN(($C$5-$E$5)/($D$5-$E$5))))/49.8328865456397)^vstupy!G40)*vstupy!G32*$I$5,0) -> 1213 | H27: =ROUND((((($C$5-$D$5)/(LN(($C$5-$E$5)/($D$5-$E$5))))/49.8328865456397)^vstupy!H40)*vstupy!H32*$I$5,0) -> 450 | I27: =ROUND((((($C$5-$D$5)/(LN(($C$5-$E$5)/($D$5-$E$5))))/49.8328865456397)^vstupy!I40)*vstupy!I32*$I$5,0) -> 579 | J27: =ROUND((((($C$5-$D$5)/(LN(($C$5-$E$5)/($D$5-$E$5))))/49.8328865456397)^vstupy!J40)*vstupy!J32*$I$5,0) -> 791 | K27: =ROUND((((($C$5-$D$5)/(LN(($C$5-$E$5)/($D$5-$E$5))))/49.8328865456397)^vstupy!K40)*vstupy!K32*$I$5,0) -> 984 | L27: =ROUND((((($C$5-$D$5)/(LN(($C$5-$E$5)/($D$5-$E$5))))/49.8328865456397)^vstupy!L40)*vstupy!L32*$I$5,0) -> 1213 | M27: 750 | O27: 750 | P27: =ROUND((((($C$5-$D$5)/(LN(($C$5-$E$5)/($D$5-$E$5))))/49.8328865456397)^vstupy!P40)*vstupy!P32*$I$5,0) -> 485 | Q27: =ROUND((((($C$5-$D$5)/(LN(($C$5-$E$5)/($D$5-$E$5))))/49.8328865456397)^vstupy!Q40)*vstupy!Q32*$I$5,0) -> 624 | R27: =ROUND((((($C$5-$D$5)/(LN(($C$5-$E$5)/($D$5-$E$5))))/49.8328865456397)^vstupy!R40)*vstupy!R32*$I$5,0) -> 852 | S27: =ROUND((((($C$5-$D$5)/(LN(($C$5-$E$5)/($D$5-$E$5))))/49.8328865456397)^vstupy!S40)*vstupy!S32*$I$5,0) -> 1060 | T27: =ROUND((((($C$5-$D$5)/(LN(($C$5-$E$5)/($D$5-$E$5))))/49.8328865456397)^vstupy!T40)*vstupy!T32*$I$5,0) -> 1307 | Z27: 750 | AC27: 750 | AD27: =ROUND((vstupy!C32*POWER($F$5/50,vstupy!C40))*$I$5,0) -> 450 | AE27: =ROUND((vstupy!D32*POWER($F$5/50,vstupy!D40))*$I$5,0) -> 579 | AF27: =ROUND((vstupy!E32*POWER($F$5/50,vstupy!E40))*$I$5,0) -> 791 | AG27: =ROUND((vstupy!F32*POWER($F$5/50,vstupy!F40))*$I$5,0) -> 984 | AH27: =ROUND((vstupy!G32*POWER($F$5/50,vstupy!G40))*$I$5,0) -> 1213 | AI27: =ROUND((vstupy!H32*POWER($F$5/50,vstupy!H40))*$I$5,0) -> 450 | AJ27: =ROUND((vstupy!I32*POWER($F$5/50,vstupy!I40))*$I$5,0) -> 579 | AK27: =ROUND((vstupy!J32*POWER($F$5/50,vstupy!J40))*$I$5,0) -> 791 | AL27: =ROUND((vstupy!K32*POWER($F$5/50,vstupy!K40))*$I$5,0) -> 984 | AM27: =ROUND((vstupy!L32*POWER($F$5/50,vstupy!L40))*$I$5,0) -> 1213 | AN27: 750 | AP27: 750 | AQ27: =ROUND((vstupy!P32*POWER($F$5/50,vstupy!P40))*$I$5,0) -> 485 | AR27: =ROUND((vstupy!Q32*POWER($F$5/50,vstupy!Q40))*$I$5,0) -> 624 | AS27: =ROUND((vstupy!R32*POWER($F$5/50,vstupy!R40))*$I$5,0) -> 852 | AT27: =ROUND((vstupy!S32*POWER($F$5/50,vstupy!S40))*$I$5,0) -> 1060 | AU27: =ROUND((vstupy!T32*POWER($F$5/50,vstupy!T40))*$I$5,0) -> 1307 | BA27: 750
C29: KORALUX LINEAR CLASSIC | H29: KORALUX LINEAR CLASSIC - M | P29: KORALUX LINEAR CLASSIC | U29: KORALUX LINEAR CLASSIC - M | AD29: KORALUX LINEAR CLASSIC | AI29: KORALUX LINEAR CLASSIC - M | AQ29: KORALUX LINEAR CLASSIC | AV29: KORALUX LINEAR CLASSIC - M
B30: Délka L | C30: Výška H [mm] | H30: Výška H [mm] | M30: Délka L | O30: Délka L | P30: Výška H [mm] | U30: Výška H [mm] | Z30: Délka L | AC30: Délka L | AD30: Výška H [mm] | AI30: Výška H [mm] | AN30: Délka L | AP30: Délka L | AQ30: Výška H [mm] | AV30: Výška H [mm] | BA30: Délka L
B31: [mm] | C31: 700 | D31: 900 | E31: 1220 | F31: 1500 | G31: 1820 | H31: 700 | I31: 900 | J31: 1220 | K31: 1500 | L31: 1820 | M31: [mm] | O31: [mm] | P31: 700 | Q31: 900 | R31: 1220 | S31: 1500 | T31: 1820 | U31: 700 | V31: 900 | W31: 1220 | X31: 1500 | Y31: 1820 | Z31: [mm] | AC31: [mm] | AD31: 700 | AE31: 900 | AF31: 1220 | AG31: 1500 | AH31: 1820 | AI31: 700 | AJ31: 900 | AK31: 1220 | AL31: 1500 | AM31: 1820 | AN31: [mm] | AP31: [mm] | AQ31: 700 | AR31: 900 | AS31: 1220 | AT31: 1500 | AU31: 1820 | AV31: 700 | AW31: 900 | AX31: 1220 | AY31: 1500 | AZ31: 1820 | BA31: [mm]
B32: 450 | C32: =ROUND((((($C$5-$D$5)/(LN(($C$5-$E$5)/($D$5-$E$5))))/49.8328865456397)^vstupy!C53)*vstupy!C45*$I$5,0) -> 255 | D32: =ROUND((((($C$5-$D$5)/(LN(($C$5-$E$5)/($D$5-$E$5))))/49.8328865456397)^vstupy!D53)*vstupy!D45*$I$5,0) -> 333 | E32: =ROUND((((($C$5-$D$5)/(LN(($C$5-$E$5)/($D$5-$E$5))))/49.8328865456397)^vstupy!E53)*vstupy!E45*$I$5,0) -> 462 | F32: =ROUND((((($C$5-$D$5)/(LN(($C$5-$E$5)/($D$5-$E$5))))/49.8328865456397)^vstupy!F53)*vstupy!F45*$I$5,0) -> 581 | G32: =ROUND((((($C$5-$D$5)/(LN(($C$5-$E$5)/($D$5-$E$5))))/49.8328865456397)^vstupy!G53)*vstupy!G45*$I$5,0) -> 725 | H32: =ROUND((((($C$5-$D$5)/(LN(($C$5-$E$5)/($D$5-$E$5))))/49.8328865456397)^vstupy!H53)*vstupy!H45*$I$5,0) -> 255 | I32: =ROUND((((($C$5-$D$5)/(LN(($C$5-$E$5)/($D$5-$E$5))))/49.8328865456397)^vstupy!I53)*vstupy!I45*$I$5,0) -> 333 | J32: =ROUND((((($C$5-$D$5)/(LN(($C$5-$E$5)/($D$5-$E$5))))/49.8328865456397)^vstupy!J53)*vstupy!J45*$I$5,0) -> 462 | K32: =ROUND((((($C$5-$D$5)/(LN(($C$5-$E$5)/($D$5-$E$5))))/49.8328865456397)^vstupy!K53)*vstupy!K45*$I$5,0) -> 581 | L32: =ROUND((((($C$5-$D$5)/(LN(($C$5-$E$5)/($D$5-$E$5))))/49.8328865456397)^vstupy!L53)*vstupy!L45*$I$5,0) -> 725 | M32: 450 | O32: 450 | P32: =ROUND((((($C$5-$D$5)/(LN(($C$5-$E$5)/($D$5-$E$5))))/49.8328865456397)^vstupy!P53)*vstupy!P45*$I$5,0) -> 291 | Q32: =ROUND((((($C$5-$D$5)/(LN(($C$5-$E$5)/($D$5-$E$5))))/49.8328865456397)^vstupy!Q53)*vstupy!Q45*$I$5,0) -> 378 | R32: =ROUND((((($C$5-$D$5)/(LN(($C$5-$E$5)/($D$5-$E$5))))/49.8328865456397)^vstupy!R53)*vstupy!R45*$I$5,0) -> 519 | S32: =ROUND((((($C$5-$D$5)/(LN(($C$5-$E$5)/($D$5-$E$5))))/49.8328865456397)^vstupy!S53)*vstupy!S45*$I$5,0) -> 643 | T32: =ROUND((((($C$5-$D$5)/(LN(($C$5-$E$5)/($D$5-$E$5))))/49.8328865456397)^vstupy!T53)*vstupy!T45*$I$5,0) -> 786 | Z32: 450 | AC32: 450 | AD32: =ROUND((vstupy!C45*POWER($F$5/50,vstupy!C53))*$I$5,0) -> 255 | AE32: =ROUND((vstupy!D45*POWER($F$5/50,vstupy!D53))*$I$5,0) -> 333 | AF32: =ROUND((vstupy!E45*POWER($F$5/50,vstupy!E53))*$I$5,0) -> 462 | AG32: =ROUND((vstupy!F45*POWER($F$5/50,vstupy!F53))*$I$5,0) -> 581 | AH32: =ROUND((vstupy!G45*POWER($F$5/50,vstupy!G53))*$I$5,0) -> 725 | AI32: =ROUND((vstupy!H45*POWER($F$5/50,vstupy!H53))*$I$5,0) -> 255 | AJ32: =ROUND((vstupy!I45*POWER($F$5/50,vstupy!I53))*$I$5,0) -> 333 | AK32: =ROUND((vstupy!J45*POWER($F$5/50,vstupy!J53))*$I$5,0) -> 462 | AL32: =ROUND((vstupy!K45*POWER($F$5/50,vstupy!K53))*$I$5,0) -> 581 | AM32: =ROUND((vstupy!L45*POWER($F$5/50,vstupy!L53))*$I$5,0) -> 725 | AN32: 450 | AP32: 450 | AQ32: =ROUND((vstupy!P45*POWER($F$5/50,vstupy!P53))*$I$5,0) -> 291 | AR32: =ROUND((vstupy!Q45*POWER($F$5/50,vstupy!Q53))*$I$5,0) -> 378 | AS32: =ROUND((vstupy!R45*POWER($F$5/50,vstupy!R53))*$I$5,0) -> 519 | AT32: =ROUND((vstupy!S45*POWER($F$5/50,vstupy!S53))*$I$5,0) -> 643 | AU32: =ROUND((vstupy!T45*POWER($F$5/50,vstupy!T53))*$I$5,0) -> 786 | BA32: 450
B33: 500 | C33: =ROUND((((($C$5-$D$5)/(LN(($C$5-$E$5)/($D$5-$E$5))))/49.8328865456397)^vstupy!C54)*vstupy!C46*$I$5,0) -> 280 | D33: =ROUND((((($C$5-$D$5)/(LN(($C$5-$E$5)/($D$5-$E$5))))/49.8328865456397)^vstupy!D54)*vstupy!D46*$I$5,0) -> 365 | E33: =ROUND((((($C$5-$D$5)/(LN(($C$5-$E$5)/($D$5-$E$5))))/49.8328865456397)^vstupy!E54)*vstupy!E46*$I$5,0) -> 507 | F33: =ROUND((((($C$5-$D$5)/(LN(($C$5-$E$5)/($D$5-$E$5))))/49.8328865456397)^vstupy!F54)*vstupy!F46*$I$5,0) -> 638 | G33: =ROUND((((($C$5-$D$5)/(LN(($C$5-$E$5)/($D$5-$E$5))))/49.8328865456397)^vstupy!G54)*vstupy!G46*$I$5,0) -> 795 | H33: =ROUND((((($C$5-$D$5)/(LN(($C$5-$E$5)/($D$5-$E$5))))/49.8328865456397)^vstupy!H54)*vstupy!H46*$I$5,0) -> 280 | I33: =ROUND((((($C$5-$D$5)/(LN(($C$5-$E$5)/($D$5-$E$5))))/49.8328865456397)^vstupy!I54)*vstupy!I46*$I$5,0) -> 365 | J33: =ROUND((((($C$5-$D$5)/(LN(($C$5-$E$5)/($D$5-$E$5))))/49.8328865456397)^vstupy!J54)*vstupy!J46*$I$5,0) -> 507 | K33: =ROUND((((($C$5-$D$5)/(LN(($C$5-$E$5)/($D$5-$E$5))))/49.8328865456397)^vstupy!K54)*vstupy!K46*$I$5,0) -> 638 | L33: =ROUND((((($C$5-$D$5)/(LN(($C$5-$E$5)/($D$5-$E$5))))/49.8328865456397)^vstupy!L54)*vstupy!L46*$I$5,0) -> 795 | M33: 500 | O33: 500 | P33: =ROUND((((($C$5-$D$5)/(LN(($C$5-$E$5)/($D$5-$E$5))))/49.8328865456397)^vstupy!P54)*vstupy!P46*$I$5,0) -> 318 | Q33: =ROUND((((($C$5-$D$5)/(LN(($C$5-$E$5)/($D$5-$E$5))))/49.8328865456397)^vstupy!Q54)*vstupy!Q46*$I$5,0) -> 413 | R33: =ROUND((((($C$5-$D$5)/(LN(($C$5-$E$5)/($D$5-$E$5))))/49.8328865456397)^vstupy!R54)*vstupy!R46*$I$5,0) -> 567 | S33: =ROUND((((($C$5-$D$5)/(LN(($C$5-$E$5)/($D$5-$E$5))))/49.8328865456397)^vstupy!S54)*vstupy!S46*$I$5,0) -> 703 | T33: =ROUND((((($C$5-$D$5)/(LN(($C$5-$E$5)/($D$5-$E$5))))/49.8328865456397)^vstupy!T54)*vstupy!T46*$I$5,0) -> 859 | Z33: 500 | AC33: 500 | AD33: =ROUND((vstupy!C46*POWER($F$5/50,vstupy!C54))*$I$5,0) -> 280 | AE33: =ROUND((vstupy!D46*POWER($F$5/50,vstupy!D54))*$I$5,0) -> 365 | AF33: =ROUND((vstupy!E46*POWER($F$5/50,vstupy!E54))*$I$5,0) -> 507 | AG33: =ROUND((vstupy!F46*POWER($F$5/50,vstupy!F54))*$I$5,0) -> 638 | AH33: =ROUND((vstupy!G46*POWER($F$5/50,vstupy!G54))*$I$5,0) -> 795 | AI33: =ROUND((vstupy!H46*POWER($F$5/50,vstupy!H54))*$I$5,0) -> 280 | AJ33: =ROUND((vstupy!I46*POWER($F$5/50,vstupy!I54))*$I$5,0) -> 365 | AK33: =ROUND((vstupy!J46*POWER($F$5/50,vstupy!J54))*$I$5,0) -> 507 | AL33: =ROUND((vstupy!K46*POWER($F$5/50,vstupy!K54))*$I$5,0) -> 638 | AM33: =ROUND((vstupy!L46*POWER($F$5/50,vstupy!L54))*$I$5,0) -> 795 | AN33: 500 | AP33: 500 | AQ33: =ROUND((vstupy!P46*POWER($F$5/50,vstupy!P54))*$I$5,0) -> 318 | AR33: =ROUND((vstupy!Q46*POWER($F$5/50,vstupy!Q54))*$I$5,0) -> 413 | AS33: =ROUND((vstupy!R46*POWER($F$5/50,vstupy!R54))*$I$5,0) -> 567 | AT33: =ROUND((vstupy!S46*POWER($F$5/50,vstupy!S54))*$I$5,0) -> 703 | AU33: =ROUND((vstupy!T46*POWER($F$5/50,vstupy!T54))*$I$5,0) -> 859 | BA33: 500
B34: 600 | C34: =ROUND((((($C$5-$D$5)/(LN(($C$5-$E$5)/($D$5-$E$5))))/49.8328865456397)^vstupy!C55)*vstupy!C47*$I$5,0) -> 329 | D34: =ROUND((((($C$5-$D$5)/(LN(($C$5-$E$5)/($D$5-$E$5))))/49.8328865456397)^vstupy!D55)*vstupy!D47*$I$5,0) -> 429 | E34: =ROUND((((($C$5-$D$5)/(LN(($C$5-$E$5)/($D$5-$E$5))))/49.8328865456397)^vstupy!E55)*vstupy!E47*$I$5,0) -> 596 | F34: =ROUND((((($C$5-$D$5)/(LN(($C$5-$E$5)/($D$5-$E$5))))/49.8328865456397)^vstupy!F55)*vstupy!F47*$I$5,0) -> 750 | G34: =ROUND((((($C$5-$D$5)/(LN(($C$5-$E$5)/($D$5-$E$5))))/49.8328865456397)^vstupy!G55)*vstupy!G47*$I$5,0) -> 934 | H34: =ROUND((((($C$5-$D$5)/(LN(($C$5-$E$5)/($D$5-$E$5))))/49.8328865456397)^vstupy!H55)*vstupy!H47*$I$5,0) -> 329 | I34: =ROUND((((($C$5-$D$5)/(LN(($C$5-$E$5)/($D$5-$E$5))))/49.8328865456397)^vstupy!I55)*vstupy!I47*$I$5,0) -> 429 | J34: =ROUND((((($C$5-$D$5)/(LN(($C$5-$E$5)/($D$5-$E$5))))/49.8328865456397)^vstupy!J55)*vstupy!J47*$I$5,0) -> 596 | K34: =ROUND((((($C$5-$D$5)/(LN(($C$5-$E$5)/($D$5-$E$5))))/49.8328865456397)^vstupy!K55)*vstupy!K47*$I$5,0) -> 750 | L34: =ROUND((((($C$5-$D$5)/(LN(($C$5-$E$5)/($D$5-$E$5))))/49.8328865456397)^vstupy!L55)*vstupy!L47*$I$5,0) -> 934 | M34: 600 | O34: 600 | P34: =ROUND((((($C$5-$D$5)/(LN(($C$5-$E$5)/($D$5-$E$5))))/49.8328865456397)^vstupy!P55)*vstupy!P47*$I$5,0) -> 372 | Q34: =ROUND((((($C$5-$D$5)/(LN(($C$5-$E$5)/($D$5-$E$5))))/49.8328865456397)^vstupy!Q55)*vstupy!Q47*$I$5,0) -> 482 | R34: =ROUND((((($C$5-$D$5)/(LN(($C$5-$E$5)/($D$5-$E$5))))/49.8328865456397)^vstupy!R55)*vstupy!R47*$I$5,0) -> 662 | S34: =ROUND((((($C$5-$D$5)/(LN(($C$5-$E$5)/($D$5-$E$5))))/49.8328865456397)^vstupy!S55)*vstupy!S47*$I$5,0) -> 820 | T34: =ROUND((((($C$5-$D$5)/(LN(($C$5-$E$5)/($D$5-$E$5))))/49.8328865456397)^vstupy!T55)*vstupy!T47*$I$5,0) -> 1003 | Z34: 600 | AC34: 600 | AD34: =ROUND((vstupy!C47*POWER($F$5/50,vstupy!C55))*$I$5,0) -> 329 | AE34: =ROUND((vstupy!D47*POWER($F$5/50,vstupy!D55))*$I$5,0) -> 429 | AF34: =ROUND((vstupy!E47*POWER($F$5/50,vstupy!E55))*$I$5,0) -> 596 | AG34: =ROUND((vstupy!F47*POWER($F$5/50,vstupy!F55))*$I$5,0) -> 750 | AH34: =ROUND((vstupy!G47*POWER($F$5/50,vstupy!G55))*$I$5,0) -> 934 | AI34: =ROUND((vstupy!H47*POWER($F$5/50,vstupy!H55))*$I$5,0) -> 329 | AJ34: =ROUND((vstupy!I47*POWER($F$5/50,vstupy!I55))*$I$5,0) -> 429 | AK34: =ROUND((vstupy!J47*POWER($F$5/50,vstupy!J55))*$I$5,0) -> 596 | AL34: =ROUND((vstupy!K47*POWER($F$5/50,vstupy!K55))*$I$5,0) -> 750 | AM34: =ROUND((vstupy!L47*POWER($F$5/50,vstupy!L55))*$I$5,0) -> 934 | AN34: 600 | AP34: 600 | AQ34: =ROUND((vstupy!P47*POWER($F$5/50,vstupy!P55))*$I$5,0) -> 372 | AR34: =ROUND((vstupy!Q47*POWER($F$5/50,vstupy!Q55))*$I$5,0) -> 482 | AS34: =ROUND((vstupy!R47*POWER($F$5/50,vstupy!R55))*$I$5,0) -> 662 | AT34: =ROUND((vstupy!S47*POWER($F$5/50,vstupy!S55))*$I$5,0) -> 820 | AU34: =ROUND((vstupy!T47*POWER($F$5/50,vstupy!T55))*$I$5,0) -> 1003 | BA34: 600
B35: 750 | C35: =ROUND((((($C$5-$D$5)/(LN(($C$5-$E$5)/($D$5-$E$5))))/49.8328865456397)^vstupy!C56)*vstupy!C48*$I$5,0) -> 400 | D35: =ROUND((((($C$5-$D$5)/(LN(($C$5-$E$5)/($D$5-$E$5))))/49.8328865456397)^vstupy!D56)*vstupy!D48*$I$5,0) -> 522 | E35: =ROUND((((($C$5-$D$5)/(LN(($C$5-$E$5)/($D$5-$E$5))))/49.8328865456397)^vstupy!E56)*vstupy!E48*$I$5,0) -> 726 | F35: =ROUND((((($C$5-$D$5)/(LN(($C$5-$E$5)/($D$5-$E$5))))/49.8328865456397)^vstupy!F56)*vstupy!F48*$I$5,0) -> 913 | G35: =ROUND((((($C$5-$D$5)/(LN(($C$5-$E$5)/($D$5-$E$5))))/49.8328865456397)^vstupy!G56)*vstupy!G48*$I$5,0) -> 1138 | H35: =ROUND((((($C$5-$D$5)/(LN(($C$5-$E$5)/($D$5-$E$5))))/49.8328865456397)^vstupy!H56)*vstupy!H48*$I$5,0) -> 400 | I35: =ROUND((((($C$5-$D$5)/(LN(($C$5-$E$5)/($D$5-$E$5))))/49.8328865456397)^vstupy!I56)*vstupy!I48*$I$5,0) -> 522 | J35: =ROUND((((($C$5-$D$5)/(LN(($C$5-$E$5)/($D$5-$E$5))))/49.8328865456397)^vstupy!J56)*vstupy!J48*$I$5,0) -> 726 | K35: =ROUND((((($C$5-$D$5)/(LN(($C$5-$E$5)/($D$5-$E$5))))/49.8328865456397)^vstupy!K56)*vstupy!K48*$I$5,0) -> 913 | L35: =ROUND((((($C$5-$D$5)/(LN(($C$5-$E$5)/($D$5-$E$5))))/49.8328865456397)^vstupy!L56)*vstupy!L48*$I$5,0) -> 1138 | M35: 750 | O35: 750 | P35: =ROUND((((($C$5-$D$5)/(LN(($C$5-$E$5)/($D$5-$E$5))))/49.8328865456397)^vstupy!P56)*vstupy!P48*$I$5,0) -> 449 | Q35: =ROUND((((($C$5-$D$5)/(LN(($C$5-$E$5)/($D$5-$E$5))))/49.8328865456397)^vstupy!Q56)*vstupy!Q48*$I$5,0) -> 583 | R35: =ROUND((((($C$5-$D$5)/(LN(($C$5-$E$5)/($D$5-$E$5))))/49.8328865456397)^vstupy!R56)*vstupy!R48*$I$5,0) -> 799 | S35: =ROUND((((($C$5-$D$5)/(LN(($C$5-$E$5)/($D$5-$E$5))))/49.8328865456397)^vstupy!S56)*vstupy!S48*$I$5,0) -> 991 | T35: =ROUND((((($C$5-$D$5)/(LN(($C$5-$E$5)/($D$5-$E$5))))/49.8328865456397)^vstupy!T56)*vstupy!T48*$I$5,0) -> 1211 | Z35: 750 | AC35: 750 | AD35: =ROUND((vstupy!C48*POWER($F$5/50,vstupy!C56))*$I$5,0) -> 400 | AE35: =ROUND((vstupy!D48*POWER($F$5/50,vstupy!D56))*$I$5,0) -> 522 | AF35: =ROUND((vstupy!E48*POWER($F$5/50,vstupy!E56))*$I$5,0) -> 726 | AG35: =ROUND((vstupy!F48*POWER($F$5/50,vstupy!F56))*$I$5,0) -> 913 | AH35: =ROUND((vstupy!G48*POWER($F$5/50,vstupy!G56))*$I$5,0) -> 1138 | AI35: =ROUND((vstupy!H48*POWER($F$5/50,vstupy!H56))*$I$5,0) -> 400 | AJ35: =ROUND((vstupy!I48*POWER($F$5/50,vstupy!I56))*$I$5,0) -> 522 | AK35: =ROUND((vstupy!J48*POWER($F$5/50,vstupy!J56))*$I$5,0) -> 726 | AL35: =ROUND((vstupy!K48*POWER($F$5/50,vstupy!K56))*$I$5,0) -> 913 | AM35: =ROUND((vstupy!L48*POWER($F$5/50,vstupy!L56))*$I$5,0) -> 1138 | AN35: 750 | AP35: 750 | AQ35: =ROUND((vstupy!P48*POWER($F$5/50,vstupy!P56))*$I$5,0) -> 449 | AR35: =ROUND((vstupy!Q48*POWER($F$5/50,vstupy!Q56))*$I$5,0) -> 583 | AS35: =ROUND((vstupy!R48*POWER($F$5/50,vstupy!R56))*$I$5,0) -> 799 | AT35: =ROUND((vstupy!S48*POWER($F$5/50,vstupy!S56))*$I$5,0) -> 991 | AU35: =ROUND((vstupy!T48*POWER($F$5/50,vstupy!T56))*$I$5,0) -> 1211 | BA35: 750
C37: KORALUX STANDARD | P37: KORALUX STANDARD | AD37: KORALUX STANDARD | AQ37: KORALUX STANDARD
B38: Délka L | C38: Výška H [mm] | I38: KORALUX NEO | O38: Délka L | P38: Výška H [mm] | V38: KORALUX NEO | AC38: Délka L | AD38: Výška H [mm] | AJ38: KORALUX NEO | AP38: Délka L | AQ38: Výška H [mm] | AW38: KORALUX NEO
B39: [mm] | C39: 700 | D39: 900 | E39: 1220 | F39: 1500 | H39: Délka L | I39: Výška H [mm] | O39: [mm] | P39: 700 | Q39: 900 | R39: 1220 | S39: 1500 | U39: Délka L | V39: Výška H [mm] | AC39: [mm] | AD39: 700 | AE39: 900 | AF39: 1220 | AG39: 1500 | AI39: Délka L | AJ39: Výška H [mm] | AP39: [mm] | AQ39: 700 | AR39: 900 | AS39: 1220 | AT39: 1500 | AV39: Délka L | AW39: Výška H [mm]
B40: 400 | C40: =ROUND((((($C$5-$D$5)/(LN(($C$5-$E$5)/($D$5-$E$5))))/49.8328865456397)^vstupy!C68)*vstupy!C61*$I$5,0) -> 198 | D40: =ROUND((((($C$5-$D$5)/(LN(($C$5-$E$5)/($D$5-$E$5))))/49.8328865456397)^vstupy!D68)*vstupy!D61*$I$5,0) -> 254 | E40: =ROUND((((($C$5-$D$5)/(LN(($C$5-$E$5)/($D$5-$E$5))))/49.8328865456397)^vstupy!E68)*vstupy!E61*$I$5,0) -> 345 | F40: =ROUND((((($C$5-$D$5)/(LN(($C$5-$E$5)/($D$5-$E$5))))/49.8328865456397)^vstupy!F68)*vstupy!F61*$I$5,0) -> 427 | H40: [mm] | I40: 1100 | J40: 1420 | K40: 1700 | O40: 400 | P40: =ROUND((((($C$5-$D$5)/(LN(($C$5-$E$5)/($D$5-$E$5))))/49.8328865456397)^vstupy!P68)*vstupy!P61*$I$5,0) -> 213 | Q40: =ROUND((((($C$5-$D$5)/(LN(($C$5-$E$5)/($D$5-$E$5))))/49.8328865456397)^vstupy!Q68)*vstupy!Q61*$I$5,0) -> 275 | R40: =ROUND((((($C$5-$D$5)/(LN(($C$5-$E$5)/($D$5-$E$5))))/49.8328865456397)^vstupy!R68)*vstupy!R61*$I$5,0) -> 373 | S40: =ROUND((((($C$5-$D$5)/(LN(($C$5-$E$5)/($D$5-$E$5))))/49.8328865456397)^vstupy!S68)*vstupy!S61*$I$5,0) -> 458 | U40: [mm] | V40: 1095 | W40: 1415 | X40: 1695 | AC40: 400 | AD40: =ROUND((vstupy!C61*POWER($F$5/50,vstupy!C68))*$I$5,0) -> 198 | AE40: =ROUND((vstupy!D61*POWER($F$5/50,vstupy!D68))*$I$5,0) -> 254 | AF40: =ROUND((vstupy!E61*POWER($F$5/50,vstupy!E68))*$I$5,0) -> 345 | AG40: =ROUND((vstupy!F61*POWER($F$5/50,vstupy!F68))*$I$5,0) -> 427 | AI40: [mm] | AJ40: 1100 | AK40: 1420 | AL40: 1700 | AP40: 400 | AQ40: =ROUND((vstupy!P61*POWER($F$5/50,vstupy!P68))*$I$5,0) -> 213 | AR40: =ROUND((vstupy!Q61*POWER($F$5/50,vstupy!Q68))*$I$5,0) -> 275 | AS40: =ROUND((vstupy!R61*POWER($F$5/50,vstupy!R68))*$I$5,0) -> 373 | AT40: =ROUND((vstupy!S61*POWER($F$5/50,vstupy!S68))*$I$5,0) -> 458 | AV40: [mm] | AW40: 1095 | AX40: 1415 | AY40: 1695
B41: 500 | C41: =ROUND((((($C$5-$D$5)/(LN(($C$5-$E$5)/($D$5-$E$5))))/49.8328865456397)^vstupy!C69)*vstupy!C62*$I$5,0) -> 231 | D41: =ROUND((((($C$5-$D$5)/(LN(($C$5-$E$5)/($D$5-$E$5))))/49.8328865456397)^vstupy!D69)*vstupy!D62*$I$5,0) -> 297 | E41: =ROUND((((($C$5-$D$5)/(LN(($C$5-$E$5)/($D$5-$E$5))))/49.8328865456397)^vstupy!E69)*vstupy!E62*$I$5,0) -> 403 | F41: =ROUND((((($C$5-$D$5)/(LN(($C$5-$E$5)/($D$5-$E$5))))/49.8328865456397)^vstupy!F69)*vstupy!F62*$I$5,0) -> 499 | H41: 500 | I41: =ROUND((((($C$5-$D$5)/(LN(($C$5-$E$5)/($D$5-$E$5))))/49.8328865456397)^vstupy!C155)*vstupy!C149*$I$5,0) -> 520 | J41: =ROUND((((($C$5-$D$5)/(LN(($C$5-$E$5)/($D$5-$E$5))))/49.8328865456397)^vstupy!D155)*vstupy!D149*$I$5,0) -> 670 | K41: =ROUND((((($C$5-$D$5)/(LN(($C$5-$E$5)/($D$5-$E$5))))/49.8328865456397)^vstupy!E155)*vstupy!E149*$I$5,0) -> 803 | O41: 500 | P41: =ROUND((((($C$5-$D$5)/(LN(($C$5-$E$5)/($D$5-$E$5))))/49.8328865456397)^vstupy!P69)*vstupy!P62*$I$5,0) -> 249 | Q41: =ROUND((((($C$5-$D$5)/(LN(($C$5-$E$5)/($D$5-$E$5))))/49.8328865456397)^vstupy!Q69)*vstupy!Q62*$I$5,0) -> 322 | R41: =ROUND((((($C$5-$D$5)/(LN(($C$5-$E$5)/($D$5-$E$5))))/49.8328865456397)^vstupy!R69)*vstupy!R62*$I$5,0) -> 436 | S41: =ROUND((((($C$5-$D$5)/(LN(($C$5-$E$5)/($D$5-$E$5))))/49.8328865456397)^vstupy!S69)*vstupy!S62*$I$5,0) -> 536 | U41: 500 | AC41: 500 | AD41: =ROUND((vstupy!C62*POWER($F$5/50,vstupy!C69))*$I$5,0) -> 231 | AE41: =ROUND((vstupy!D62*POWER($F$5/50,vstupy!D69))*$I$5,0) -> 297 | AF41: =ROUND((vstupy!E62*POWER($F$5/50,vstupy!E69))*$I$5,0) -> 403 | AG41: =ROUND((vstupy!F62*POWER($F$5/50,vstupy!F69))*$I$5,0) -> 499 | AI41: 500 | AJ41: =ROUND((vstupy!C149*POWER($F$5/50,vstupy!C155))*$I$5,0) -> 520 | AK41: =ROUND((vstupy!D149*POWER($F$5/50,vstupy!D155))*$I$5,0) -> 670 | AL41: =ROUND((vstupy!E149*POWER($F$5/50,vstupy!E155))*$I$5,0) -> 803 | AP41: 500 | AQ41: =ROUND((vstupy!P62*POWER($F$5/50,vstupy!P69))*$I$5,0) -> 249 | AR41: =ROUND((vstupy!Q62*POWER($F$5/50,vstupy!Q69))*$I$5,0) -> 322 | AS41: =ROUND((vstupy!R62*POWER($F$5/50,vstupy!R69))*$I$5,0) -> 436 | AT41: =ROUND((vstupy!S62*POWER($F$5/50,vstupy!S69))*$I$5,0) -> 536 | AV41: 500
B42: 600 | C42: =ROUND((((($C$5-$D$5)/(LN(($C$5-$E$5)/($D$5-$E$5))))/49.8328865456397)^vstupy!C70)*vstupy!C63*$I$5,0) -> 263 | D42: =ROUND((((($C$5-$D$5)/(LN(($C$5-$E$5)/($D$5-$E$5))))/49.8328865456397)^vstupy!D70)*vstupy!D63*$I$5,0) -> 337 | E42: =ROUND((((($C$5-$D$5)/(LN(($C$5-$E$5)/($D$5-$E$5))))/49.8328865456397)^vstupy!E70)*vstupy!E63*$I$5,0) -> 458 | F42: =ROUND((((($C$5-$D$5)/(LN(($C$5-$E$5)/($D$5-$E$5))))/49.8328865456397)^vstupy!F70)*vstupy!F63*$I$5,0) -> 567 | H42: 600 | I42: =ROUND((((($C$5-$D$5)/(LN(($C$5-$E$5)/($D$5-$E$5))))/49.8328865456397)^vstupy!C156)*vstupy!C150*$I$5,0) -> 593 | J42: =ROUND((((($C$5-$D$5)/(LN(($C$5-$E$5)/($D$5-$E$5))))/49.8328865456397)^vstupy!D156)*vstupy!D150*$I$5,0) -> 763 | K42: =ROUND((((($C$5-$D$5)/(LN(($C$5-$E$5)/($D$5-$E$5))))/49.8328865456397)^vstupy!E156)*vstupy!E150*$I$5,0) -> 914 | O42: 600 | P42: =ROUND((((($C$5-$D$5)/(LN(($C$5-$E$5)/($D$5-$E$5))))/49.8328865456397)^vstupy!P70)*vstupy!P63*$I$5,0) -> 283 | Q42: =ROUND((((($C$5-$D$5)/(LN(($C$5-$E$5)/($D$5-$E$5))))/49.8328865456397)^vstupy!Q70)*vstupy!Q63*$I$5,0) -> 365 | R42: =ROUND((((($C$5-$D$5)/(LN(($C$5-$E$5)/($D$5-$E$5))))/49.8328865456397)^vstupy!R70)*vstupy!R63*$I$5,0) -> 496 | S42: =ROUND((((($C$5-$D$5)/(LN(($C$5-$E$5)/($D$5-$E$5))))/49.8328865456397)^vstupy!S70)*vstupy!S63*$I$5,0) -> 609 | U42: 600 | AC42: 600 | AD42: =ROUND((vstupy!C63*POWER($F$5/50,vstupy!C70))*$I$5,0) -> 263 | AE42: =ROUND((vstupy!D63*POWER($F$5/50,vstupy!D70))*$I$5,0) -> 337 | AF42: =ROUND((vstupy!E63*POWER($F$5/50,vstupy!E70))*$I$5,0) -> 458 | AG42: =ROUND((vstupy!F63*POWER($F$5/50,vstupy!F70))*$I$5,0) -> 567 | AI42: 600 | AJ42: =ROUND((vstupy!C150*POWER($F$5/50,vstupy!C156))*$I$5,0) -> 593 | AK42: =ROUND((vstupy!D150*POWER($F$5/50,vstupy!D156))*$I$5,0) -> 763 | AL42: =ROUND((vstupy!E150*POWER($F$5/50,vstupy!E156))*$I$5,0) -> 914 | AP42: 600 | AQ42: =ROUND((vstupy!P63*POWER($F$5/50,vstupy!P70))*$I$5,0) -> 283 | AR42: =ROUND((vstupy!Q63*POWER($F$5/50,vstupy!Q70))*$I$5,0) -> 365 | AS42: =ROUND((vstupy!R63*POWER($F$5/50,vstupy!R70))*$I$5,0) -> 496 | AT42: =ROUND((vstupy!S63*POWER($F$5/50,vstupy!S70))*$I$5,0) -> 609 | AV42: 600
C44: KORALUX LINEAR EXCLUSIVE - M | P44: KORALUX LINEAR EXCLUSIVE - M | AD44: KORALUX LINEAR EXCLUSIVE - M | AQ44: KORALUX LINEAR EXCLUSIVE - M
B45: Délka L | C45: Výška H [mm] | O45: Délka L | P45: Výška H [mm] | AC45: Délka L | AD45: Výška H [mm] | AP45: Délka L | AQ45: Výška H [mm]
B46: [mm] | C46: =logic!$L$4 -> Długość | D46: 1220 | E46: 1500 | F46: 1820 | O46: [mm] | P46: 900 | Q46: 1220 | R46: 1500 | S46: 1820 | AC46: [mm] | AD46: =logic!$L$4 -> Długość | AE46: 1220 | AF46: 1500 | AG46: 1820 | AP46: [mm] | AQ46: 900 | AR46: 1220 | AS46: 1500 | AT46: 1820
B47: 450 | C47: =ROUND((((($C$5-$D$5)/(LN(($C$5-$E$5)/($D$5-$E$5))))/49.8328865456397)^vstupy!C82)*vstupy!C75*$I$5,0) -> 249 | D47: =ROUND((((($C$5-$D$5)/(LN(($C$5-$E$5)/($D$5-$E$5))))/49.8328865456397)^vstupy!D82)*vstupy!D75*$I$5,0) -> 338 | E47: =ROUND((((($C$5-$D$5)/(LN(($C$5-$E$5)/($D$5-$E$5))))/49.8328865456397)^vstupy!E82)*vstupy!E75*$I$5,0) -> 419 | F47: =ROUND((((($C$5-$D$5)/(LN(($C$5-$E$5)/($D$5-$E$5))))/49.8328865456397)^vstupy!F82)*vstupy!F75*$I$5,0) -> 516 | O47: 450 | AC47: 450 | AD47: =ROUND((vstupy!C75*POWER($F$5/50,vstupy!C82))*$I$5,0) -> 249 | AE47: =ROUND((vstupy!D75*POWER($F$5/50,vstupy!D82))*$I$5,0) -> 338 | AF47: =ROUND((vstupy!E75*POWER($F$5/50,vstupy!E82))*$I$5,0) -> 419 | AG47: =ROUND((vstupy!F75*POWER($F$5/50,vstupy!F82))*$I$5,0) -> 516 | AP47: 450
B48: 600 | C48: =ROUND((((($C$5-$D$5)/(LN(($C$5-$E$5)/($D$5-$E$5))))/49.8328865456397)^vstupy!C83)*vstupy!C76*$I$5,0) -> 319 | D48: =ROUND((((($C$5-$D$5)/(LN(($C$5-$E$5)/($D$5-$E$5))))/49.8328865456397)^vstupy!D83)*vstupy!D76*$I$5,0) -> 433 | E48: =ROUND((((($C$5-$D$5)/(LN(($C$5-$E$5)/($D$5-$E$5))))/49.8328865456397)^vstupy!E83)*vstupy!E76*$I$5,0) -> 537 | F48: =ROUND((((($C$5-$D$5)/(LN(($C$5-$E$5)/($D$5-$E$5))))/49.8328865456397)^vstupy!F83)*vstupy!F76*$I$5,0) -> 662 | O48: 600 | AC48: 600 | AD48: =ROUND((vstupy!C76*POWER($F$5/50,vstupy!C83))*$I$5,0) -> 319 | AE48: =ROUND((vstupy!D76*POWER($F$5/50,vstupy!D83))*$I$5,0) -> 433 | AF48: =ROUND((vstupy!E76*POWER($F$5/50,vstupy!E83))*$I$5,0) -> 537 | AG48: =ROUND((vstupy!F76*POWER($F$5/50,vstupy!F83))*$I$5,0) -> 662 | AP48: 600
B49: 750 | C49: =ROUND((((($C$5-$D$5)/(LN(($C$5-$E$5)/($D$5-$E$5))))/49.8328865456397)^vstupy!C84)*vstupy!C77*$I$5,0) -> 387 | D49: =ROUND((((($C$5-$D$5)/(LN(($C$5-$E$5)/($D$5-$E$5))))/49.8328865456397)^vstupy!D84)*vstupy!D77*$I$5,0) -> 526 | E49: =ROUND((((($C$5-$D$5)/(LN(($C$5-$E$5)/($D$5-$E$5))))/49.8328865456397)^vstupy!E84)*vstupy!E77*$I$5,0) -> 652 | F49: =ROUND((((($C$5-$D$5)/(LN(($C$5-$E$5)/($D$5-$E$5))))/49.8328865456397)^vstupy!F84)*vstupy!F77*$I$5,0) -> 802 | O49: 750 | AC49: 750 | AD49: =ROUND((vstupy!C77*POWER($F$5/50,vstupy!C84))*$I$5,0) -> 387 | AE49: =ROUND((vstupy!D77*POWER($F$5/50,vstupy!D84))*$I$5,0) -> 526 | AF49: =ROUND((vstupy!E77*POWER($F$5/50,vstupy!E84))*$I$5,0) -> 652 | AG49: =ROUND((vstupy!F77*POWER($F$5/50,vstupy!F84))*$I$5,0) -> 802 | AP49: 750
C51: KORALUX RONDO MAX | H51: KORALUX RONDO MAX - M | P51: KORALUX RONDO MAX | U51: KORALUX RONDO MAX - M | AD51: KORALUX RONDO MAX | AI51: KORALUX RONDO MAX - M | AQ51: KORALUX RONDO MAX | AV51: KORALUX RONDO MAX - M
B52: Délka L | C52: Výška H [mm] | H52: Výška H [mm] | M52: Délka L | O52: Délka L | P52: Výška H [mm] | U52: Výška H [mm] | Z52: Délka L | AC52: Délka L | AD52: Výška H [mm] | AI52: Výška H [mm] | AN52: Délka L | AP52: Délka L | AQ52: Výška H [mm] | AV52: Výška H [mm] | BA52: Délka L
B53: [mm] | C53: 700 | D53: 900 | E53: 1220 | F53: 1500 | G53: 1820 | H53: 700 | I53: 900 | J53: 1220 | K53: 1500 | L53: 1820 | M53: [mm] | O53: [mm] | P53: 700 | Q53: 900 | R53: 1220 | S53: 1500 | T53: 1820 | U53: 700 | V53: 900 | W53: 1220 | X53: 1500 | Y53: 1820 | Z53: [mm] | AC53: [mm] | AD53: 700 | AE53: 900 | AF53: 1220 | AG53: 1500 | AH53: 1820 | AI53: 700 | AJ53: 900 | AK53: 1220 | AL53: 1500 | AM53: 1820 | AN53: [mm] | AP53: [mm] | AQ53: 700 | AR53: 900 | AS53: 1220 | AT53: 1500 | AU53: 1820 | AV53: 700 | AW53: 900 | AX53: 1220 | AY53: 1500 | AZ53: 1820 | BA53: [mm]
B54: 450 | C54: =ROUND((((($C$5-$D$5)/(LN(($C$5-$E$5)/($D$5-$E$5))))/49.8328865456397)^vstupy!C96)*vstupy!C89*$I$5,0) -> 335 | D54: =ROUND((((($C$5-$D$5)/(LN(($C$5-$E$5)/($D$5-$E$5))))/49.8328865456397)^vstupy!D96)*vstupy!D89*$I$5,0) -> 432 | E54: =ROUND((((($C$5-$D$5)/(LN(($C$5-$E$5)/($D$5-$E$5))))/49.8328865456397)^vstupy!E96)*vstupy!E89*$I$5,0) -> 589 | F54: =ROUND((((($C$5-$D$5)/(LN(($C$5-$E$5)/($D$5-$E$5))))/49.8328865456397)^vstupy!F96)*vstupy!F89*$I$5,0) -> 725 | G54: =ROUND((((($C$5-$D$5)/(LN(($C$5-$E$5)/($D$5-$E$5))))/49.8328865456397)^vstupy!G96)*vstupy!G89*$I$5,0) -> 879 | H54: =ROUND((((($C$5-$D$5)/(LN(($C$5-$E$5)/($D$5-$E$5))))/49.8328865456397)^vstupy!H96)*vstupy!H89*$I$5,0) -> 335 | I54: =ROUND((((($C$5-$D$5)/(LN(($C$5-$E$5)/($D$5-$E$5))))/49.8328865456397)^vstupy!I96)*vstupy!I89*$I$5,0) -> 432 | J54: =ROUND((((($C$5-$D$5)/(LN(($C$5-$E$5)/($D$5-$E$5))))/49.8328865456397)^vstupy!J96)*vstupy!J89*$I$5,0) -> 589 | K54: =ROUND((((($C$5-$D$5)/(LN(($C$5-$E$5)/($D$5-$E$5))))/49.8328865456397)^vstupy!K96)*vstupy!K89*$I$5,0) -> 725 | L54: =ROUND((((($C$5-$D$5)/(LN(($C$5-$E$5)/($D$5-$E$5))))/49.8328865456397)^vstupy!L96)*vstupy!L89*$I$5,0) -> 879 | M54: 450 | O54: 450 | P54: =ROUND((((($C$5-$D$5)/(LN(($C$5-$E$5)/($D$5-$E$5))))/49.8328865456397)^vstupy!P96)*vstupy!P89*$I$5,0) -> 361 | Q54: =ROUND((((($C$5-$D$5)/(LN(($C$5-$E$5)/($D$5-$E$5))))/49.8328865456397)^vstupy!Q96)*vstupy!Q89*$I$5,0) -> 462 | R54: =ROUND((((($C$5-$D$5)/(LN(($C$5-$E$5)/($D$5-$E$5))))/49.8328865456397)^vstupy!R96)*vstupy!R89*$I$5,0) -> 625 | S54: =ROUND((((($C$5-$D$5)/(LN(($C$5-$E$5)/($D$5-$E$5))))/49.8328865456397)^vstupy!S96)*vstupy!S89*$I$5,0) -> 771 | T54: =ROUND((((($C$5-$D$5)/(LN(($C$5-$E$5)/($D$5-$E$5))))/49.8328865456397)^vstupy!T96)*vstupy!T89*$I$5,0) -> 942 | Z54: 450 | AC54: 450 | AD54: =ROUND((vstupy!C89*POWER($F$5/50,vstupy!C96))*$I$5,0) -> 335 | AE54: =ROUND((vstupy!D89*POWER($F$5/50,vstupy!D96))*$I$5,0) -> 432 | AF54: =ROUND((vstupy!E89*POWER($F$5/50,vstupy!E96))*$I$5,0) -> 589 | AG54: =ROUND((vstupy!F89*POWER($F$5/50,vstupy!F96))*$I$5,0) -> 725 | AH54: =ROUND((vstupy!G89*POWER($F$5/50,vstupy!G96))*$I$5,0) -> 879 | AI54: =ROUND((vstupy!H89*POWER($F$5/50,vstupy!H96))*$I$5,0) -> 335 | AJ54: =ROUND((vstupy!I89*POWER($F$5/50,vstupy!I96))*$I$5,0) -> 432 | AK54: =ROUND((vstupy!J89*POWER($F$5/50,vstupy!J96))*$I$5,0) -> 589 | AL54: =ROUND((vstupy!K89*POWER($F$5/50,vstupy!K96))*$I$5,0) -> 725 | AM54: =ROUND((vstupy!L89*POWER($F$5/50,vstupy!L96))*$I$5,0) -> 879 | AN54: 450 | AP54: 450 | AQ54: =ROUND((vstupy!P89*POWER($F$5/50,vstupy!P96))*$I$5,0) -> 361 | AR54: =ROUND((vstupy!Q89*POWER($F$5/50,vstupy!Q96))*$I$5,0) -> 462 | AS54: =ROUND((vstupy!R89*POWER($F$5/50,vstupy!R96))*$I$5,0) -> 625 | AT54: =ROUND((vstupy!S89*POWER($F$5/50,vstupy!S96))*$I$5,0) -> 771 | AU54: =ROUND((vstupy!T89*POWER($F$5/50,vstupy!T96))*$I$5,0) -> 942 | BA54: 450
B55: 600 | C55: =ROUND((((($C$5-$D$5)/(LN(($C$5-$E$5)/($D$5-$E$5))))/49.8328865456397)^vstupy!C97)*vstupy!C90*$I$5,0) -> 444 | D55: =ROUND((((($C$5-$D$5)/(LN(($C$5-$E$5)/($D$5-$E$5))))/49.8328865456397)^vstupy!D97)*vstupy!D90*$I$5,0) -> 574 | E55: =ROUND((((($C$5-$D$5)/(LN(($C$5-$E$5)/($D$5-$E$5))))/49.8328865456397)^vstupy!E97)*vstupy!E90*$I$5,0) -> 781 | F55: =ROUND((((($C$5-$D$5)/(LN(($C$5-$E$5)/($D$5-$E$5))))/49.8328865456397)^vstupy!F97)*vstupy!F90*$I$5,0) -> 962 | G55: =ROUND((((($C$5-$D$5)/(LN(($C$5-$E$5)/($D$5-$E$5))))/49.8328865456397)^vstupy!G97)*vstupy!G90*$I$5,0) -> 1166 | H55: =ROUND((((($C$5-$D$5)/(LN(($C$5-$E$5)/($D$5-$E$5))))/49.8328865456397)^vstupy!H97)*vstupy!H90*$I$5,0) -> 444 | I55: =ROUND((((($C$5-$D$5)/(LN(($C$5-$E$5)/($D$5-$E$5))))/49.8328865456397)^vstupy!I97)*vstupy!I90*$I$5,0) -> 574 | J55: =ROUND((((($C$5-$D$5)/(LN(($C$5-$E$5)/($D$5-$E$5))))/49.8328865456397)^vstupy!J97)*vstupy!J90*$I$5,0) -> 781 | K55: =ROUND((((($C$5-$D$5)/(LN(($C$5-$E$5)/($D$5-$E$5))))/49.8328865456397)^vstupy!K97)*vstupy!K90*$I$5,0) -> 962 | L55: =ROUND((((($C$5-$D$5)/(LN(($C$5-$E$5)/($D$5-$E$5))))/49.8328865456397)^vstupy!L97)*vstupy!L90*$I$5,0) -> 1166 | M55: 600 | O55: 600 | P55: =ROUND((((($C$5-$D$5)/(LN(($C$5-$E$5)/($D$5-$E$5))))/49.8328865456397)^vstupy!P97)*vstupy!P90*$I$5,0) -> 480 | Q55: =ROUND((((($C$5-$D$5)/(LN(($C$5-$E$5)/($D$5-$E$5))))/49.8328865456397)^vstupy!Q97)*vstupy!Q90*$I$5,0) -> 614 | R55: =ROUND((((($C$5-$D$5)/(LN(($C$5-$E$5)/($D$5-$E$5))))/49.8328865456397)^vstupy!R97)*vstupy!R90*$I$5,0) -> 832 | S55: =ROUND((((($C$5-$D$5)/(LN(($C$5-$E$5)/($D$5-$E$5))))/49.8328865456397)^vstupy!S97)*vstupy!S90*$I$5,0) -> 1026 | T55: =ROUND((((($C$5-$D$5)/(LN(($C$5-$E$5)/($D$5-$E$5))))/49.8328865456397)^vstupy!T97)*vstupy!T90*$I$5,0) -> 1253 | Z55: 600 | AC55: 600 | AD55: =ROUND((vstupy!C90*POWER($F$5/50,vstupy!C97))*$I$5,0) -> 444 | AE55: =ROUND((vstupy!D90*POWER($F$5/50,vstupy!D97))*$I$5,0) -> 574 | AF55: =ROUND((vstupy!E90*POWER($F$5/50,vstupy!E97))*$I$5,0) -> 781 | AG55: =ROUND((vstupy!F90*POWER($F$5/50,vstupy!F97))*$I$5,0) -> 962 | AH55: =ROUND((vstupy!G90*POWER($F$5/50,vstupy!G97))*$I$5,0) -> 1166 | AI55: =ROUND((vstupy!H90*POWER($F$5/50,vstupy!H97))*$I$5,0) -> 444 | AJ55: =ROUND((vstupy!I90*POWER($F$5/50,vstupy!I97))*$I$5,0) -> 574 | AK55: =ROUND((vstupy!J90*POWER($F$5/50,vstupy!J97))*$I$5,0) -> 781 | AL55: =ROUND((vstupy!K90*POWER($F$5/50,vstupy!K97))*$I$5,0) -> 962 | AM55: =ROUND((vstupy!L90*POWER($F$5/50,vstupy!L97))*$I$5,0) -> 1166 | AN55: 600 | AP55: 600 | AQ55: =ROUND((vstupy!P90*POWER($F$5/50,vstupy!P97))*$I$5,0) -> 480 | AR55: =ROUND((vstupy!Q90*POWER($F$5/50,vstupy!Q97))*$I$5,0) -> 614 | AS55: =ROUND((vstupy!R90*POWER($F$5/50,vstupy!R97))*$I$5,0) -> 832 | AT55: =ROUND((vstupy!S90*POWER($F$5/50,vstupy!S97))*$I$5,0) -> 1026 | AU55: =ROUND((vstupy!T90*POWER($F$5/50,vstupy!T97))*$I$5,0) -> 1253 | BA55: 600
B56: 750 | C56: =ROUND((((($C$5-$D$5)/(LN(($C$5-$E$5)/($D$5-$E$5))))/49.8328865456397)^vstupy!C98)*vstupy!C91*$I$5,0) -> 553 | D56: =ROUND((((($C$5-$D$5)/(LN(($C$5-$E$5)/($D$5-$E$5))))/49.8328865456397)^vstupy!D98)*vstupy!D91*$I$5,0) -> 714 | E56: =ROUND((((($C$5-$D$5)/(LN(($C$5-$E$5)/($D$5-$E$5))))/49.8328865456397)^vstupy!E98)*vstupy!E91*$I$5,0) -> 973 | F56: =ROUND((((($C$5-$D$5)/(LN(($C$5-$E$5)/($D$5-$E$5))))/49.8328865456397)^vstupy!F98)*vstupy!F91*$I$5,0) -> 1197 | G56: =ROUND((((($C$5-$D$5)/(LN(($C$5-$E$5)/($D$5-$E$5))))/49.8328865456397)^vstupy!G98)*vstupy!G91*$I$5,0) -> 1452 | H56: =ROUND((((($C$5-$D$5)/(LN(($C$5-$E$5)/($D$5-$E$5))))/49.8328865456397)^vstupy!H98)*vstupy!H91*$I$5,0) -> 553 | I56: =ROUND((((($C$5-$D$5)/(LN(($C$5-$E$5)/($D$5-$E$5))))/49.8328865456397)^vstupy!I98)*vstupy!I91*$I$5,0) -> 714 | J56: =ROUND((((($C$5-$D$5)/(LN(($C$5-$E$5)/($D$5-$E$5))))/49.8328865456397)^vstupy!J98)*vstupy!J91*$I$5,0) -> 973 | K56: =ROUND((((($C$5-$D$5)/(LN(($C$5-$E$5)/($D$5-$E$5))))/49.8328865456397)^vstupy!K98)*vstupy!K91*$I$5,0) -> 1197 | L56: =ROUND((((($C$5-$D$5)/(LN(($C$5-$E$5)/($D$5-$E$5))))/49.8328865456397)^vstupy!L98)*vstupy!L91*$I$5,0) -> 1452 | M56: 750 | O56: 750 | P56: =ROUND((((($C$5-$D$5)/(LN(($C$5-$E$5)/($D$5-$E$5))))/49.8328865456397)^vstupy!P98)*vstupy!P91*$I$5,0) -> 599 | Q56: =ROUND((((($C$5-$D$5)/(LN(($C$5-$E$5)/($D$5-$E$5))))/49.8328865456397)^vstupy!Q98)*vstupy!Q91*$I$5,0) -> 767 | R56: =ROUND((((($C$5-$D$5)/(LN(($C$5-$E$5)/($D$5-$E$5))))/49.8328865456397)^vstupy!R98)*vstupy!R91*$I$5,0) -> 1038 | S56: =ROUND((((($C$5-$D$5)/(LN(($C$5-$E$5)/($D$5-$E$5))))/49.8328865456397)^vstupy!S98)*vstupy!S91*$I$5,0) -> 1280 | T56: =ROUND((((($C$5-$D$5)/(LN(($C$5-$E$5)/($D$5-$E$5))))/49.8328865456397)^vstupy!T98)*vstupy!T91*$I$5,0) -> 1564 | Z56: 750 | AC56: 750 | AD56: =ROUND((vstupy!C91*POWER($F$5/50,vstupy!C98))*$I$5,0) -> 553 | AE56: =ROUND((vstupy!D91*POWER($F$5/50,vstupy!D98))*$I$5,0) -> 714 | AF56: =ROUND((vstupy!E91*POWER($F$5/50,vstupy!E98))*$I$5,0) -> 973 | AG56: =ROUND((vstupy!F91*POWER($F$5/50,vstupy!F98))*$I$5,0) -> 1197 | AH56: =ROUND((vstupy!G91*POWER($F$5/50,vstupy!G98))*$I$5,0) -> 1452 | AI56: =ROUND((vstupy!H91*POWER($F$5/50,vstupy!H98))*$I$5,0) -> 553 | AJ56: =ROUND((vstupy!I91*POWER($F$5/50,vstupy!I98))*$I$5,0) -> 714 | AK56: =ROUND((vstupy!J91*POWER($F$5/50,vstupy!J98))*$I$5,0) -> 973 | AL56: =ROUND((vstupy!K91*POWER($F$5/50,vstupy!K98))*$I$5,0) -> 1197 | AM56: =ROUND((vstupy!L91*POWER($F$5/50,vstupy!L98))*$I$5,0) -> 1452 | AN56: 750 | AP56: 750 | AQ56: =ROUND((vstupy!P91*POWER($F$5/50,vstupy!P98))*$I$5,0) -> 599 | AR56: =ROUND((vstupy!Q91*POWER($F$5/50,vstupy!Q98))*$I$5,0) -> 767 | AS56: =ROUND((vstupy!R91*POWER($F$5/50,vstupy!R98))*$I$5,0) -> 1038 | AT56: =ROUND((vstupy!S91*POWER($F$5/50,vstupy!S98))*$I$5,0) -> 1280 | AU56: =ROUND((vstupy!T91*POWER($F$5/50,vstupy!T98))*$I$5,0) -> 1564 | BA56: 750
C58: KORALUX RONDO COMFORT | H58: KORALUX RONDO COMFORT - M | P58: KORALUX RONDO COMFORT | U58: KORALUX RONDO COMFORT - M | AD58: KORALUX RONDO COMFORT | AI58: KORALUX RONDO COMFORT - M | AQ58: KORALUX RONDO COMFORT | AV58: KORALUX RONDO COMFORT - M
B59: Délka L | C59: Výška H [mm] | H59: Výška H [mm] | M59: Délka L | O59: Délka L | P59: Výška H [mm] | U59: Výška H [mm] | Z59: Délka L | AC59: Délka L | AD59: Výška H [mm] | AI59: Výška H [mm] | AN59: Délka L | AP59: Délka L | AQ59: Výška H [mm] | AV59: Výška H [mm] | BA59: Délka L
B60: [mm] | C60: 700 | D60: 900 | E60: 1220 | F60: 1500 | G60: 1820 | H60: 700 | I60: 900 | J60: 1220 | K60: 1500 | L60: 1820 | M60: [mm] | O60: [mm] | P60: 700 | Q60: 900 | R60: 1220 | S60: 1500 | T60: 1820 | U60: 700 | V60: 900 | W60: 1220 | X60: 1500 | Y60: 1820 | Z60: [mm] | AC60: [mm] | AD60: 700 | AE60: 900 | AF60: 1220 | AG60: 1500 | AH60: 1820 | AI60: 700 | AJ60: 900 | AK60: 1220 | AL60: 1500 | AM60: 1820 | AN60: [mm] | AP60: [mm] | AQ60: 700 | AR60: 900 | AS60: 1220 | AT60: 1500 | AU60: 1820 | AV60: 700 | AW60: 900 | AX60: 1220 | AY60: 1500 | AZ60: 1820 | BA60: [mm]
B61: 450 | C61: =ROUND((((($C$5-$D$5)/(LN(($C$5-$E$5)/($D$5-$E$5))))/49.8328865456397)^vstupy!C111)*vstupy!C103*$I$5,0) -> 287 | D61: =ROUND((((($C$5-$D$5)/(LN(($C$5-$E$5)/($D$5-$E$5))))/49.8328865456397)^vstupy!D111)*vstupy!D103*$I$5,0) -> 369 | E61: =ROUND((((($C$5-$D$5)/(LN(($C$5-$E$5)/($D$5-$E$5))))/49.8328865456397)^vstupy!E111)*vstupy!E103*$I$5,0) -> 504 | F61: =ROUND((((($C$5-$D$5)/(LN(($C$5-$E$5)/($D$5-$E$5))))/49.8328865456397)^vstupy!F111)*vstupy!F103*$I$5,0) -> 626 | G61: =ROUND((((($C$5-$D$5)/(LN(($C$5-$E$5)/($D$5-$E$5))))/49.8328865456397)^vstupy!G111)*vstupy!G103*$I$5,0) -> 772 | H61: =ROUND((((($C$5-$D$5)/(LN(($C$5-$E$5)/($D$5-$E$5))))/49.8328865456397)^vstupy!H111)*vstupy!H103*$I$5,0) -> 287 | I61: =ROUND((((($C$5-$D$5)/(LN(($C$5-$E$5)/($D$5-$E$5))))/49.8328865456397)^vstupy!I111)*vstupy!I103*$I$5,0) -> 369 | J61: =ROUND((((($C$5-$D$5)/(LN(($C$5-$E$5)/($D$5-$E$5))))/49.8328865456397)^vstupy!J111)*vstupy!J103*$I$5,0) -> 504 | K61: =ROUND((((($C$5-$D$5)/(LN(($C$5-$E$5)/($D$5-$E$5))))/49.8328865456397)^vstupy!K111)*vstupy!K103*$I$5,0) -> 626 | L61: =ROUND((((($C$5-$D$5)/(LN(($C$5-$E$5)/($D$5-$E$5))))/49.8328865456397)^vstupy!L111)*vstupy!L103*$I$5,0) -> 772 | M61: 450 | O61: 450 | P61: =ROUND((((($C$5-$D$5)/(LN(($C$5-$E$5)/($D$5-$E$5))))/49.8328865456397)^vstupy!P111)*vstupy!P103*$I$5,0) -> 312 | Q61: =ROUND((((($C$5-$D$5)/(LN(($C$5-$E$5)/($D$5-$E$5))))/49.8328865456397)^vstupy!Q111)*vstupy!Q103*$I$5,0) -> 402 | R61: =ROUND((((($C$5-$D$5)/(LN(($C$5-$E$5)/($D$5-$E$5))))/49.8328865456397)^vstupy!R111)*vstupy!R103*$I$5,0) -> 549 | S61: =ROUND((((($C$5-$D$5)/(LN(($C$5-$E$5)/($D$5-$E$5))))/49.8328865456397)^vstupy!S111)*vstupy!S103*$I$5,0) -> 682 | T61: =ROUND((((($C$5-$D$5)/(LN(($C$5-$E$5)/($D$5-$E$5))))/49.8328865456397)^vstupy!T111)*vstupy!T103*$I$5,0) -> 841 | Z61: 450 | AC61: 450 | AD61: =ROUND((vstupy!C103*POWER($F$5/50,vstupy!C111))*$I$5,0) -> 287 | AE61: =ROUND((vstupy!D103*POWER($F$5/50,vstupy!D111))*$I$5,0) -> 369 | AF61: =ROUND((vstupy!E103*POWER($F$5/50,vstupy!E111))*$I$5,0) -> 504 | AG61: =ROUND((vstupy!F103*POWER($F$5/50,vstupy!F111))*$I$5,0) -> 626 | AH61: =ROUND((vstupy!G103*POWER($F$5/50,vstupy!G111))*$I$5,0) -> 772 | AI61: =ROUND((vstupy!H103*POWER($F$5/50,vstupy!H111))*$I$5,0) -> 287 | AJ61: =ROUND((vstupy!I103*POWER($F$5/50,vstupy!I111))*$I$5,0) -> 369 | AK61: =ROUND((vstupy!J103*POWER($F$5/50,vstupy!J111))*$I$5,0) -> 504 | AL61: =ROUND((vstupy!K103*POWER($F$5/50,vstupy!K111))*$I$5,0) -> 626 | AM61: =ROUND((vstupy!L103*POWER($F$5/50,vstupy!L111))*$I$5,0) -> 772 | AN61: 450 | AP61: 450 | AQ61: =ROUND((vstupy!P103*POWER($F$5/50,vstupy!P111))*$I$5,0) -> 312 | AR61: =ROUND((vstupy!Q103*POWER($F$5/50,vstupy!Q111))*$I$5,0) -> 402 | AS61: =ROUND((vstupy!R103*POWER($F$5/50,vstupy!R111))*$I$5,0) -> 549 | AT61: =ROUND((vstupy!S103*POWER($F$5/50,vstupy!S111))*$I$5,0) -> 682 | AU61: =ROUND((vstupy!T103*POWER($F$5/50,vstupy!T111))*$I$5,0) -> 841 | BA61: 450
B62: 500 | C62: =ROUND((((($C$5-$D$5)/(LN(($C$5-$E$5)/($D$5-$E$5))))/49.8328865456397)^vstupy!C112)*vstupy!C104*$I$5,0) -> 315 | D62: =ROUND((((($C$5-$D$5)/(LN(($C$5-$E$5)/($D$5-$E$5))))/49.8328865456397)^vstupy!D112)*vstupy!D104*$I$5,0) -> 405 | E62: =ROUND((((($C$5-$D$5)/(LN(($C$5-$E$5)/($D$5-$E$5))))/49.8328865456397)^vstupy!E112)*vstupy!E104*$I$5,0) -> 553 | F62: =ROUND((((($C$5-$D$5)/(LN(($C$5-$E$5)/($D$5-$E$5))))/49.8328865456397)^vstupy!F112)*vstupy!F104*$I$5,0) -> 687 | G62: =ROUND((((($C$5-$D$5)/(LN(($C$5-$E$5)/($D$5-$E$5))))/49.8328865456397)^vstupy!G112)*vstupy!G104*$I$5,0) -> 848 | H62: =ROUND((((($C$5-$D$5)/(LN(($C$5-$E$5)/($D$5-$E$5))))/49.8328865456397)^vstupy!H112)*vstupy!H104*$I$5,0) -> 315 | I62: =ROUND((((($C$5-$D$5)/(LN(($C$5-$E$5)/($D$5-$E$5))))/49.8328865456397)^vstupy!I112)*vstupy!I104*$I$5,0) -> 405 | J62: =ROUND((((($C$5-$D$5)/(LN(($C$5-$E$5)/($D$5-$E$5))))/49.8328865456397)^vstupy!J112)*vstupy!J104*$I$5,0) -> 553 | K62: =ROUND((((($C$5-$D$5)/(LN(($C$5-$E$5)/($D$5-$E$5))))/49.8328865456397)^vstupy!K112)*vstupy!K104*$I$5,0) -> 687 | L62: =ROUND((((($C$5-$D$5)/(LN(($C$5-$E$5)/($D$5-$E$5))))/49.8328865456397)^vstupy!L112)*vstupy!L104*$I$5,0) -> 848 | M62: 500 | O62: 500 | P62: =ROUND((((($C$5-$D$5)/(LN(($C$5-$E$5)/($D$5-$E$5))))/49.8328865456397)^vstupy!P112)*vstupy!P104*$I$5,0) -> 342 | Q62: =ROUND((((($C$5-$D$5)/(LN(($C$5-$E$5)/($D$5-$E$5))))/49.8328865456397)^vstupy!Q112)*vstupy!Q104*$I$5,0) -> 440 | R62: =ROUND((((($C$5-$D$5)/(LN(($C$5-$E$5)/($D$5-$E$5))))/49.8328865456397)^vstupy!R112)*vstupy!R104*$I$5,0) -> 601 | S62: =ROUND((((($C$5-$D$5)/(LN(($C$5-$E$5)/($D$5-$E$5))))/49.8328865456397)^vstupy!S112)*vstupy!S104*$I$5,0) -> 747 | T62: =ROUND((((($C$5-$D$5)/(LN(($C$5-$E$5)/($D$5-$E$5))))/49.8328865456397)^vstupy!T112)*vstupy!T104*$I$5,0) -> 921 | Z62: 500 | AC62: 500 | AD62: =ROUND((vstupy!C104*POWER($F$5/50,vstupy!C112))*$I$5,0) -> 315 | AE62: =ROUND((vstupy!D104*POWER($F$5/50,vstupy!D112))*$I$5,0) -> 405 | AF62: =ROUND((vstupy!E104*POWER($F$5/50,vstupy!E112))*$I$5,0) -> 553 | AG62: =ROUND((vstupy!F104*POWER($F$5/50,vstupy!F112))*$I$5,0) -> 687 | AH62: =ROUND((vstupy!G104*POWER($F$5/50,vstupy!G112))*$I$5,0) -> 848 | AI62: =ROUND((vstupy!H104*POWER($F$5/50,vstupy!H112))*$I$5,0) -> 315 | AJ62: =ROUND((vstupy!I104*POWER($F$5/50,vstupy!I112))*$I$5,0) -> 405 | AK62: =ROUND((vstupy!J104*POWER($F$5/50,vstupy!J112))*$I$5,0) -> 553 | AL62: =ROUND((vstupy!K104*POWER($F$5/50,vstupy!K112))*$I$5,0) -> 687 | AM62: =ROUND((vstupy!L104*POWER($F$5/50,vstupy!L112))*$I$5,0) -> 848 | AN62: 500 | AP62: 500 | AQ62: =ROUND((vstupy!P104*POWER($F$5/50,vstupy!P112))*$I$5,0) -> 342 | AR62: =ROUND((vstupy!Q104*POWER($F$5/50,vstupy!Q112))*$I$5,0) -> 440 | AS62: =ROUND((vstupy!R104*POWER($F$5/50,vstupy!R112))*$I$5,0) -> 601 | AT62: =ROUND((vstupy!S104*POWER($F$5/50,vstupy!S112))*$I$5,0) -> 747 | AU62: =ROUND((vstupy!T104*POWER($F$5/50,vstupy!T112))*$I$5,0) -> 921 | BA62: 500
B63: 600 | C63: =ROUND((((($C$5-$D$5)/(LN(($C$5-$E$5)/($D$5-$E$5))))/49.8328865456397)^vstupy!C113)*vstupy!C105*$I$5,0) -> 370 | D63: =ROUND((((($C$5-$D$5)/(LN(($C$5-$E$5)/($D$5-$E$5))))/49.8328865456397)^vstupy!D113)*vstupy!D105*$I$5,0) -> 475 | E63: =ROUND((((($C$5-$D$5)/(LN(($C$5-$E$5)/($D$5-$E$5))))/49.8328865456397)^vstupy!E113)*vstupy!E105*$I$5,0) -> 650 | F63: =ROUND((((($C$5-$D$5)/(LN(($C$5-$E$5)/($D$5-$E$5))))/49.8328865456397)^vstupy!F113)*vstupy!F105*$I$5,0) -> 808 | G63: =ROUND((((($C$5-$D$5)/(LN(($C$5-$E$5)/($D$5-$E$5))))/49.8328865456397)^vstupy!G113)*vstupy!G105*$I$5,0) -> 996 | H63: =ROUND((((($C$5-$D$5)/(LN(($C$5-$E$5)/($D$5-$E$5))))/49.8328865456397)^vstupy!H113)*vstupy!H105*$I$5,0) -> 370 | I63: =ROUND((((($C$5-$D$5)/(LN(($C$5-$E$5)/($D$5-$E$5))))/49.8328865456397)^vstupy!I113)*vstupy!I105*$I$5,0) -> 475 | J63: =ROUND((((($C$5-$D$5)/(LN(($C$5-$E$5)/($D$5-$E$5))))/49.8328865456397)^vstupy!J113)*vstupy!J105*$I$5,0) -> 650 | K63: =ROUND((((($C$5-$D$5)/(LN(($C$5-$E$5)/($D$5-$E$5))))/49.8328865456397)^vstupy!K113)*vstupy!K105*$I$5,0) -> 808 | L63: =ROUND((((($C$5-$D$5)/(LN(($C$5-$E$5)/($D$5-$E$5))))/49.8328865456397)^vstupy!L113)*vstupy!L105*$I$5,0) -> 996 | M63: 600 | O63: 600 | P63: =ROUND((((($C$5-$D$5)/(LN(($C$5-$E$5)/($D$5-$E$5))))/49.8328865456397)^vstupy!P113)*vstupy!P105*$I$5,0) -> 400 | Q63: =ROUND((((($C$5-$D$5)/(LN(($C$5-$E$5)/($D$5-$E$5))))/49.8328865456397)^vstupy!Q113)*vstupy!Q105*$I$5,0) -> 515 | R63: =ROUND((((($C$5-$D$5)/(LN(($C$5-$E$5)/($D$5-$E$5))))/49.8328865456397)^vstupy!R113)*vstupy!R105*$I$5,0) -> 703 | S63: =ROUND((((($C$5-$D$5)/(LN(($C$5-$E$5)/($D$5-$E$5))))/49.8328865456397)^vstupy!S113)*vstupy!S105*$I$5,0) -> 874 | T63: =ROUND((((($C$5-$D$5)/(LN(($C$5-$E$5)/($D$5-$E$5))))/49.8328865456397)^vstupy!T113)*vstupy!T105*$I$5,0) -> 1078 | Z63: 600 | AC63: 600 | AD63: =ROUND((vstupy!C105*POWER($F$5/50,vstupy!C113))*$I$5,0) -> 370 | AE63: =ROUND((vstupy!D105*POWER($F$5/50,vstupy!D113))*$I$5,0) -> 475 | AF63: =ROUND((vstupy!E105*POWER($F$5/50,vstupy!E113))*$I$5,0) -> 650 | AG63: =ROUND((vstupy!F105*POWER($F$5/50,vstupy!F113))*$I$5,0) -> 808 | AH63: =ROUND((vstupy!G105*POWER($F$5/50,vstupy!G113))*$I$5,0) -> 996 | AI63: =ROUND((vstupy!H105*POWER($F$5/50,vstupy!H113))*$I$5,0) -> 370 | AJ63: =ROUND((vstupy!I105*POWER($F$5/50,vstupy!I113))*$I$5,0) -> 475 | AK63: =ROUND((vstupy!J105*POWER($F$5/50,vstupy!J113))*$I$5,0) -> 650 | AL63: =ROUND((vstupy!K105*POWER($F$5/50,vstupy!K113))*$I$5,0) -> 808 | AM63: =ROUND((vstupy!L105*POWER($F$5/50,vstupy!L113))*$I$5,0) -> 996 | AN63: 600 | AP63: 600 | AQ63: =ROUND((vstupy!P105*POWER($F$5/50,vstupy!P113))*$I$5,0) -> 400 | AR63: =ROUND((vstupy!Q105*POWER($F$5/50,vstupy!Q113))*$I$5,0) -> 515 | AS63: =ROUND((vstupy!R105*POWER($F$5/50,vstupy!R113))*$I$5,0) -> 703 | AT63: =ROUND((vstupy!S105*POWER($F$5/50,vstupy!S113))*$I$5,0) -> 874 | AU63: =ROUND((vstupy!T105*POWER($F$5/50,vstupy!T113))*$I$5,0) -> 1078 | BA63: 600
B64: 750 | C64: =ROUND((((($C$5-$D$5)/(LN(($C$5-$E$5)/($D$5-$E$5))))/49.8328865456397)^vstupy!C114)*vstupy!C106*$I$5,0) -> 450 | D64: =ROUND((((($C$5-$D$5)/(LN(($C$5-$E$5)/($D$5-$E$5))))/49.8328865456397)^vstupy!D114)*vstupy!D106*$I$5,0) -> 579 | E64: =ROUND((((($C$5-$D$5)/(LN(($C$5-$E$5)/($D$5-$E$5))))/49.8328865456397)^vstupy!E114)*vstupy!E106*$I$5,0) -> 791 | F64: =ROUND((((($C$5-$D$5)/(LN(($C$5-$E$5)/($D$5-$E$5))))/49.8328865456397)^vstupy!F114)*vstupy!F106*$I$5,0) -> 984 | G64: =ROUND((((($C$5-$D$5)/(LN(($C$5-$E$5)/($D$5-$E$5))))/49.8328865456397)^vstupy!G114)*vstupy!G106*$I$5,0) -> 1213 | H64: =ROUND((((($C$5-$D$5)/(LN(($C$5-$E$5)/($D$5-$E$5))))/49.8328865456397)^vstupy!H114)*vstupy!H106*$I$5,0) -> 450 | I64: =ROUND((((($C$5-$D$5)/(LN(($C$5-$E$5)/($D$5-$E$5))))/49.8328865456397)^vstupy!I114)*vstupy!I106*$I$5,0) -> 579 | J64: =ROUND((((($C$5-$D$5)/(LN(($C$5-$E$5)/($D$5-$E$5))))/49.8328865456397)^vstupy!J114)*vstupy!J106*$I$5,0) -> 791 | K64: =ROUND((((($C$5-$D$5)/(LN(($C$5-$E$5)/($D$5-$E$5))))/49.8328865456397)^vstupy!K114)*vstupy!K106*$I$5,0) -> 984 | L64: =ROUND((((($C$5-$D$5)/(LN(($C$5-$E$5)/($D$5-$E$5))))/49.8328865456397)^vstupy!L114)*vstupy!L106*$I$5,0) -> 1213 | M64: 750 | O64: 750 | P64: =ROUND((((($C$5-$D$5)/(LN(($C$5-$E$5)/($D$5-$E$5))))/49.8328865456397)^vstupy!P114)*vstupy!P106*$I$5,0) -> 485 | Q64: =ROUND((((($C$5-$D$5)/(LN(($C$5-$E$5)/($D$5-$E$5))))/49.8328865456397)^vstupy!Q114)*vstupy!Q106*$I$5,0) -> 624 | R64: =ROUND((((($C$5-$D$5)/(LN(($C$5-$E$5)/($D$5-$E$5))))/49.8328865456397)^vstupy!R114)*vstupy!R106*$I$5,0) -> 852 | S64: =ROUND((((($C$5-$D$5)/(LN(($C$5-$E$5)/($D$5-$E$5))))/49.8328865456397)^vstupy!S114)*vstupy!S106*$I$5,0) -> 1060 | T64: =ROUND((((($C$5-$D$5)/(LN(($C$5-$E$5)/($D$5-$E$5))))/49.8328865456397)^vstupy!T114)*vstupy!T106*$I$5,0) -> 1307 | Z64: 750 | AC64: 750 | AD64: =ROUND((vstupy!C106*POWER($F$5/50,vstupy!C114))*$I$5,0) -> 450 | AE64: =ROUND((vstupy!D106*POWER($F$5/50,vstupy!D114))*$I$5,0) -> 579 | AF64: =ROUND((vstupy!E106*POWER($F$5/50,vstupy!E114))*$I$5,0) -> 791 | AG64: =ROUND((vstupy!F106*POWER($F$5/50,vstupy!F114))*$I$5,0) -> 984 | AH64: =ROUND((vstupy!G106*POWER($F$5/50,vstupy!G114))*$I$5,0) -> 1213 | AI64: =ROUND((vstupy!H106*POWER($F$5/50,vstupy!H114))*$I$5,0) -> 450 | AJ64: =ROUND((vstupy!I106*POWER($F$5/50,vstupy!I114))*$I$5,0) -> 579 | AK64: =ROUND((vstupy!J106*POWER($F$5/50,vstupy!J114))*$I$5,0) -> 791 | AL64: =ROUND((vstupy!K106*POWER($F$5/50,vstupy!K114))*$I$5,0) -> 984 | AM64: =ROUND((vstupy!L106*POWER($F$5/50,vstupy!L114))*$I$5,0) -> 1213 | AN64: 750 | AP64: 750 | AQ64: =ROUND((vstupy!P106*POWER($F$5/50,vstupy!P114))*$I$5,0) -> 485 | AR64: =ROUND((vstupy!Q106*POWER($F$5/50,vstupy!Q114))*$I$5,0) -> 624 | AS64: =ROUND((vstupy!R106*POWER($F$5/50,vstupy!R114))*$I$5,0) -> 852 | AT64: =ROUND((vstupy!S106*POWER($F$5/50,vstupy!S114))*$I$5,0) -> 1060 | AU64: =ROUND((vstupy!T106*POWER($F$5/50,vstupy!T114))*$I$5,0) -> 1307 | BA64: 750
C66: KORALUX RONDO CLASSIC | H66: KORALUX RONDO CLASSIC - M | P66: KORALUX RONDO CLASSIC | U66: KORALUX RONDO CLASSIC - M | AD66: KORALUX RONDO CLASSIC | AI66: KORALUX RONDO CLASSIC - M | AQ66: KORALUX RONDO CLASSIC | AV66: KORALUX RONDO CLASSIC - M
B67: Délka L | C67: Výška H [mm] | H67: Výška H [mm] | M67: Délka L | O67: Délka L | P67: Výška H [mm] | U67: Výška H [mm] | Z67: Délka L | AC67: Délka L | AD67: Výška H [mm] | AI67: Výška H [mm] | AN67: Délka L | AP67: Délka L | AQ67: Výška H [mm] | AV67: Výška H [mm] | BA67: Délka L
B68: [mm] | C68: 700 | D68: 900 | E68: 1220 | F68: 1500 | G68: 1820 | H68: 700 | I68: 900 | J68: 1220 | K68: 1500 | L68: 1820 | M68: [mm] | O68: [mm] | P68: 700 | Q68: 900 | R68: 1220 | S68: 1500 | T68: 1820 | U68: 700 | V68: 900 | W68: 1220 | X68: 1500 | Y68: 1820 | Z68: [mm] | AC68: [mm] | AD68: 700 | AE68: 900 | AF68: 1220 | AG68: 1500 | AH68: 1820 | AI68: 700 | AJ68: 900 | AK68: 1220 | AL68: 1500 | AM68: 1820 | AN68: [mm] | AP68: [mm] | AQ68: 700 | AR68: 900 | AS68: 1220 | AT68: 1500 | AU68: 1820 | AV68: 700 | AW68: 900 | AX68: 1220 | AY68: 1500 | AZ68: 1820 | BA68: [mm]
B69: 450 | C69: =ROUND((((($C$5-$D$5)/(LN(($C$5-$E$5)/($D$5-$E$5))))/49.8328865456397)^vstupy!C127)*vstupy!C119*$I$5,0) -> 255 | D69: =ROUND((((($C$5-$D$5)/(LN(($C$5-$E$5)/($D$5-$E$5))))/49.8328865456397)^vstupy!D127)*vstupy!D119*$I$5,0) -> 333 | E69: =ROUND((((($C$5-$D$5)/(LN(($C$5-$E$5)/($D$5-$E$5))))/49.8328865456397)^vstupy!E127)*vstupy!E119*$I$5,0) -> 462 | F69: =ROUND((((($C$5-$D$5)/(LN(($C$5-$E$5)/($D$5-$E$5))))/49.8328865456397)^vstupy!F127)*vstupy!F119*$I$5,0) -> 581 | G69: =ROUND((((($C$5-$D$5)/(LN(($C$5-$E$5)/($D$5-$E$5))))/49.8328865456397)^vstupy!G127)*vstupy!G119*$I$5,0) -> 725 | H69: =ROUND((((($C$5-$D$5)/(LN(($C$5-$E$5)/($D$5-$E$5))))/49.8328865456397)^vstupy!H127)*vstupy!H119*$I$5,0) -> 255 | I69: =ROUND((((($C$5-$D$5)/(LN(($C$5-$E$5)/($D$5-$E$5))))/49.8328865456397)^vstupy!I127)*vstupy!I119*$I$5,0) -> 333 | J69: =ROUND((((($C$5-$D$5)/(LN(($C$5-$E$5)/($D$5-$E$5))))/49.8328865456397)^vstupy!J127)*vstupy!J119*$I$5,0) -> 462 | K69: =ROUND((((($C$5-$D$5)/(LN(($C$5-$E$5)/($D$5-$E$5))))/49.8328865456397)^vstupy!K127)*vstupy!K119*$I$5,0) -> 581 | L69: =ROUND((((($C$5-$D$5)/(LN(($C$5-$E$5)/($D$5-$E$5))))/49.8328865456397)^vstupy!L127)*vstupy!L119*$I$5,0) -> 725 | M69: 450 | O69: 450 | P69: =ROUND((((($C$5-$D$5)/(LN(($C$5-$E$5)/($D$5-$E$5))))/49.8328865456397)^vstupy!P127)*vstupy!P119*$I$5,0) -> 291 | Q69: =ROUND((((($C$5-$D$5)/(LN(($C$5-$E$5)/($D$5-$E$5))))/49.8328865456397)^vstupy!Q127)*vstupy!Q119*$I$5,0) -> 378 | R69: =ROUND((((($C$5-$D$5)/(LN(($C$5-$E$5)/($D$5-$E$5))))/49.8328865456397)^vstupy!R127)*vstupy!R119*$I$5,0) -> 519 | S69: =ROUND((((($C$5-$D$5)/(LN(($C$5-$E$5)/($D$5-$E$5))))/49.8328865456397)^vstupy!S127)*vstupy!S119*$I$5,0) -> 643 | T69: =ROUND((((($C$5-$D$5)/(LN(($C$5-$E$5)/($D$5-$E$5))))/49.8328865456397)^vstupy!T127)*vstupy!T119*$I$5,0) -> 786 | Z69: 450 | AC69: 450 | AD69: =ROUND((vstupy!C119*POWER($F$5/50,vstupy!C127))*$I$5,0) -> 255 | AE69: =ROUND((vstupy!D119*POWER($F$5/50,vstupy!D127))*$I$5,0) -> 333 | AF69: =ROUND((vstupy!E119*POWER($F$5/50,vstupy!E127))*$I$5,0) -> 462 | AG69: =ROUND((vstupy!F119*POWER($F$5/50,vstupy!F127))*$I$5,0) -> 581 | AH69: =ROUND((vstupy!G119*POWER($F$5/50,vstupy!G127))*$I$5,0) -> 725 | AI69: =ROUND((vstupy!H119*POWER($F$5/50,vstupy!H127))*$I$5,0) -> 255 | AJ69: =ROUND((vstupy!I119*POWER($F$5/50,vstupy!I127))*$I$5,0) -> 333 | AK69: =ROUND((vstupy!J119*POWER($F$5/50,vstupy!J127))*$I$5,0) -> 462 | AL69: =ROUND((vstupy!K119*POWER($F$5/50,vstupy!K127))*$I$5,0) -> 581 | AM69: =ROUND((vstupy!L119*POWER($F$5/50,vstupy!L127))*$I$5,0) -> 725 | AN69: 450 | AP69: 450 | AQ69: =ROUND((vstupy!P119*POWER($F$5/50,vstupy!P127))*$I$5,0) -> 291 | AR69: =ROUND((vstupy!Q119*POWER($F$5/50,vstupy!Q127))*$I$5,0) -> 378 | AS69: =ROUND((vstupy!R119*POWER($F$5/50,vstupy!R127))*$I$5,0) -> 519 | AT69: =ROUND((vstupy!S119*POWER($F$5/50,vstupy!S127))*$I$5,0) -> 643 | AU69: =ROUND((vstupy!T119*POWER($F$5/50,vstupy!T127))*$I$5,0) -> 786 | BA69: 450
B70: 500 | C70: =ROUND((((($C$5-$D$5)/(LN(($C$5-$E$5)/($D$5-$E$5))))/49.8328865456397)^vstupy!C128)*vstupy!C120*$I$5,0) -> 280 | D70: =ROUND((((($C$5-$D$5)/(LN(($C$5-$E$5)/($D$5-$E$5))))/49.8328865456397)^vstupy!D128)*vstupy!D120*$I$5,0) -> 365 | E70: =ROUND((((($C$5-$D$5)/(LN(($C$5-$E$5)/($D$5-$E$5))))/49.8328865456397)^vstupy!E128)*vstupy!E120*$I$5,0) -> 507 | F70: =ROUND((((($C$5-$D$5)/(LN(($C$5-$E$5)/($D$5-$E$5))))/49.8328865456397)^vstupy!F128)*vstupy!F120*$I$5,0) -> 638 | G70: =ROUND((((($C$5-$D$5)/(LN(($C$5-$E$5)/($D$5-$E$5))))/49.8328865456397)^vstupy!G128)*vstupy!G120*$I$5,0) -> 795 | H70: =ROUND((((($C$5-$D$5)/(LN(($C$5-$E$5)/($D$5-$E$5))))/49.8328865456397)^vstupy!H128)*vstupy!H120*$I$5,0) -> 280 | I70: =ROUND((((($C$5-$D$5)/(LN(($C$5-$E$5)/($D$5-$E$5))))/49.8328865456397)^vstupy!I128)*vstupy!I120*$I$5,0) -> 365 | J70: =ROUND((((($C$5-$D$5)/(LN(($C$5-$E$5)/($D$5-$E$5))))/49.8328865456397)^vstupy!J128)*vstupy!J120*$I$5,0) -> 507 | K70: =ROUND((((($C$5-$D$5)/(LN(($C$5-$E$5)/($D$5-$E$5))))/49.8328865456397)^vstupy!K128)*vstupy!K120*$I$5,0) -> 638 | L70: =ROUND((((($C$5-$D$5)/(LN(($C$5-$E$5)/($D$5-$E$5))))/49.8328865456397)^vstupy!L128)*vstupy!L120*$I$5,0) -> 795 | M70: 500 | O70: 500 | P70: =ROUND((((($C$5-$D$5)/(LN(($C$5-$E$5)/($D$5-$E$5))))/49.8328865456397)^vstupy!P129)*vstupy!P120*$I$5,0) -> 318 | Q70: =ROUND((((($C$5-$D$5)/(LN(($C$5-$E$5)/($D$5-$E$5))))/49.8328865456397)^vstupy!Q129)*vstupy!Q120*$I$5,0) -> 413 | R70: =ROUND((((($C$5-$D$5)/(LN(($C$5-$E$5)/($D$5-$E$5))))/49.8328865456397)^vstupy!R129)*vstupy!R120*$I$5,0) -> 567 | S70: =ROUND((((($C$5-$D$5)/(LN(($C$5-$E$5)/($D$5-$E$5))))/49.8328865456397)^vstupy!S129)*vstupy!S120*$I$5,0) -> 703 | T70: =ROUND((((($C$5-$D$5)/(LN(($C$5-$E$5)/($D$5-$E$5))))/49.8328865456397)^vstupy!T129)*vstupy!T120*$I$5,0) -> 859 | AC70: 500 | AD70: =ROUND((vstupy!C120*POWER($F$5/50,vstupy!C128))*$I$5,0) -> 280 | AE70: =ROUND((vstupy!D120*POWER($F$5/50,vstupy!D128))*$I$5,0) -> 365 | AF70: =ROUND((vstupy!E120*POWER($F$5/50,vstupy!E128))*$I$5,0) -> 507 | AG70: =ROUND((vstupy!F120*POWER($F$5/50,vstupy!F128))*$I$5,0) -> 638 | AH70: =ROUND((vstupy!G120*POWER($F$5/50,vstupy!G128))*$I$5,0) -> 795 | AI70: =ROUND((vstupy!H120*POWER($F$5/50,vstupy!H128))*$I$5,0) -> 280 | AJ70: =ROUND((vstupy!I120*POWER($F$5/50,vstupy!I128))*$I$5,0) -> 365 | AK70: =ROUND((vstupy!J120*POWER($F$5/50,vstupy!J128))*$I$5,0) -> 507 | AL70: =ROUND((vstupy!K120*POWER($F$5/50,vstupy!K128))*$I$5,0) -> 638 | AM70: =ROUND((vstupy!L120*POWER($F$5/50,vstupy!L128))*$I$5,0) -> 795 | AN70: 500 | AP70: 500 | AQ70: =ROUND((vstupy!P120*POWER($F$5/50,vstupy!P128))*$I$5,0) -> 318 | AR70: =ROUND((vstupy!Q120*POWER($F$5/50,vstupy!Q128))*$I$5,0) -> 413 | AS70: =ROUND((vstupy!R120*POWER($F$5/50,vstupy!R128))*$I$5,0) -> 567 | AT70: =ROUND((vstupy!S120*POWER($F$5/50,vstupy!S128))*$I$5,0) -> 703 | AU70: =ROUND((vstupy!T120*POWER($F$5/50,vstupy!T128))*$I$5,0) -> 859 | BA70: 500
B71: 600 | C71: =ROUND((((($C$5-$D$5)/(LN(($C$5-$E$5)/($D$5-$E$5))))/49.8328865456397)^vstupy!C129)*vstupy!C121*$I$5,0) -> 329 | D71: =ROUND((((($C$5-$D$5)/(LN(($C$5-$E$5)/($D$5-$E$5))))/49.8328865456397)^vstupy!D129)*vstupy!D121*$I$5,0) -> 429 | E71: =ROUND((((($C$5-$D$5)/(LN(($C$5-$E$5)/($D$5-$E$5))))/49.8328865456397)^vstupy!E129)*vstupy!E121*$I$5,0) -> 596 | F71: =ROUND((((($C$5-$D$5)/(LN(($C$5-$E$5)/($D$5-$E$5))))/49.8328865456397)^vstupy!F129)*vstupy!F121*$I$5,0) -> 750 | G71: =ROUND((((($C$5-$D$5)/(LN(($C$5-$E$5)/($D$5-$E$5))))/49.8328865456397)^vstupy!G129)*vstupy!G121*$I$5,0) -> 934 | H71: =ROUND((((($C$5-$D$5)/(LN(($C$5-$E$5)/($D$5-$E$5))))/49.8328865456397)^vstupy!H129)*vstupy!H121*$I$5,0) -> 329 | I71: =ROUND((((($C$5-$D$5)/(LN(($C$5-$E$5)/($D$5-$E$5))))/49.8328865456397)^vstupy!I129)*vstupy!I121*$I$5,0) -> 429 | J71: =ROUND((((($C$5-$D$5)/(LN(($C$5-$E$5)/($D$5-$E$5))))/49.8328865456397)^vstupy!J129)*vstupy!J121*$I$5,0) -> 596 | K71: =ROUND((((($C$5-$D$5)/(LN(($C$5-$E$5)/($D$5-$E$5))))/49.8328865456397)^vstupy!K129)*vstupy!K121*$I$5,0) -> 750 | L71: =ROUND((((($C$5-$D$5)/(LN(($C$5-$E$5)/($D$5-$E$5))))/49.8328865456397)^vstupy!L129)*vstupy!L121*$I$5,0) -> 934 | M71: 600 | O71: 600 | P71: =ROUND((((($C$5-$D$5)/(LN(($C$5-$E$5)/($D$5-$E$5))))/49.8328865456397)^vstupy!P130)*vstupy!P121*$I$5,0) -> 372 | Q71: =ROUND((((($C$5-$D$5)/(LN(($C$5-$E$5)/($D$5-$E$5))))/49.8328865456397)^vstupy!Q130)*vstupy!Q121*$I$5,0) -> 482 | R71: =ROUND((((($C$5-$D$5)/(LN(($C$5-$E$5)/($D$5-$E$5))))/49.8328865456397)^vstupy!R130)*vstupy!R121*$I$5,0) -> 662 | S71: =ROUND((((($C$5-$D$5)/(LN(($C$5-$E$5)/($D$5-$E$5))))/49.8328865456397)^vstupy!S130)*vstupy!S121*$I$5,0) -> 820 | T71: =ROUND((((($C$5-$D$5)/(LN(($C$5-$E$5)/($D$5-$E$5))))/49.8328865456397)^vstupy!T130)*vstupy!T121*$I$5,0) -> 1003 | Z71: 600 | AC71: 600 | AD71: =ROUND((vstupy!C121*POWER($F$5/50,vstupy!C129))*$I$5,0) -> 329 | AE71: =ROUND((vstupy!D121*POWER($F$5/50,vstupy!D129))*$I$5,0) -> 429 | AF71: =ROUND((vstupy!E121*POWER($F$5/50,vstupy!E129))*$I$5,0) -> 596 | AG71: =ROUND((vstupy!F121*POWER($F$5/50,vstupy!F129))*$I$5,0) -> 750 | AH71: =ROUND((vstupy!G121*POWER($F$5/50,vstupy!G129))*$I$5,0) -> 934 | AI71: =ROUND((vstupy!H121*POWER($F$5/50,vstupy!H129))*$I$5,0) -> 329 | AJ71: =ROUND((vstupy!I121*POWER($F$5/50,vstupy!I129))*$I$5,0) -> 429 | AK71: =ROUND((vstupy!J121*POWER($F$5/50,vstupy!J129))*$I$5,0) -> 596 | AL71: =ROUND((vstupy!K121*POWER($F$5/50,vstupy!K129))*$I$5,0) -> 750 | AM71: =ROUND((vstupy!L121*POWER($F$5/50,vstupy!L129))*$I$5,0) -> 934 | AN71: 600 | AP71: 600 | AQ71: =ROUND((vstupy!P121*POWER($F$5/50,vstupy!P129))*$I$5,0) -> 372 | AR71: =ROUND((vstupy!Q121*POWER($F$5/50,vstupy!Q129))*$I$5,0) -> 482 | AS71: =ROUND((vstupy!R121*POWER($F$5/50,vstupy!R129))*$I$5,0) -> 662 | AT71: =ROUND((vstupy!S121*POWER($F$5/50,vstupy!S129))*$I$5,0) -> 820 | AU71: =ROUND((vstupy!T121*POWER($F$5/50,vstupy!T129))*$I$5,0) -> 1003 | BA71: 600
B72: 750 | C72: =ROUND((((($C$5-$D$5)/(LN(($C$5-$E$5)/($D$5-$E$5))))/49.8328865456397)^vstupy!C130)*vstupy!C122*$I$5,0) -> 400 | D72: =ROUND((((($C$5-$D$5)/(LN(($C$5-$E$5)/($D$5-$E$5))))/49.8328865456397)^vstupy!D130)*vstupy!D122*$I$5,0) -> 522 | E72: =ROUND((((($C$5-$D$5)/(LN(($C$5-$E$5)/($D$5-$E$5))))/49.8328865456397)^vstupy!E130)*vstupy!E122*$I$5,0) -> 726 | F72: =ROUND((((($C$5-$D$5)/(LN(($C$5-$E$5)/($D$5-$E$5))))/49.8328865456397)^vstupy!F130)*vstupy!F122*$I$5,0) -> 913 | G72: =ROUND((((($C$5-$D$5)/(LN(($C$5-$E$5)/($D$5-$E$5))))/49.8328865456397)^vstupy!G130)*vstupy!G122*$I$5,0) -> 1138 | H72: =ROUND((((($C$5-$D$5)/(LN(($C$5-$E$5)/($D$5-$E$5))))/49.8328865456397)^vstupy!H130)*vstupy!H122*$I$5,0) -> 400 | I72: =ROUND((((($C$5-$D$5)/(LN(($C$5-$E$5)/($D$5-$E$5))))/49.8328865456397)^vstupy!I130)*vstupy!I122*$I$5,0) -> 522 | J72: =ROUND((((($C$5-$D$5)/(LN(($C$5-$E$5)/($D$5-$E$5))))/49.8328865456397)^vstupy!J130)*vstupy!J122*$I$5,0) -> 726 | K72: =ROUND((((($C$5-$D$5)/(LN(($C$5-$E$5)/($D$5-$E$5))))/49.8328865456397)^vstupy!K130)*vstupy!K122*$I$5,0) -> 913 | L72: =ROUND((((($C$5-$D$5)/(LN(($C$5-$E$5)/($D$5-$E$5))))/49.8328865456397)^vstupy!L130)*vstupy!L122*$I$5,0) -> 1138 | M72: 750 | O72: 750 | P72: =ROUND((((($C$5-$D$5)/(LN(($C$5-$E$5)/($D$5-$E$5))))/49.8328865456397)^vstupy!P130)*vstupy!P122*$I$5,0) -> 449 | Q72: =ROUND((((($C$5-$D$5)/(LN(($C$5-$E$5)/($D$5-$E$5))))/49.8328865456397)^vstupy!Q130)*vstupy!Q122*$I$5,0) -> 583 | R72: =ROUND((((($C$5-$D$5)/(LN(($C$5-$E$5)/($D$5-$E$5))))/49.8328865456397)^vstupy!R130)*vstupy!R122*$I$5,0) -> 799 | S72: =ROUND((((($C$5-$D$5)/(LN(($C$5-$E$5)/($D$5-$E$5))))/49.8328865456397)^vstupy!S130)*vstupy!S122*$I$5,0) -> 991 | T72: =ROUND((((($C$5-$D$5)/(LN(($C$5-$E$5)/($D$5-$E$5))))/49.8328865456397)^vstupy!T130)*vstupy!T122*$I$5,0) -> 1211 | Z72: 750 | AC72: 750 | AD72: =ROUND((vstupy!C122*POWER($F$5/50,vstupy!C130))*$I$5,0) -> 400 | AE72: =ROUND((vstupy!D122*POWER($F$5/50,vstupy!D130))*$I$5,0) -> 522 | AF72: =ROUND((vstupy!E122*POWER($F$5/50,vstupy!E130))*$I$5,0) -> 726 | AG72: =ROUND((vstupy!F122*POWER($F$5/50,vstupy!F130))*$I$5,0) -> 913 | AH72: =ROUND((vstupy!G122*POWER($F$5/50,vstupy!G130))*$I$5,0) -> 1138 | AI72: =ROUND((vstupy!H122*POWER($F$5/50,vstupy!H130))*$I$5,0) -> 400 | AJ72: =ROUND((vstupy!I122*POWER($F$5/50,vstupy!I130))*$I$5,0) -> 522 | AK72: =ROUND((vstupy!J122*POWER($F$5/50,vstupy!J130))*$I$5,0) -> 726 | AL72: =ROUND((vstupy!K122*POWER($F$5/50,vstupy!K130))*$I$5,0) -> 913 | AM72: =ROUND((vstupy!L122*POWER($F$5/50,vstupy!L130))*$I$5,0) -> 1138 | AN72: 750 | AP72: 750 | AQ72: =ROUND((vstupy!P122*POWER($F$5/50,vstupy!P130))*$I$5,0) -> 449 | AR72: =ROUND((vstupy!Q122*POWER($F$5/50,vstupy!Q130))*$I$5,0) -> 583 | AS72: =ROUND((vstupy!R122*POWER($F$5/50,vstupy!R130))*$I$5,0) -> 799 | AT72: =ROUND((vstupy!S122*POWER($F$5/50,vstupy!S130))*$I$5,0) -> 991 | AU72: =ROUND((vstupy!T122*POWER($F$5/50,vstupy!T130))*$I$5,0) -> 1211 | BA72: 750
C74: KORALUX RONDO EXCLUSIVE - M | P74: KORALUX RONDO EXCLUSIVE - M | AD74: KORALUX RONDO EXCLUSIVE - M | AQ74: KORALUX RONDO EXCLUSIVE - M
B75: Délka L | C75: Výška H [mm] | O75: Délka L | P75: Výška H [mm] | AC75: Délka L | AD75: Výška H [mm] | AP75: Délka L | AQ75: Výška H [mm]
B76: [mm] | C76: 900 | D76: 1220 | E76: 1500 | F76: 1820 | O76: [mm] | P76: 900 | Q76: 1220 | R76: 1500 | S76: 1820 | AC76: [mm] | AD76: 900 | AE76: 1220 | AF76: 1500 | AG76: 1820 | AP76: [mm] | AQ76: 900 | AR76: 1220 | AS76: 1500 | AT76: 1820
B77: 450 | C77: =ROUND((((($C$5-$D$5)/(LN(($C$5-$E$5)/($D$5-$E$5))))/49.8328865456397)^vstupy!C142)*vstupy!C135*$I$5,0) -> 249 | D77: =ROUND((((($C$5-$D$5)/(LN(($C$5-$E$5)/($D$5-$E$5))))/49.8328865456397)^vstupy!D142)*vstupy!D135*$I$5,0) -> 338 | E77: =ROUND((((($C$5-$D$5)/(LN(($C$5-$E$5)/($D$5-$E$5))))/49.8328865456397)^vstupy!E142)*vstupy!E135*$I$5,0) -> 419 | F77: =ROUND((((($C$5-$D$5)/(LN(($C$5-$E$5)/($D$5-$E$5))))/49.8328865456397)^vstupy!F142)*vstupy!F135*$I$5,0) -> 516 | O77: 450 | AC77: 450 | AD77: =ROUND((vstupy!C135*POWER($F$5/50,vstupy!C142))*$I$5,0) -> 249 | AE77: =ROUND((vstupy!D135*POWER($F$5/50,vstupy!D142))*$I$5,0) -> 338 | AF77: =ROUND((vstupy!E135*POWER($F$5/50,vstupy!E142))*$I$5,0) -> 419 | AG77: =ROUND((vstupy!F135*POWER($F$5/50,vstupy!F142))*$I$5,0) -> 516 | AP77: 450
B78: 600 | C78: =ROUND((((($C$5-$D$5)/(LN(($C$5-$E$5)/($D$5-$E$5))))/49.8328865456397)^vstupy!C143)*vstupy!C136*$I$5,0) -> 319 | D78: =ROUND((((($C$5-$D$5)/(LN(($C$5-$E$5)/($D$5-$E$5))))/49.8328865456397)^vstupy!D143)*vstupy!D136*$I$5,0) -> 433 | E78: =ROUND((((($C$5-$D$5)/(LN(($C$5-$E$5)/($D$5-$E$5))))/49.8328865456397)^vstupy!E143)*vstupy!E136*$I$5,0) -> 537 | F78: =ROUND((((($C$5-$D$5)/(LN(($C$5-$E$5)/($D$5-$E$5))))/49.8328865456397)^vstupy!F143)*vstupy!F136*$I$5,0) -> 662 | O78: 600 | AC78: 600 | AD78: =ROUND((vstupy!C136*POWER($F$5/50,vstupy!C143))*$I$5,0) -> 319 | AE78: =ROUND((vstupy!D136*POWER($F$5/50,vstupy!D143))*$I$5,0) -> 433 | AF78: =ROUND((vstupy!E136*POWER($F$5/50,vstupy!E143))*$I$5,0) -> 537 | AG78: =ROUND((vstupy!F136*POWER($F$5/50,vstupy!F143))*$I$5,0) -> 662 | AP78: 600
B79: 750 | C79: =ROUND((((($C$5-$D$5)/(LN(($C$5-$E$5)/($D$5-$E$5))))/49.8328865456397)^vstupy!C144)*vstupy!C137*$I$5,0) -> 387 | D79: =ROUND((((($C$5-$D$5)/(LN(($C$5-$E$5)/($D$5-$E$5))))/49.8328865456397)^vstupy!D144)*vstupy!D137*$I$5,0) -> 526 | E79: =ROUND((((($C$5-$D$5)/(LN(($C$5-$E$5)/($D$5-$E$5))))/49.8328865456397)^vstupy!E144)*vstupy!E137*$I$5,0) -> 652 | F79: =ROUND((((($C$5-$D$5)/(LN(($C$5-$E$5)/($D$5-$E$5))))/49.8328865456397)^vstupy!F144)*vstupy!F137*$I$5,0) -> 802 | O79: 750 | AC79: 750 | AD79: =ROUND((vstupy!C137*POWER($F$5/50,vstupy!C144))*$I$5,0) -> 387 | AE79: =ROUND((vstupy!D137*POWER($F$5/50,vstupy!D144))*$I$5,0) -> 526 | AF79: =ROUND((vstupy!E137*POWER($F$5/50,vstupy!E144))*$I$5,0) -> 652 | AG79: =ROUND((vstupy!F137*POWER($F$5/50,vstupy!F144))*$I$5,0) -> 802 | AP79: 750

Sheet vstupy (hidden)
C11: VÝKONY PRO ZAPOJENÍ ZDOLA DOLŮ | O11: VÝKONY PRO ÚHLOPŘÍČNÉ ZAPOJENÍ
C12: KORALUX LINEAR MAX | H12: KORALUX LINEAR MAX - M | P12: KORALUX LINEAR MAX | U12: KORALUX LINEAR MAX - M
B13: Délka L | C13: Výška H [mm] | H13: Výška H [mm] | M13: Délka L | O13: Délka L | P13: Výška H [mm] | U13: Výška H [mm] | Z13: Délka L
B14: [mm] | C14: 700 | D14: 900 | E14: 1220 | F14: 1500 | G14: 1820 | H14: 700 | I14: 900 | J14: 1220 | K14: 1500 | L14: 1820 | M14: [mm] | O14: [mm] | P14: 700 | Q14: 900 | R14: 1220 | S14: 1500 | T14: 1820 | U14: 700 | V14: 900 | W14: 1220 | X14: 1500 | Y14: 1820 | Z14: [mm]
B15: 450 | C15: 320 | D15: 411 | E15: 557 | F15: 686 | G15: 833 | H15: 320 | I15: 411 | J15: 557 | K15: 686 | L15: 833 | M15: 450 | O15: 450 | P15: 341 | Q15: 436 | R15: 592 | S15: 735 | T15: 906 | Z15: 450
B16: 600 | C16: 422 | D16: 543 | E16: 736 | F16: 906 | G16: 1101 | H16: 422 | I16: 543 | J16: 736 | K16: 906 | L16: 1101 | M16: 600 | O16: 600 | P16: 454 | Q16: 580 | R16: 789 | S16: 979 | T16: 1206 | Z16: 600
B17: 750 | C17: 524 | D17: 673 | E17: 913 | F17: 1124 | G17: 1367 | H17: 524 | I17: 673 | J17: 913 | K17: 1124 | L17: 1367 | M17: 750 | O17: 750 | P17: 567 | Q17: 725 | R17: 985 | S17: 1222 | T17: 1507 | Z17: 750
C19: KORALUX LINEAR MAX | H19: KORALUX LINEAR MAX - M | P19: KORALUX LINEAR MAX | U19: KORALUX LINEAR MAX - M
B20: Délka L | C20: Výška H [mm] | H20: Výška H [mm] | M20: Délka L | O20: Délka L | P20: Výška H [mm] | U20: Výška H [mm] | Z20: Délka L
B21: [mm] | C21: 700 | D21: 900 | E21: 1220 | F21: 1500 | G21: 1820 | H21: 700 | I21: 900 | J21: 1220 | K21: 1500 | L21: 1820 | M21: [mm] | O21: [mm] | P21: 700 | Q21: 900 | R21: 1220 | S21: 1500 | T21: 1820 | U21: 700 | V21: 900 | W21: 1220 | X21: 1500 | Y21: 1820 | Z21: [mm]
B22: 450 | C22: 1.2363 | D22: 1.2465 | E22: 1.2627 | F22: 1.2689 | G22: 1.276 | H22: 1.2363 | I22: 1.2465 | J22: 1.2627 | K22: 1.2689 | L22: 1.276 | M22: 450 | O22: 450 | P22: 1.2765 | Q22: 1.2816 | R22: 1.2896 | S22: 1.2967 | T22: 1.3048
B23: 600 | C23: 1.2476 | D23: 1.256 | E23: 1.2695 | F23: 1.2647 | G23: 1.2592 | H23: 1.2476 | I23: 1.256 | J23: 1.2695 | K23: 1.2647 | L23: 1.2592 | M23: 600 | O23: 600 | P23: 1.2651 | Q23: 1.2694 | R23: 1.2762 | S23: 1.2821 | T23: 1.289
B24: 750 | C24: 1.2588 | D24: 1.2655 | E24: 1.2762 | F24: 1.2604 | G24: 1.2424 | H24: 1.2588 | I24: 1.2655 | J24: 1.2762 | K24: 1.2604 | L24: 1.2424 | M24: 750 | O24: 750 | P24: 1.2537 | Q24: 1.2572 | R24: 1.2627 | S24: 1.2676 | T24: 1.2731 | Z24: 750
C26: KORALUX LINEAR COMFORT | H26: KORALUX LINEAR COMFORT - M | P26: KORALUX LINEAR COMFORT | U26: KORALUX LINEAR COMFORT - M
B27: Délka L | C27: Výška H [mm] | H27: Výška H [mm] | M27: Délka L | O27: Délka L | P27: Výška H [mm] | U27: Výška H [mm] | Z27: Délka L
B28: [mm] | C28: 700 | D28: 900 | E28: 1220 | F28: 1500 | G28: 1820 | H28: 700 | I28: 900 | J28: 1220 | K28: 1500 | L28: 1820 | M28: [mm] | O28: [mm] | P28: 700 | Q28: 900 | R28: 1220 | S28: 1500 | T28: 1820 | U28: 700 | V28: 900 | W28: 1220 | X28: 1500 | Y28: 1820 | Z28: [mm]
B29: 450 | C29: 287 | D29: 369 | E29: 504 | F29: 626 | G29: 772 | H29: 287 | I29: 369 | J29: 504 | K29: 626 | L29: 772 | M29: 450 | O29: 450 | P29: 312 | Q29: 402 | R29: 549 | S29: 682 | T29: 841 | Z29: 450
B30: 500 | C30: 315 | D30: 405 | E30: 553 | F30: 687 | G30: 848 | H30: 315 | I30: 405 | J30: 553 | K30: 687 | L30: 848 | M30: 500 | O30: 500 | P30: 342 | Q30: 440 | R30: 601 | S30: 747 | T30: 921 | Z30: 500
B31: 600 | C31: 370 | D31: 475 | E31: 650 | F31: 808 | G31: 996 | H31: 370 | I31: 475 | J31: 650 | K31: 808 | L31: 996 | M31: 600 | O31: 600 | P31: 400 | Q31: 515 | R31: 703 | S31: 874 | T31: 1078 | Z31: 600
B32: 750 | C32: 450 | D32: 579 | E32: 791 | F32: 984 | G32: 1213 | H32: 450 | I32: 579 | J32: 791 | K32: 984 | L32: 1213 | M32: 750 | O32: 750 | P32: 485 | Q32: 624 | R32: 852 | S32: 1060 | T32: 1307 | Z32: 750
C34: KORALUX LINEAR COMFORT | H34: KORALUX LINEAR COMFORT - M | P34: KORALUX LINEAR COMFORT | U34: KORALUX LINEAR COMFORT - M
B35: Délka L | C35: Výška H [mm] | H35: Výška H [mm] | M35: Délka L | O35: Délka L | P35: Výška H [mm] | U35: Výška H [mm] | Z35: Délka L
B36: [mm] | C36: 700 | D36: 900 | E36: 1220 | F36: 1500 | G36: 1820 | H36: 700 | I36: 900 | J36: 1220 | K36: 1500 | L36: 1820 | M36: [mm] | O36: [mm] | P36: 700 | Q36: 900 | R36: 1220 | S36: 1500 | T36: 1820 | U36: 700 | V36: 900 | W36: 1220 | X36: 1500 | Y36: 1820 | Z36: [mm]
B37: 450 | C37: 1.2452 | D37: 1.2489 | E37: 1.2549 | F37: 1.2589 | G37: 1.2634 | H37: 1.2452 | I37: 1.2489 | J37: 1.2549 | K37: 1.2589 | L37: 1.2634 | M37: 450 | O37: 450 | P37: 1.2638 | Q37: 1.2699 | R37: 1.2797 | S37: 1.2883 | T37: 1.2981 | Z37: 450
B38: 500 | C38: 1.2421 | D38: 1.2463 | E38: 1.2532 | F38: 1.2573 | G38: 1.2621 | H38: 1.2421 | I38: 1.2463 | J38: 1.2532 | K38: 1.2573 | L38: 1.2621 | M38: 500 | O38: 500 | P38: 1.2543 | Q38: 1.2621 | R38: 1.2744 | S38: 1.2853 | T38: 1.2976 | Z38: 500
B39: 600 | C39: 1.2358 | D39: 1.2412 | E39: 1.2499 | F39: 1.2543 | G39: 1.2594 | H39: 1.2358 | I39: 1.2412 | J39: 1.2499 | K39: 1.2543 | L39: 1.2594 | M39: 600 | O39: 600 | P39: 1.2354 | Q39: 1.2463 | R39: 1.2638 | S39: 1.2792 | T39: 1.2967 | Z39: 600
B40: 750 | C40: 1.2263 | D40: 1.2334 | E40: 1.2448 | F40: 1.2497 | G40: 1.2553 | H40: 1.2263 | I40: 1.2334 | J40: 1.2448 | K40: 1.2497 | L40: 1.2553 | M40: 750 | O40: 750 | P40: 1.2069 | Q40: 1.2227 | R40: 1.2479 | S40: 1.27 | T40: 1.2953 | Z40: 750
C42: KORALUX LINEAR CLASSIC | H42: KORALUX LINEAR CLASSIC - M | P42: KORALUX LINEAR CLASSIC | U42: KORALUX LINEAR CLASSIC - M
B43: Délka L | C43: Výška H [mm] | H43: Výška H [mm] | M43: Délka L | O43: Délka L | P43: Výška H [mm] | U43: Výška H [mm] | Z43: Délka L
B44: [mm] | C44: =logic!$L$4 -> Długość | D44: 900 | E44: 1220 | F44: 1500 | G44: 1820 | H44: 700 | I44: 900 | J44: 1220 | K44: 1500 | L44: 1820 | M44: [mm] | O44: [mm] | P44: 700 | Q44: 900 | R44: 1220 | S44: 1500 | T44: 1820 | U44: 700 | V44: 900 | W44: 1220 | X44: 1500 | Y44: 1820 | Z44: [mm]
B45: 450 | C45: =IF(logic!$D$98=1,C164,C200) -> 255 | D45: =IF(logic!$D$98=1,D164,D200) -> 333 | E45: =IF(logic!$D$98=1,E164,E200) -> 462 | F45: =IF(logic!$D$98=1,F164,F200) -> 581 | G45: =IF(logic!$D$98=1,G164,G200) -> 725 | H45: =IF(logic!$D$98=1,H164,H200) -> 255 | I45: =IF(logic!$D$98=1,I164,I200) -> 333 | J45: =IF(logic!$D$98=1,J164,J200) -> 462 | K45: =IF(logic!$D$98=1,K164,K200) -> 581 | L45: =IF(logic!$D$98=1,L164,L200) -> 725 | M45: 450 | O45: 450 | P45: 291 | Q45: 378 | R45: 519 | S45: 643 | T45: 786 | Z45: 450
B46: 500 | C46: =IF(logic!$D$98=1,C165,C201) -> 280 | D46: =IF(logic!$D$98=1,D165,D201) -> 365 | E46: =IF(logic!$D$98=1,E165,E201) -> 507 | F46: =IF(logic!$D$98=1,F165,F201) -> 638 | G46: =IF(logic!$D$98=1,G165,G201) -> 795 | H46: =IF(logic!$D$98=1,H165,H201) -> 280 | I46: =IF(logic!$D$98=1,I165,I201) -> 365 | J46: =IF(logic!$D$98=1,J165,J201) -> 507 | K46: =IF(logic!$D$98=1,K165,K201) -> 638 | L46: =IF(logic!$D$98=1,L165,L201) -> 795 | M46: 500 | O46: 500 | P46: 318 | Q46: 413 | R46: 567 | S46: 703 | T46: 859 | Z46: 500
B47: 600 | C47: =IF(logic!$D$98=1,C166,C202) -> 329 | D47: =IF(logic!$D$98=1,D166,D202) -> 429 | E47: =IF(logic!$D$98=1,E166,E202) -> 596 | F47: =IF(logic!$D$98=1,F166,F202) -> 750 | G47: =IF(logic!$D$98=1,G166,G202) -> 934 | H47: =IF(logic!$D$98=1,H166,H202) -> 329 | I47: =IF(logic!$D$98=1,I166,I202) -> 429 | J47: =IF(logic!$D$98=1,J166,J202) -> 596 | K47: =IF(logic!$D$98=1,K166,K202) -> 750 | L47: =IF(logic!$D$98=1,L166,L202) -> 934 | M47: 600 | O47: 600 | P47: 372 | Q47: 482 | R47: 662 | S47: 820 | T47: 1003 | Z47: 600
B48: 750 | C48: =IF(logic!$D$98=1,C167,C203) -> 400 | D48: =IF(logic!$D$98=1,D167,D203) -> 522 | E48: =IF(logic!$D$98=1,E167,E203) -> 726 | F48: =IF(logic!$D$98=1,F167,F203) -> 913 | G48: =IF(logic!$D$98=1,G167,G203) -> 1138 | H48: =IF(logic!$D$98=1,H167,H203) -> 400 | I48: =IF(logic!$D$98=1,I167,I203) -> 522 | J48: =IF(logic!$D$98=1,J167,J203) -> 726 | K48: =IF(logic!$D$98=1,K167,K203) -> 913 | L48: =IF(logic!$D$98=1,L167,L203) -> 1138 | M48: 750 | O48: 750 | P48: 449 | Q48: 583 | R48: 799 | S48: 991 | T48: 1211 | Z48: 750
C50: KORALUX LINEAR CLASSIC | H50: KORALUX LINEAR CLASSIC - M | P50: KORALUX LINEAR CLASSIC | U50: KORALUX LINEAR CLASSIC - M
B51: Délka L | C51: Výška H [mm] | H51: Výška H [mm] | M51: Délka L | O51: Délka L | P51: Výška H [mm] | U51: Výška H [mm] | Z51: Délka L
B52: [mm] | C52: 700 | D52: 900 | E52: 1220 | F52: 1500 | G52: 1820 | H52: 700 | I52: 900 | J52: 1220 | K52: 1500 | L52: 1820 | M52: [mm] | O52: [mm] | P52: 700 | Q52: 900 | R52: 1220 | S52: 1500 | T52: 1820 | U52: 700 | V52: 900 | W52: 1220 | X52: 1500 | Y52: 1820 | Z52: [mm]
B53: 450 | C53: =IF(logic!$D$98=1,C172,C208) -> 1.2226 | D53: =IF(logic!$D$98=1,D172,D208) -> 1.2358 | E53: =IF(logic!$D$98=1,E172,E208) -> 1.2568 | F53: =IF(logic!$D$98=1,F172,F208) -> 1.2521 | G53: =IF(logic!$D$98=1,G172,G208) -> 1.2421 | H53: =IF(logic!$D$98=1,H172,H208) -> 1.2226 | I53: =IF(logic!$D$98=1,I172,I208) -> 1.2358 | J53: =IF(logic!$D$98=1,J172,J208) -> 1.2568 | K53: =IF(logic!$D$98=1,K172,K208) -> 1.2521 | L53: =IF(logic!$D$98=1,L172,L208) -> 1.2421 | M53: 450 | O53: 450 | P53: 1.2765 | Q53: 1.2783 | R53: 1.2811 | S53: 1.2836 | T53: 1.2864 | Z53: 450
B54: 500 | C54: =IF(logic!$D$98=1,C173,C209) -> 1.2226 | D54: =IF(logic!$D$98=1,D173,D209) -> 1.2347 | E54: =IF(logic!$D$98=1,E173,E209) -> 1.254 | F54: =IF(logic!$D$98=1,F173,F209) -> 1.2483 | G54: =IF(logic!$D$98=1,G173,G209) -> 1.2393 | H54: =IF(logic!$D$98=1,H173,H209) -> 1.2226 | I54: =IF(logic!$D$98=1,I173,I209) -> 1.2347 | J54: =IF(logic!$D$98=1,J173,J209) -> 1.254 | K54: =IF(logic!$D$98=1,K173,K209) -> 1.2483 | L54: =IF(logic!$D$98=1,L173,L209) -> 1.2393 | M54: 500 | O54: 500 | P54: 1.2655 | Q54: 1.2691 | R54: 1.2749 | S54: 1.28 | T54: 1.2859 | Z54: 500
B55: 600 | C55: =IF(logic!$D$98=1,C174,C210) -> 1.2225 | D55: =IF(logic!$D$98=1,D174,D210) -> 1.2325 | E55: =IF(logic!$D$98=1,E174,E210) -> 1.2484 | F55: =IF(logic!$D$98=1,F174,F210) -> 1.2408 | G55: =IF(logic!$D$98=1,G174,G210) -> 1.2337 | H55: =IF(logic!$D$98=1,H174,H210) -> 1.2225 | I55: =IF(logic!$D$98=1,I174,I210) -> 1.2325 | J55: =IF(logic!$D$98=1,J174,J210) -> 1.2484 | K55: =IF(logic!$D$98=1,K174,K210) -> 1.2408 | L55: =IF(logic!$D$98=1,L174,L210) -> 1.2337 | M55: 600 | O55: 600 | P55: 1.2435 | Q55: 1.2509 | R55: 1.2627 | S55: 1.273 | T55: 1.2848 | Z55: 600
B56: 750 | C56: =IF(logic!$D$98=1,C175,C211) -> 1.2224 | D56: =IF(logic!$D$98=1,D175,D211) -> 1.2292 | E56: =IF(logic!$D$98=1,E175,E211) -> 1.24 | F56: =IF(logic!$D$98=1,F175,F211) -> 1.2294 | G56: =IF(logic!$D$98=1,G175,G211) -> 1.2252 | H56: =IF(logic!$D$98=1,H175,H211) -> 1.2224 | I56: =IF(logic!$D$98=1,I175,I211) -> 1.2292 | J56: =IF(logic!$D$98=1,J175,J211) -> 1.24 | K56: =IF(logic!$D$98=1,K175,K211) -> 1.2294 | L56: =IF(logic!$D$98=1,L175,L211) -> 1.2252 | M56: 750 | O56: 750 | P56: 1.2105 | Q56: 1.2235 | R56: 1.2442 | S56: 1.2624 | T56: 1.2831 | Z56: 750
C58: KORALUX STANDARD | P58: KORALUX STANDARD
B59: Délka L | C59: Výška H [mm] | O59: Délka L | P59: Výška H [mm]
B60: [mm] | C60: 700 | D60: 900 | E60: 1220 | F60: 1500 | O60: [mm] | P60: 700 | Q60: 900 | R60: 1220 | S60: 1500
B61: 400 | C61: 198 | D61: 254 | E61: 345 | F61: 427 | O61: 400 | P61: 213 | Q61: 275 | R61: 373 | S61: 458
B62: 500 | C62: 231 | D62: 297 | E62: 403 | F62: 499 | O62: 500 | P62: 249 | Q62: 322 | R62: 436 | S62: 536
B63: 600 | C63: 263 | D63: 337 | E63: 458 | F63: 567 | O63: 600 | P63: 283 | Q63: 365 | R63: 496 | S63: 609
C65: KORALUX STANDARD | P65: KORALUX STANDARD
B66: Délka L | C66: Výška H [mm] | O66: Délka L | P66: Výška H [mm]
B67: [mm] | C67: 700 | D67: 900 | E67: 1220 | F67: 1500 | O67: [mm] | P67: 700 | Q67: 900 | R67: 1220 | S67: 1500
B68: 400 | C68: 1.2347 | D68: 1.2153 | E68: 1.2274 | F68: 1.2423 | O68: 400 | P68: 1.2674 | Q68: 1.2365 | R68: 1.2274 | S68: 1.264
B69: 500 | C69: 1.2278 | D69: 1.2219 | E69: 1.2341 | F69: 1.2456 | O69: 500 | P69: 1.2616 | Q69: 1.2432 | R69: 1.2341 | S69: 1.2568
B70: 600 | C70: 1.2209 | D70: 1.2285 | E70: 1.2407 | F70: 1.2489 | O70: 600 | P70: 1.2557 | Q70: 1.2499 | R70: 1.2407 | S70: 1.2532
C72: KORALUX LINEAR EXCLUSIVE - M | P72: KORALUX LINEAR EXCLUSIVE - M
B73: Délka L | C73: Výška H [mm] | O73: Délka L | P73: Výška H [mm]
B74: [mm] | C74: 900 | D74: 1220 | E74: 1500 | F74: 1820 | O74: [mm] | P74: 900 | Q74: 1220 | R74: 1500 | S74: 1820
B75: 450 | C75: 249 | D75: 338 | E75: 419 | F75: 516 | O75: 450
B76: 600 | C76: 319 | D76: 433 | E76: 537 | F76: 662 | O76: 600
B77: 750 | C77: 387 | D77: 526 | E77: 652 | F77: 802 | O77: 750
C79: KORALUX LINEAR EXCLUSIVE - M | P79: KORALUX LINEAR EXCLUSIVE - M
B80: Délka L | C80: Výška H [mm] | O80: Délka L | P80: Výška H [mm]
B81: [mm] | C81: 900 | D81: 1220 | E81: 1500 | F81: 1820 | O81: [mm] | P81: 900 | Q81: 1220 | R81: 1500 | S81: 1820
B82: 450 | C82: 1.2519 | D82: 1.2769 | E82: 1.266 | F82: 1.2625 | O82: 450
B83: 600 | C83: 1.2522 | D83: 1.271 | E83: 1.2607 | F83: 1.2563 | O83: 600
B84: 750 | C84: 1.2526 | D84: 1.265 | E84: 1.2553 | F84: 1.25 | O84: 750
C86: KORALUX RONDO MAX | H86: KORALUX RONDO MAX - M | P86: KORALUX RONDO MAX | U86: KORALUX RONDO MAX - M
B87: Délka L | C87: Výška H [mm] | H87: Výška H [mm] | M87: Délka L | O87: Délka L | P87: Výška H [mm] | U87: Výška H [mm] | Z87: Délka L
B88: [mm] | C88: 700 | D88: 900 | E88: 1220 | F88: 1500 | G88: 1820 | H88: 700 | I88: 900 | J88: 1220 | K88: 1500 | L88: 1820 | M88: [mm] | O88: [mm] | P88: 700 | Q88: 900 | R88: 1220 | S88: 1500 | T88: 1820 | U88: 700 | V88: 900 | W88: 1220 | X88: 1500 | Y88: 1820 | Z88: [mm]
B89: 450 | C89: 335 | D89: 432 | E89: 589 | F89: 725 | G89: 879 | H89: 335 | I89: 432 | J89: 589 | K89: 725 | L89: 879 | M89: 450 | O89: 450 | P89: 361 | Q89: 462 | R89: 625 | S89: 771 | T89: 942 | Z89: 450
B90: 600 | C90: 444 | D90: 574 | E90: 781 | F90: 962 | G90: 1166 | H90: 444 | I90: 574 | J90: 781 | K90: 962 | L90: 1166 | M90: 600 | O90: 600 | P90: 480 | Q90: 614 | R90: 832 | S90: 1026 | T90: 1253 | Z90: 600
B91: 750 | C91: 553 | D91: 714 | E91: 973 | F91: 1197 | G91: 1452 | H91: 553 | I91: 714 | J91: 973 | K91: 1197 | L91: 1452 | M91: 750 | O91: 750 | P91: 599 | Q91: 767 | R91: 1038 | S91: 1280 | T91: 1564 | Z91: 750
C93: KORALUX RONDO MAX | H93: KORALUX RONDO MAX - M | P93: KORALUX RONDO MAX | U93: KORALUX RONDO MAX - M
B94: Délka L | C94: Výška H [mm] | H94: Výška H [mm] | M94: Délka L | O94: Délka L | P94: Výška H [mm] | U94: Výška H [mm] | Z94: Délka L
B95: [mm] | C95: 700 | D95: 900 | E95: 1220 | F95: 1500 | G95: 1820 | H95: 700 | I95: 900 | J95: 1220 | K95: 1500 | L95: 1820 | M95: [mm] | O95: [mm] | P95: 700 | Q95: 900 | R95: 1220 | S95: 1500 | T95: 1820 | U95: 700 | V95: 900 | W95: 1220 | X95: 1500 | Y95: 1820 | Z95: [mm]
B96: 450 | C96: 1.2322 | D96: 1.2336 | E96: 1.2357 | F96: 1.2376 | G96: 1.2398 | H96: 1.2322 | I96: 1.2336 | J96: 1.2357 | K96: 1.2376 | L96: 1.2398 | M96: 450 | O96: 450 | P96: 1.266 | Q96: 1.2674 | R96: 1.2697 | S96: 1.2717 | T96: 1.274 | Z96: 450
B97: 600 | C97: 1.2279 | D97: 1.2343 | E97: 1.2446 | F97: 1.2384 | G97: 1.2314 | H97: 1.2279 | I97: 1.2343 | J97: 1.2446 | K97: 1.2384 | L97: 1.2314 | M97: 600 | O97: 600 | P97: 1.2554 | Q97: 1.2568 | R97: 1.2591 | S97: 1.2611 | T97: 1.2634 | Z97: 600
B98: 750 | C98: 1.2235 | D98: 1.235 | E98: 1.2534 | F98: 1.2392 | G98: 1.2229 | H98: 1.2235 | I98: 1.235 | J98: 1.2534 | K98: 1.2392 | L98: 1.2229 | M98: 750 | O98: 750 | P98: 1.2448 | Q98: 1.2462 | R98: 1.2485 | S98: 1.2505 | T98: 1.2528 | Z98: 750
C100: KORALUX RONDO COMFORT | H100: KORALUX RONDO COMFORT - M | P100: KORALUX RONDO COMFORT | U100: KORALUX RONDO COMFORT - M
B101: Délka L | C101: Výška H [mm] | H101: Výška H [mm] | M101: Délka L | O101: Délka L | P101: Výška H [mm] | U101: Výška H [mm] | Z101: Délka L
B102: [mm] | C102: 700 | D102: 900 | E102: 1220 | F102: 1500 | G102: 1820 | H102: 700 | I102: 900 | J102: 1220 | K102: 1500 | L102: 1820 | M102: [mm] | O102: [mm] | P102: 700 | Q102: 900 | R102: 1220 | S102: 1500 | T102: 1820 | U102: 700 | V102: 900 | W102: 1220 | X102: 1500 | Y102: 1820 | Z102: [mm]
B103: 450 | C103: 287 | D103: 369 | E103: 504 | F103: 626 | G103: 772 | H103: 287 | I103: 369 | J103: 504 | K103: 626 | L103: 772 | M103: 450 | O103: 450 | P103: 312 | Q103: 402 | R103: 549 | S103: 682 | T103: 841 | Z103: 450
B104: 500 | C104: 315 | D104: 405 | E104: 553 | F104: 687 | G104: 848 | H104: 315 | I104: 405 | J104: 553 | K104: 687 | L104: 848 | M104: 500 | O104: 500 | P104: 342 | Q104: 440 | R104: 601 | S104: 747 | T104: 921 | Z104: 500
B105: 600 | C105: 370 | D105: 475 | E105: 650 | F105: 808 | G105: 996 | H105: 370 | I105: 475 | J105: 650 | K105: 808 | L105: 996 | M105: 600 | O105: 600 | P105: 400 | Q105: 515 | R105: 703 | S105: 874 | T105: 1078 | Z105: 600
B106: 750 | C106: 450 | D106: 579 | E106: 791 | F106: 984 | G106: 1213 | H106: 450 | I106: 579 | J106: 791 | K106: 984 | L106: 1213 | M106: 750 | O106: 750 | P106: 485 | Q106: 624 | R106: 852 | S106: 1060 | T106: 1307 | Z106: 750
C108: KORALUX RONDO COMFORT | H108: KORALUX RONDO COMFORT - M | P108: KORALUX RONDO COMFORT | U108: KORALUX RONDO COMFORT - M
B109: Délka L | C109: Výška H [mm] | H109: Výška H [mm] | M109: Délka L | O109: Délka L | P109: Výška H [mm] | U109: Výška H [mm] | Z109: Délka L
B110: [mm] | C110: 700 | D110: 900 | E110: 1220 | F110: 1500 | G110: 1820 | H110: 700 | I110: 900 | J110: 1220 | K110: 1500 | L110: 1820 | M110: [mm] | O110: [mm] | P110: 700 | Q110: 900 | R110: 1220 | S110: 1500 | T110: 1820 | U110: 700 | V110: 900 | W110: 1220 | X110: 1500 | Y110: 1820 | Z110: [mm]
B111: 450 | C111: 1.2452 | D111: 1.2489 | E111: 1.2549 | F111: 1.2589 | G111: 1.2634 | H111: 1.2452 | I111: 1.2489 | J111: 1.2549 | K111: 1.2589 | L111: 1.2634 | M111: 450 | O111: 450 | P111: 1.2638 | Q111: 1.2699 | R111: 1.2797 | S111: 1.2883 | T111: 1.2981 | Z111: 450
B112: 500 | C112: 1.2421 | D112: 1.2463 | E112: 1.2532 | F112: 1.2573 | G112: 1.2621 | H112: 1.2421 | I112: 1.2463 | J112: 1.2532 | K112: 1.2573 | L112: 1.2621 | M112: 500 | O112: 500 | P112: 1.2543 | Q112: 1.2621 | R112: 1.2744 | S112: 1.2853 | T112: 1.2976 | Z112: 500
B113: 600 | C113: 1.2358 | D113: 1.2412 | E113: 1.2499 | F113: 1.2543 | G113: 1.2594 | H113: 1.2358 | I113: 1.2412 | J113: 1.2499 | K113: 1.2543 | L113: 1.2594 | M113: 600 | O113: 600 | P113: 1.2354 | Q113: 1.2463 | R113: 1.2638 | S113: 1.2792 | T113: 1.2967 | Z113: 600
B114: 750 | C114: 1.2263 | D114: 1.2334 | E114: 1.2448 | F114: 1.2497 | G114: 1.2553 | H114: 1.2263 | I114: 1.2334 | J114: 1.2448 | K114: 1.2497 | L114: 1.2553 | M114: 750 | O114: 750 | P114: 1.2069 | Q114: 1.2227 | R114: 1.2479 | S114: 1.27 | T114: 1.2953 | Z114: 750
C116: KORALUX RONDO CLASSIC | H116: KORALUX RONDO CLASSIC - M | P116: KORALUX RONDO CLASSIC | U116: KORALUX RONDO CLASSIC - M
B117: Délka L | C117: Výška H [mm] | H117: Výška H [mm] | M117: Délka L | O117: Délka L | P117: Výška H [mm] | U117: Výška H [mm] | Z117: Délka L
B118: [mm] | C118: 700 | D118: 900 | E118: 1220 | F118: 1500 | G118: 1820 | H118: 700 | I118: 900 | J118: 1220 | K118: 1500 | L118: 1820 | M118: [mm] | O118: [mm] | P118: 700 | Q118: 900 | R118: 1220 | S118: 1500 | T118: 1820 | U118: 700 | V118: 900 | W118: 1220 | X118: 1500 | Y118: 1820 | Z118: [mm]
B119: 450 | C119: =IF(logic!$D$98=1,C180,C216) -> 255 | D119: =IF(logic!$D$98=1,D180,D216) -> 333 | E119: =IF(logic!$D$98=1,E180,E216) -> 462 | F119: =IF(logic!$D$98=1,F180,F216) -> 581 | G119: =IF(logic!$D$98=1,G180,G216) -> 725 | H119: =IF(logic!$D$98=1,H180,H216) -> 255 | I119: =IF(logic!$D$98=1,I180,I216) -> 333 | J119: =IF(logic!$D$98=1,J180,J216) -> 462 | K119: =IF(logic!$D$98=1,K180,K216) -> 581 | L119: =IF(logic!$D$98=1,L180,L216) -> 725 | M119: 450 | O119: 450 | P119: 291 | Q119: 378 | R119: 519 | S119: 643 | T119: 786 | Z119: 450
B120: 500 | C120: =IF(logic!$D$98=1,C181,C217) -> 280 | D120: =IF(logic!$D$98=1,D181,D217) -> 365 | E120: =IF(logic!$D$98=1,E181,E217) -> 507 | F120: =IF(logic!$D$98=1,F181,F217) -> 638 | G120: =IF(logic!$D$98=1,G181,G217) -> 795 | H120: =IF(logic!$D$98=1,H181,H217) -> 280 | I120: =IF(logic!$D$98=1,I181,I217) -> 365 | J120: =IF(logic!$D$98=1,J181,J217) -> 507 | K120: =IF(logic!$D$98=1,K181,K217) -> 638 | L120: =IF(logic!$D$98=1,L181,L217) -> 795 | M120: 500 | O120: 500 | P120: 318 | Q120: 413 | R120: 567 | S120: 703 | T120: 859 | Z120: 500
B121: 600 | C121: =IF(logic!$D$98=1,C182,C218) -> 329 | D121: =IF(logic!$D$98=1,D182,D218) -> 429 | E121: =IF(logic!$D$98=1,E182,E218) -> 596 | F121: =IF(logic!$D$98=1,F182,F218) -> 750 | G121: =IF(logic!$D$98=1,G182,G218) -> 934 | H121: =IF(logic!$D$98=1,H182,H218) -> 329 | I121: =IF(logic!$D$98=1,I182,I218) -> 429 | J121: =IF(logic!$D$98=1,J182,J218) -> 596 | K121: =IF(logic!$D$98=1,K182,K218) -> 750 | L121: =IF(logic!$D$98=1,L182,L218) -> 934 | M121: 600 | O121: 600 | P121: 372 | Q121: 482 | R121: 662 | S121: 820 | T121: 1003 | Z121: 600
B122: 750 | C122: =IF(logic!$D$98=1,C183,C219) -> 400 | D122: =IF(logic!$D$98=1,D183,D219) -> 522 | E122: =IF(logic!$D$98=1,E183,E219) -> 726 | F122: =IF(logic!$D$98=1,F183,F219) -> 913 | G122: =IF(logic!$D$98=1,G183,G219) -> 1138 | H122: =IF(logic!$D$98=1,H183,H219) -> 400 | I122: =IF(logic!$D$98=1,I183,I219) -> 522 | J122: =IF(logic!$D$98=1,J183,J219) -> 726 | K122: =IF(logic!$D$98=1,K183,K219) -> 913 | L122: =IF(logic!$D$98=1,L183,L219) -> 1138 | M122: 750 | O122: 750 | P122: 449 | Q122: 583 | R122: 799 | S122: 991 | T122: 1211 | Z122: 750
C124: KORALUX RONDO CLASSIC | H124: KORALUX RONDO CLASSIC - M | P124: KORALUX RONDO CLASSIC | U124: KORALUX RONDO CLASSIC - M
B125: Délka L | C125: Výška H [mm] | H125: Výška H [mm] | M125: Délka L | O125: Délka L | P125: Výška H [mm] | U125: Výška H [mm] | Z125: Délka L
B126: [mm] | C126: 700 | D126: 900 | E126: 1220 | F126: 1500 | G126: 1820 | H126: 700 | I126: 900 | J126: 1220 | K126: 1500 | L126: 1820 | M126: [mm] | O126: [mm] | P126: 700 | Q126: 900 | R126: 1220 | S126: 1500 | T126: 1820 | U126: 700 | V126: 900 | W126: 1220 | X126: 1500 | Y126: 1820 | Z126: [mm]
B127: 450 | C127: =IF(logic!$D$98=1,C188,C224) -> 1.2226 | D127: =IF(logic!$D$98=1,D188,D224) -> 1.2358 | E127: =IF(logic!$D$98=1,E188,E224) -> 1.2568 | F127: =IF(logic!$D$98=1,F188,F224) -> 1.2521 | G127: =IF(logic!$D$98=1,G188,G224) -> 1.2421 | H127: =IF(logic!$D$98=1,H188,H224) -> 1.2226 | I127: =IF(logic!$D$98=1,I188,I224) -> 1.2358 | J127: =IF(logic!$D$98=1,J188,J224) -> 1.2568 | K127: =IF(logic!$D$98=1,K188,K224) -> 1.2521 | L127: =IF(logic!$D$98=1,L188,L224) -> 1.2421 | M127: 450 | O127: 450 | P127: 1.2765 | Q127: 1.2783 | R127: 1.2811 | S127: 1.2836 | T127: 1.2864 | Z127: 450
B128: 500 | C128: =IF(logic!$D$98=1,C189,C225) -> 1.2226 | D128: =IF(logic!$D$98=1,D189,D225) -> 1.2347 | E128: =IF(logic!$D$98=1,E189,E225) -> 1.254 | F128: =IF(logic!$D$98=1,F189,F225) -> 1.2483 | G128: =IF(logic!$D$98=1,G189,G225) -> 1.2393 | H128: =IF(logic!$D$98=1,H189,H225) -> 1.2226 | I128: =IF(logic!$D$98=1,I189,I225) -> 1.2347 | J128: =IF(logic!$D$98=1,J189,J225) -> 1.254 | K128: =IF(logic!$D$98=1,K189,K225) -> 1.2483 | L128: =IF(logic!$D$98=1,L189,L225) -> 1.2393 | M128: 500 | O128: 500 | P128: 1.2655 | Q128: 1.2691 | R128: 1.2749 | S128: 1.28 | T128: 1.2859 | Z128: 500
B129: 600 | C129: =IF(logic!$D$98=1,C190,C226) -> 1.2225 | D129: =IF(logic!$D$98=1,D190,D226) -> 1.2325 | E129: =IF(logic!$D$98=1,E190,E226) -> 1.2484 | F129: =IF(logic!$D$98=1,F190,F226) -> 1.2408 | G129: =IF(logic!$D$98=1,G190,G226) -> 1.2337 | H129: =IF(logic!$D$98=1,H190,H226) -> 1.2225 | I129: =IF(logic!$D$98=1,I190,I226) -> 1.2325 | J129: =IF(logic!$D$98=1,J190,J226) -> 1.2484 | K129: =IF(logic!$D$98=1,K190,K226) -> 1.2408 | L129: =IF(logic!$D$98=1,L190,L226) -> 1.2337 | M129: 600 | O129: 600 | P129: 1.2435 | Q129: 1.2509 | R129: 1.2627 | S129: 1.273 | T129: 1.2848 | Z129: 600
B130: 750 | C130: =IF(logic!$D$98=1,C191,C227) -> 1.2224 | D130: =IF(logic!$D$98=1,D191,D227) -> 1.2292 | E130: =IF(logic!$D$98=1,E191,E227) -> 1.24 | F130: =IF(logic!$D$98=1,F191,F227) -> 1.2294 | G130: =IF(logic!$D$98=1,G191,G227) -> 1.2252 | H130: =IF(logic!$D$98=1,H191,H227) -> 1.2224 | I130: =IF(logic!$D$98=1,I191,I227) -> 1.2292 | J130: =IF(logic!$D$98=1,J191,J227) -> 1.24 | K130: =IF(logic!$D$98=1,K191,K227) -> 1.2294 | L130: =IF(logic!$D$98=1,L191,L227) -> 1.2252 | M130: 750 | O130: 750 | P130: 1.2105 | Q130: 1.2235 | R130: 1.2442 | S130: 1.2624 | T130: 1.2831 | Z130: 750
C132: KORALUX RONDO EXCLUSIVE - M | P132: KORALUX RONDO EXCLUSIVE - M
B133: Délka L | C133: Výška H [mm] | O133: Délka L | P133: Výška H [mm]
B134: [mm] | C134: 900 | D134: 1220 | E134: 1500 | F134: 1820 | O134: [mm] | P134: 900 | Q134: 1220 | R134: 1500 | S134: 1820
B135: 450 | C135: 249 | D135: 338 | E135: 419 | F135: 516 | O135: 450
B136: 600 | C136: 319 | D136: 433 | E136: 537 | F136: 662 | O136: 600
B137: 750 | C137: 387 | D137: 526 | E137: 652 | F137: 802 | O137: 750
C139: KORALUX RONDO EXCLUSIVE - M | P139: KORALUX RONDO EXCLUSIVE - M
B140: Délka L | C140: Výška H [mm] | O140: Délka L | P140: Výška H [mm]
B141: [mm] | C141: 900 | D141: 1220 | E141: 1500 | F141: 1820 | O141: [mm] | P141: 900 | Q141: 1220 | R141: 1500 | S141: 1820
B142: 450 | C142: 1.2519 | D142: 1.2769 | E142: 1.266 | F142: 1.2625 | O142: 450
B143: 600 | C143: 1.2522 | D143: 1.271 | E143: 1.2607 | F143: 1.2563 | O143: 600
B144: 750 | C144: 1.2526 | D144: 1.265 | E144: 1.2553 | F144: 1.25 | O144: 750
C146: KORALUX NEO | P146: KORALUX NEO
B147: Délka L | C147: Výška H [mm] | O147: Délka L | P147: Výška H [mm]
B148: [mm] | C148: 1095 | D148: 1415 | E148: 1695 | O148: [mm] | P148: 1095 | Q148: 1415 | R148: 1695
B149: 496 | C149: 520 | D149: 670 | E149: 803 | O149: 496
B150: 596 | C150: 593 | D150: 763 | E150: 914 | O150: 596
C152: KORALUX NEO | P152: KORALUX NEO
B153: Délka L | C153: Výška H [mm] | O153: Délka L | P153: Výška H [mm]
B154: [mm] | C154: 1095 | D154: 1415 | E154: 1695 | O154: [mm] | P154: 1095 | Q154: 1415 | R154: 1695
B155: 496 | C155: 1.3258 | D155: 1.3313 | E155: 1.3361 | O155: 496
B156: 596 | C156: 1.3258 | D156: 1.3313 | E156: 1.3361 | O156: 596
A159: české
C161: KORALUX LINEAR CLASSIC | H161: KORALUX LINEAR CLASSIC - M
B162: Délka L | C162: Výška H [mm] | H162: Výška H [mm] | M162: Délka L
B163: [mm] | C163: 700 | D163: 900 | E163: 1220 | F163: 1500 | G163: 1820 | H163: 700 | I163: 900 | J163: 1220 | K163: 1500 | L163: 1820 | M163: [mm]
B164: 450 | C164: 267 | D164: 348 | E164: 479 | F164: 597 | G164: 735 | H164: 267 | I164: 348 | J164: 479 | K164: 597 | L164: 735 | M164: 450
B165: 500 | C165: 292 | D165: 380 | E165: 523 | F165: 652 | G165: 803 | H165: 292 | I165: 380 | J165: 523 | K165: 652 | L165: 803 | M165: 500
B166: 600 | C166: 341 | D166: 443 | E166: 611 | F166: 761 | G166: 937 | H166: 341 | I166: 443 | J166: 611 | K166: 761 | L166: 937 | M166: 600
B167: 750 | C167: 412 | D167: 535 | E167: 737 | F167: 919 | G167: 1131 | H167: 412 | I167: 535 | J167: 737 | K167: 919 | L167: 1131 | M167: 750
C169: KORALUX LINEAR CLASSIC | H169: KORALUX LINEAR CLASSIC - M
B170: Délka L | C170: Výška H [mm] | H170: Výška H [mm] | M170: Délka L
B171: [mm] | C171: 700 | D171: 900 | E171: 1220 | F171: 1500 | G171: 1820 | H171: 700 | I171: 900 | J171: 1220 | K171: 1500 | L171: 1820 | M171: [mm]
B172: 450 | C172: 1.2309 | D172: 1.2392 | E172: 1.2524 | F172: 1.2514 | G172: 1.2503 | H172: 1.2309 | I172: 1.2392 | J172: 1.2524 | K172: 1.2514 | L172: 1.2503 | M172: 450
B173: 500 | C173: 1.2293 | D173: 1.2374 | E173: 1.2505 | F173: 1.2501 | G173: 1.2496 | H173: 1.2293 | I173: 1.2374 | J173: 1.2505 | K173: 1.2501 | L173: 1.2496 | M173: 500
B174: 600 | C174: 1.226 | D174: 1.234 | E174: 1.2468 | F174: 1.2474 | G174: 1.2481 | H174: 1.226 | I174: 1.234 | J174: 1.2468 | K174: 1.2474 | L174: 1.2481 | M174: 600
B175: 750 | C175: 1.2211 | D175: 1.2288 | E175: 1.2412 | F175: 1.2433 | G175: 1.2458 | H175: 1.2211 | I175: 1.2288 | J175: 1.2412 | K175: 1.2433 | L175: 1.2458 | M175: 750
C177: KORALUX RONDO CLASSIC | H177: KORALUX RONDO CLASSIC - M
B178: Délka L | C178: Výška H [mm] | H178: Výška H [mm] | M178: Délka L
B179: [mm] | C179: 700 | D179: 900 | E179: 1220 | F179: 1500 | G179: 1820 | H179: 700 | I179: 900 | J179: 1220 | K179: 1500 | L179: 1820 | M179: [mm]
B180: 450 | C180: 267 | D180: 348 | E180: 479 | F180: 597 | G180: 735 | H180: 267 | I180: 348 | J180: 479 | K180: 597 | L180: 735 | M180: 450
B181: 500 | C181: 292 | D181: 380 | E181: 523 | F181: 652 | G181: 803 | H181: 292 | I181: 380 | J181: 523 | K181: 652 | L181: 803 | M181: 500
B182: 600 | C182: 341 | D182: 443 | E182: 611 | F182: 761 | G182: 937 | H182: 341 | I182: 443 | J182: 611 | K182: 761 | L182: 937 | M182: 600
B183: 750 | C183: 412 | D183: 535 | E183: 737 | F183: 919 | G183: 1131 | H183: 412 | I183: 535 | J183: 737 | K183: 919 | L183: 1131 | M183: 750
C185: KORALUX RONDO CLASSIC | H185: KORALUX RONDO CLASSIC - M
B186: Délka L | C186: Výška H [mm] | H186: Výška H [mm] | M186: Délka L
B187: [mm] | C187: 700 | D187: 900 | E187: 1220 | F187: 1500 | G187: 1820 | H187: 700 | I187: 900 | J187: 1220 | K187: 1500 | L187: 1820 | M187: [mm]
B188: 450 | C188: 1.2309 | D188: 1.2392 | E188: 1.2524 | F188: 1.2514 | G188: 1.2503 | H188: 1.2309 | I188: 1.2392 | J188: 1.2524 | K188: 1.2514 | L188: 1.2503 | M188: 450
B189: 500 | C189: 1.2293 | D189: 1.2374 | E189: 1.2505 | F189: 1.2501 | G189: 1.2496 | H189: 1.2293 | I189: 1.2374 | J189: 1.2505 | K189: 1.2501 | L189: 1.2496 | M189: 500
B190: 600 | C190: 1.226 | D190: 1.234 | E190: 1.2468 | F190: 1.2474 | G190: 1.2481 | H190: 1.226 | I190: 1.234 | J190: 1.2468 | K190: 1.2474 | L190: 1.2481 | M190: 600
B191: 750 | C191: 1.2211 | D191: 1.2288 | E191: 1.2412 | F191: 1.2433 | G191: 1.2458 | H191: 1.2211 | I191: 1.2288 | J191: 1.2412 | K191: 1.2433 | L191: 1.2458 | M191: 750
A195: NF
C197: KORALUX LINEAR CLASSIC | H197: KORALUX LINEAR CLASSIC - M
B198: Délka L | C198: Výška H [mm] | H198: Výška H [mm] | M198: Délka L
B199: [mm] | C199: 700 | D199: 900 | E199: 1220 | F199: 1500 | G199: 1820 | H199: 700 | I199: 900 | J199: 1220 | K199: 1500 | L199: 1820 | M199: [mm]
B200: 450 | C200: 255 | D200: 333 | E200: 462 | F200: 581 | G200: 725 | H200: 255 | I200: 333 | J200: 462 | K200: 581 | L200: 725 | M200: 450
B201: 500 | C201: 280 | D201: 365 | E201: 507 | F201: 638 | G201: 795 | H201: 280 | I201: 365 | J201: 507 | K201: 638 | L201: 795 | M201: 500
B202: 600 | C202: 329 | D202: 429 | E202: 596 | F202: 750 | G202: 934 | H202: 329 | I202: 429 | J202: 596 | K202: 750 | L202: 934 | M202: 600
B203: 750 | C203: 400 | D203: 522 | E203: 726 | F203: 913 | G203: 1138 | H203: 400 | I203: 522 | J203: 726 | K203: 913 | L203: 1138 | M203: 750
C205: KORALUX LINEAR CLASSIC | H205: KORALUX LINEAR CLASSIC - M
B206: Délka L | C206: Výška H [mm] | H206: Výška H [mm] | M206: Délka L
B207: [mm] | C207: 700 | D207: 900 | E207: 1220 | F207: 1500 | G207: 1820 | H207: 700 | I207: 900 | J207: 1220 | K207: 1500 | L207: 1820 | M207: [mm]
B208: 450 | C208: 1.2226 | D208: 1.2358 | E208: 1.2568 | F208: 1.2521 | G208: 1.2421 | H208: 1.2226 | I208: 1.2358 | J208: 1.2568 | K208: 1.2521 | L208: 1.2421 | M208: 450
B209: 500 | C209: 1.2226 | D209: 1.2347 | E209: 1.254 | F209: 1.2483 | G209: 1.2393 | H209: 1.2226 | I209: 1.2347 | J209: 1.254 | K209: 1.2483 | L209: 1.2393 | M209: 500
B210: 600 | C210: 1.2225 | D210: 1.2325 | E210: 1.2484 | F210: 1.2408 | G210: 1.2337 | H210: 1.2225 | I210: 1.2325 | J210: 1.2484 | K210: 1.2408 | L210: 1.2337 | M210: 600
B211: 750 | C211: 1.2224 | D211: 1.2292 | E211: 1.24 | F211: 1.2294 | G211: 1.2252 | H211: 1.2224 | I211: 1.2292 | J211: 1.24 | K211: 1.2294 | L211: 1.2252 | M211: 750
C213: KORALUX RONDO CLASSIC | H213: KORALUX RONDO CLASSIC - M
B214: Délka L | C214: Výška H [mm] | H214: Výška H [mm] | M214: Délka L
B215: [mm] | C215: 700 | D215: 900 | E215: 1220 | F215: 1500 | G215: 1820 | H215: 700 | I215: 900 | J215: 1220 | K215: 1500 | L215: 1820 | M215: [mm]
B216: 450 | C216: 255 | D216: 333 | E216: 462 | F216: 581 | G216: 725 | H216: 255 | I216: 333 | J216: 462 | K216: 581 | L216: 725 | M216: 450
B217: 500 | C217: 280 | D217: 365 | E217: 507 | F217: 638 | G217: 795 | H217: 280 | I217: 365 | J217: 507 | K217: 638 | L217: 795 | M217: 500
B218: 600 | C218: 329 | D218: 429 | E218: 596 | F218: 750 | G218: 934 | H218: 329 | I218: 429 | J218: 596 | K218: 750 | L218: 934 | M218: 600
B219: 750 | C219: 400 | D219: 522 | E219: 726 | F219: 913 | G219: 1138 | H219: 400 | I219: 522 | J219: 726 | K219: 913 | L219: 1138 | M219: 750
C221: KORALUX RONDO CLASSIC | H221: KORALUX RONDO CLASSIC - M
B222: Délka L | C222: Výška H [mm] | H222: Výška H [mm] | M222: Délka L
B223: [mm] | C223: 700 | D223: 900 | E223: 1220 | F223: 1500 | G223: 1820 | H223: 700 | I223: 900 | J223: 1220 | K223: 1500 | L223: 1820 | M223: [mm]
B224: 450 | C224: 1.2226 | D224: 1.2358 | E224: 1.2568 | F224: 1.2521 | G224: 1.2421 | H224: 1.2226 | I224: 1.2358 | J224: 1.2568 | K224: 1.2521 | L224: 1.2421 | M224: 450
B225: 500 | C225: 1.2226 | D225: 1.2347 | E225: 1.254 | F225: 1.2483 | G225: 1.2393 | H225: 1.2226 | I225: 1.2347 | J225: 1.254 | K225: 1.2483 | L225: 1.2393 | M225: 500
B226: 600 | C226: 1.2225 | D226: 1.2325 | E226: 1.2484 | F226: 1.2408 | G226: 1.2337 | H226: 1.2225 | I226: 1.2325 | J226: 1.2484 | K226: 1.2408 | L226: 1.2337 | M226: 600
B227: 750 | C227: 1.2224 | D227: 1.2292 | E227: 1.24 | F227: 1.2294 | G227: 1.2252 | H227: 1.2224 | I227: 1.2292 | J227: 1.24 | K227: 1.2294 | L227: 1.2252 | M227: 750

Sheet logic (hidden)
A1: Koralux_2024*
G2: Popisky - úvodní strana | U2: lblZpusobPripojeniPopis
A3: Délka od | G3: 1 | H3: =G3+1 -> 2 | I3: =H3+1 -> 3 | J3: 4 | K3: 5 | L3: 6 | M3: 7 | N3: 8 | O3: 9 | P3: 10 | Q3: 11 | R3: 12 | S3: 13 | T3: 14 | U3: 15 | V3: 16 | W3: =V3+1 -> 17 | X3: =W3+1 -> 18 | Y3: 19 | Z3: =Y3+1 -> 20 | AA3: =Z3+1 -> 21 | AB3: =AA3+1 -> 22 | AC3: =AB3+1 -> 23 | AD3: =AC3+1 -> 24 | AE3: =AD3+1 -> 25 | AF3: =AE3+1 -> 26 | AG3: =AF3+1 -> 27
A4: 1 | B4: =VLOOKUP(A4,A5:B11,2,FALSE) -> wszystko | G4: 6 | H4: =VLOOKUP($G4,$G5:H16,H3,FALSE) -> Polski | I4: =VLOOKUP($G4,$G5:I16,I3) -> wszystko | J4: =VLOOKUP($G4,$G5:J16,J3) -> Wydajność cieplna wedlug EN 442 | K4: =VLOOKUP($G4,$G5:K16,K3) -> Wysokość | L4: =VLOOKUP($G4,$G5:L16,L3) -> Długość | M4: =VLOOKUP($G4,$G5:M16,M3) -> od | N4: =VLOOKUP($G4,$G5:N16,N3) -> do | O4: =VLOOKUP($G4,$G5:O16,O3) -> Wydajność cieplna | P4: =VLOOKUP($G4,$G5:P16,P3) -> Temperatura: | Q4: =VLOOKUP($G4,$G5:Q16,Q3) -> Błędny spadek cieplny !!! | R4: =VLOOKUP($G4,$G5:R16,R3) -> Wybór detaliczny | S4: =VLOOKUP($G4,$G5:S16,S3) -> Zadanie wartości | T4: =VLOOKUP($G4,$G5:T16,T3) -> Błędne zadanie wartości !!! | U4: =VLOOKUP($G4,$G5:U16,U3) -> Sposób podłączenia | V4: =VLOOKUP($G4,$G5:V16,V3) -> Zmiany techniczne zastrzeżone. | W4: =VLOOKUP($G4,$G5:W16,W3) -> Wprowadzene moce są platne tylko dla kraje: | X4: =VLOOKUP($G4,$G5:X16,X3) -> France | Y4: =VLOOKUP($G4,$G5:Y16,Y3) -> Unité de chaleur: | Z4: =VLOOKUP($G4,$G5:Z16,Z3) -> dolne z dołu w dół | AA4: =VLOOKUP($G4,$G5:AA16,AA3) -> dwustronne z góry na dół | AB4: =VLOOKUP($G4,$G5:AB16,AB3) -> Wykonanie | AC4: =VLOOKUP($G4,$G5:AC16,AC3) -> Wykończenie powierzchni | AD4: =VLOOKUP($G4,$G5:AD16,AD3) -> FARBA | AE4: =VLOOKUP($G4,$G5:AE16,AE3) -> CHROM | AF4: =VLOOKUP($G4,$G5:AF18,AF3) -> System metryczny | AG4: =VLOOKUP($G4,$G5:AG18,AG3) -> System imperialny
A5: 1 | B5: =$I$4 -> wszystko | C5: vše | G5: 1 | H5: Česky | I5: vše | J5: Tepelné výkony podle EN 442 | K5: Výška | L5: Délka | M5: od | N5: do | O5: Tepelný výkon | P5: Teplota: | Q5: Chybný teplotní spád !!! | R5: Detailní výběr | S5: Zadání hodnot | T5: Chybně zadané hodnoty !!! | U5: Způsob připojení | V5: Technické změny vyhrazeny. | W5: Uvedené výkony jsou platné pouze pro zemi: | X5: Česká republika | Y5: Jednotka výkonu: | Z5: spodní zdola dolů | AA5: úhlopříčné shora | AB5: Provedení | AC5: Povrchová úprava | AD5: BARVA | AE5: CHROM | AF5: Metrický systém | AG5: Imperiální systém
A6: 2 | B6: =IF($K$64=2,C6/$M$64,C6) -> 400 | C6: 400 | G6: 2 | H6: English | I6: all | J6: Heat outputs according to EN 442 | K6: Height | L6: Length | M6: from | N6: up to | O6: Heat output | P6: Temperature: | Q6: Wrong temperature gradient !!! | R6: Detailed selection | S6: Select conditions | T6: Wrong values input !!! | U6: Type of connection | V6: Technical changes reserved. | W6: The quoted outputs are valid only for the country: | X6: UK, USA | Y6: Heat unit: | Z6: bottom connection | AA6: double-sided from the top down | AB6: Version | AC6: Surface finish | AD6: Coating | AE6: CHROME | AF6: Metric system | AG6: Imperial system
A7: 3 | B7: =IF($K$64=2,C7/$M$64,C7) -> 450 | C7: 450 | G7: 3 | H7: Français | I7: tout | J7: Puissances thermiques selon EN 442 | K7: Hauteur | L7: Longueur | M7: de | N7: à | O7: Puissance thermique | P7: Température: | Q7: Fausse cadence de température | R7: Choix en détail | S7: Introduction des valeurs | T7: Valeurs mal introduites | U7: Mode de raccordement | V7: Tous droits de modification technique réservés. | W7: Puissance dénommées sont valables pour le pays : | X7: Deutschland, Österreich | Y7: Unité de puissance : | Z7: inférieur, du bes vers le bas | AA7: bilatéral de haut | AB7: Réalisation | AC7: Traitement de la surface | AD7: COULEUR | AE7: CHROME | AF7: Le système métrique | AG7: Le système impérial
A8: 4 | B8: =IF($K$64=2,C8/$M$64,C8) -> 500 | C8: 500 | G8: 4 | H8: Deutsch | I8: alles | J8: Wärmeleistungen nach EN 442 | K8: Bauhöhe | L8: Baulänge | M8: von | N8: bis | O8: Wärmeleistungen | P8: Temperatur: | Q8: Falscher Temperaturgradient | R8: Detailauswahl | S8: Auswahlkriterien | T8: Falsche Dateneingabe !!! | U8: Anschlussart an das Heizsystem | V8: Technische Änderungen vorbehalten. | W8: Die angegebenen Leistungen sind gültig nur für das Land: | X8: Россия | Y8: Тепловая единица: | Z8: unten zweiseitig | AA8: beidseitig von oben nach unten | AB8: Ausführung | AC8: Oberflächenbehandlung | AD8: BESCHICHTUNG | AE8: CHROM | AF8: Metrisches System | AG8: Imperiales System
A9: 5 | B9: =IF($K$64=2,C9/$M$64,C9) -> 600 | C9: 600 | G9: 5 | H9: Русский | I9: всё | J9: Тепловые мощности согл. EN 442 | K9: Высота | L9: Длина | M9: от | N9: до | O9: Тепловая мощность | P9: Температура | Q9: Неправильный перепад температуры | R9: Тип радиатора | S9: Параметры | T9: Неправильно заданые значения!!! | U9: Способ подключения | V9: Призводитель оставляет за собой право на изменения. | W9: Данные действительны только для | X9: Polska | Y9: Jednostka ciepła: | Z9: нижнее снизу вниз | AA9: двустороннее сверху вниз | AB9: Исполнение | AC9: Oтделка поверности | AD9: КРАСКА | AE9: ХРОМ | AF9: Метрическая система | AG9: Имперская система
A10: 6 | B10: =IF($K$64=2,C10/$M$64,C10) -> 750 | C10: 750 | G10: 6 | H10: Polski | I10: wszystko | J10: Wydajność cieplna wedlug EN 442 | K10: Wysokość | L10: Długość | M10: od | N10: do | O10: Wydajność cieplna | P10: Temperatura: | Q10: Błędny spadek cieplny !!! | R10: Wybór detaliczny | S10: Zadanie wartości | T10: Błędne zadanie wartości !!! | U10: Sposób podłączenia | V10: Zmiany techniczne zastrzeżone. | W10: Wprowadzene moce są platne tylko dla kraje: | X10: France | Y10: Unité de chaleur: | Z10: dolne z dołu w dół | AA10: dwustronne z góry na dół | AB10: Wykonanie | AC10: Wykończenie powierzchni | AD10: FARBA | AE10: CHROM | AF10: System metryczny | AG10: System imperialny
A11: 7 | G11: 7 | H11: Magyar | I11: mind | J11: Hőteljesítmény az EN 442 szerint | K11: Magasság | L11: Hossz | M11: –től | N11: –ig | O11: Hőteljesítmény | P11: Hőmérséklet: | Q11: Hibás hőmérséklet csökkenés !!! | R11: Részletes kiválasztás | S11: Értékek megadása | T11: Hibásan megadott értékek !!! | U11: Csatlakozási mód | V11: Műszaki adatok megváltoztatásának joga fenntartva. | W11: A feltüntetett teljesítmények csak a következő országra érvényesek: | X11: Magyarország | Y11: Hőegység: | Z11: alsó alsó lefelé | AA11: átlósan felülről | AB11: Végrehajtás | AC11: Felületkezelés | AD11: SZÍN | AE11: CHROME | AF11: Metrikus rendszer | AG11: Birodalmi rendszer
G12: 8 | H12: Svenska | I12: alla | J12: Värmeavgivning enligt EN 442 | K12: Höjd | L12: Längd | M12: från | N12: till | O12: Värmeavgivning | P12: Temperatur: | Q12: Fel temperaturfall !!! | R12: Detaljerat urval | S12: välj temperaturfall | T12: Fel värde inskrivet !!! | U12: Typ av anslutning | V12: Med reservation för tekniska förändringar. | W12: Nämnda effekter är giltiga endast i landet: | X12: Sverige | Y12: Värme enhet: | Z12: Anslutning botten | AA12: Dubbelsidig från topp och ner | AB12: Version | AC12: Ytfinish | AD12: FÄRGe | AE12: Krom | AF12: Metriska systemet | AG12: Imperiala systemet
A13: Délka do | G13: 9 | H13: Română | I13: toate | J13: Puteri termice conform EN442 | K13: Înălţime | L13: Lungime | M13: de la | N13: până la | O13: Putere termică | P13: Temperatură: | Q13: Gradient de temperatură greşit !!! | R13: Căutare avansată | S13: Selectaţi condiţiile | T13: Parametrii greşiţi de intrare | U13: Metoda conexiunii | V13: Producătorul îşi rezervă dreptul de a efectua modificări tehnice | W13: Puterile termice menţionate sunt valabile pentru: | X13: România | Y13: Unitatea de putere: | Z13: de jos în jos | AA13: diagonala de sus | AB13: Versiune | AC13: Finisajul suprafeţei | AD13: CULOARE | AE13: CROMAT | AF13: Sistem metric | AG13: Sistem imperial
A14: 1 | B14: =VLOOKUP(A14,A15:B21,2,FALSE) -> wszystko | G14: 10 | H14: Български | I14: всички | J14: Топлинни мощности според ЕН 442 | K14: Височина | L14: Дължина | M14: от | N14: до | O14: Топлинна мощност | P14: Температура: | Q14: Грешно температурно спадане !!! | R14: Детайлен избор | S14: Въвеждане на стойности | T14: Грешно въведени стойности !!! | U14: Начин на свързване | V14: Право на технически промени. | W14: Посочените мощности са валидни само за държава: | X14: България | Y14: Мярна единица за мощност: | Z14: долно отдолу долу | AA14: двустранно отгоре долу | AB14: Изпълнение | AC14: Повърхностно покритие | AD14: ЦВЯТ | AE14: ХРОМ | AF14: Метрична система | AG14: Имперска система
A15: 1 | B15: =$I$4 -> wszystko | C15: vše | G15: 11 | H15: Nederlands | I15: alles | J15: Warmteafgiftes volgens EN 442 | K15: Hoogte | L15: Lengte | M15: van | N15: tot | O15: Warmteafgifte | P15: Temperatuur: | Q15: Verkeerde temperatuur verhouding !!! | R15: Gedetailleerde selectie | S15: Ingeven van waarden | T15: Waarden foutief ingegeven !!! | U15: Type aansluiting | V15: Het recht blijft behouden op technische wijzigingen. | W15: De weergegeven vermogens zijn geldig in volgende landen: | X15: België / Nederland | Y15: Eenheid van vermogen: | Z15: onderaansluiting | AA15: dubbelzijdig van bovenaan | AB15: Versie | AC15: Afwerkingslaag | AD15: KLEUR | AE15: CHROOM | AF15: Metrisch systeem | AG15: Imperiaal systeem
A16: 2 | B16: =IF($K$64=2,C16/$M$64,C16) -> 400 | C16: 400 | G16: 12 | H16: Norsk | I16: alle | J16: Effekt avgivelse iht EN442 | K16: Høyde | L16: Lengde | M16: fra | N16: til | O16: Effekt avgivelse | P16: Temperatur : | Q16: Feil temperatur fall !!! | R16: Detaljert valg | S16: velg temperaturfall | T16: Feil verdi innskrevet !!! | U16: Type anslutning | V16: Med reservasjon for tekniske endringer. | W16: Nevnte effekter er gyldig bare i Norge. | X16: Norge | Y16: Varme enhet: | Z16: Anslutning fra bunnen | AA16: Dobbelsidig fra topp og ned | AB16: versjon | AC16: Overflatebehandling | AD16: FARGE | AE16: Krom | AF16: Metrisk system | AG16: Imperialistisk system
A17: 3 | B17: =IF($K$64=2,C17/$M$64,C17) -> 450 | C17: 450
A18: 4 | B18: =IF($K$64=2,C18/$M$64,C18) -> 500 | C18: 500
A19: 5 | B19: =IF($K$64=2,C19/$M$64,C19) -> 600 | C19: 600
A20: 6 | B20: =IF($K$64=2,C20/$M$64,C20) -> 750 | C20: 750
A21: 7
G22: Popisky - databáze | I22: lblPridatdoDB | K22: cmdOK | M22: lblZobrazitDatabazi | N22: lblZpet | O22: lblExportDatabaze
A23: Výška od | G23: =G3 -> 1 | H23: =G23+1 -> 2 | I23: =H23+1 -> 3 | J23: 4 | K23: 5 | L23: 6 | M23: 7 | N23: 8 | O23: 9 | P23: 10 | Q23: 11 | R23: 12 | S23: 13 | T23: 14 | U23: 15 | V23: 16 | W23: =V23+1 -> 17 | X23: =W23+1 -> 18 | Y23: =X23+1 -> 19 | Z23: =Y23+1 -> 20 | AA23: =Z23+1 -> 21 | AB23: =AA23+1 -> 22 | AC23: =AB23+1 -> 23 | AD23: =AC23+1 -> 24 | AE23: =AD23+1 -> 25 | AF23: =AE23+1 -> 26 | AG23: =AF23+1 -> 27 | AH23: =AG23+1 -> 28
A24: 1 | B24: =VLOOKUP(A24,A25:B31,2,FALSE) -> wszystko | G24: =$G$4 -> 6 | H24: =VLOOKUP($G24,$G25:H38,H23) -> Polski | I24: =VLOOKUP($G24,$G25:I38,I23) -> Dołożyć do wykazu | J24: =VLOOKUP($G24,$G25:J38,J23) -> Mam faktycznie stuszować wykaz?? | K24: =VLOOKUP($G24,$G25:K38,K23) -> OK | L24: =VLOOKUP($G24,$G25:L38,L23) -> Liczba zapisów w wykazie: | M24: =VLOOKUP($G24,$G25:M38,M23) -> Wyobrazić wykaz | N24: =VLOOKUP($G24,$G25:N38,N23) -> Z powrotem na wybór | O24: =VLOOKUP($G24,$G25:O38,O23) -> Eksport wykazu | P24: =VLOOKUP($G24,$G25:P38,P23) -> Cena (PLN) | Q24: =VLOOKUP($G24,$G25:Q38,Q23) -> Num | R24: =VLOOKUP($G24,$G25:R38,R23) -> Model | S24: =VLOOKUP($G24,$G25:S38,S23) -> Numer zamówienia | T24: =VLOOKUP($G24,$G25:T38,T23) -> Typ | U24: =VLOOKUP($G24,$G25:U38,U23)&" ["&$O$64&"]" -> Wysokość [mm] [mm] | V24: =VLOOKUP($G24,$G25:V38,V23)&" ["&$O$64&"]" -> Długość [mm] [mm] | W24: =VLOOKUP($G24,$G25:W38,W23) -> t1 | X24: =VLOOKUP($G24,$G25:X38,X23) -> t2 | Y24: =VLOOKUP($G24,$G25:Y38,Y23) -> ti | Z24: =VLOOKUP($G24,$G25:Z38,Z23) -> Wydajność cieplna | AA24: =VLOOKUP($G24,$G25:AA38,AA23) -> Notatka | AB24: =VLOOKUP($G24,$G25:AB38,AB23) -> Identyfikacja: | AC24: =VLOOKUP($G24,$G25:AC38,AC23) -> Wybrany zakres nie zawiera prawiedlowe dane!!! | AD24: =VLOOKUP($G24,$G25:AD38,AD23) -> OK | AE24: =VLOOKUP($G24,$G25:AE39,AE23) -> 0 | AF24: =VLOOKUP($G24,$G25:AF39,AF23) -> 0 | AG24: =VLOOKUP($G24,$G25:AG39,AG23) -> 0 | AH24: =VLOOKUP($G24,$G25:AH39,AH23) -> 0
A25: 1 | B25: =$I$4 -> wszystko | C25: vše | G25: 1 | H25: Česky | I25: Přidat do databáze | J25: Mám opravdu smazat databázi? | K25: OK | L25: Počet záznamů v databázi: | M25: Zobrazit databázi | N25: Zpět na výběr | O25: Export databáze | P25: Cena (Kč) | Q25: Číslo | R25: Model | S25: Objednací číslo | T25: Typ | U25: Výška [mm] | V25: Délka [mm] | W25: t1 | X25: t2 | Y25: ti | Z25: Tepelný výkon | AA25: Poznámka | AB25: Identifikace: | AC25: Vybraná oblast neobsahuje správná data!!! | AD25: OK
A26: 2 | B26: =IF($K$64=2,C26/$M$64,C26) -> 700 | C26: 700 | G26: 2 | H26: English | I26: Add into database | J26: Shall the database really be deleted? | K26: OK | L26: No. of articles in database: | M26: Display the database | N26: Back to menu | O26: Database export | P26: Price (€) | Q26: No. | R26: Model | S26: Order No. | T26: TYPE | U26: Height [mm] | V26: Length [mm] | W26: t1 | X26: t2 | Y26: ti | Z26: Heat output | AA26: Note | AB26: Identification: | AC26: Selected area does not content right data !!! | AD26: OK
A27: 3 | B27: =IF($K$64=2,C27/$M$64,C27) -> 900 | C27: 900 | G27: 3 | H27: Français | I27: Ajouter dans la base de données | J27: Etes-vous sur d´annulation de la base de données? | K27: OK | L27: No. d´inscriptions dans la base de données: | M27: Montrer la base de données | N27: Retour au choix | O27: Export de la base de données | P27: Prix ( ) | Q27: No. | R27: Modèle | S27: No. De commande | T27: TYPE | U27: Hauteur [mm] | V27: Longueur [mm] | W27: t1 | X27: t2 | Y27: ti | Z27: Puissance thermique | AA27: Nota | AB27: Identification: | AC27: La zone marquée ne contient pas de données correctes!!! | AD27: OK
A28: 4 | B28: =IF($K$64=2,C28/$M$64,C28) -> 1220 | C28: 1220 | G28: 4 | H28: Deutsch | I28: In die Database hinzufügen | J28: Soll die Database wirklich gelöscht werden? | K28: OK | L28: Anzahl der Aufnahmen in der Database: | M28: Database abbilden | N28: Zurück zur Auswahl | O28: Database exportieren | P28: Preis (€) | Q28: No. | R28: Modell | S28: Bestellnummer | T28: TYP | U28: Bauhöhe [mm] | V28: Baulänge [mm] | W28: t1 | X28: t2 | Y28: ti | Z28: Wärmeleistungen | AA28: Bemerkung | AB28: Identifikation: | AC28: Ausgewählter Bereich beinhaltet nicht die richtigen Daten !!! | AD28: OK
A29: 5 | B29: =IF($K$64=2,C29/$M$64,C29) -> 1500 | C29: 1500 | G29: 5 | H29: Русский | I29: Добавить в базу данных | J29: Хотите сбросить базу данных? | K29: OK | L29: Количество записей в базе данный: | M29: Посмотреть базу данных | N29: Вернуться на выбор | O29: Перевод избранных типов | P29: Цена (€) | Q29: Номер | R29: Модель | S29: Код изделия | T29: Тип | U29: Высота [mm] | V29: Длина [mm] | W29: Т1 | X29: Т2 | Y29: ti | Z29: Тепловая мощность | AA29: Примечание | AB29: Идентификация: | AC29: В выбранной области имеется неправильная информация!!! | AD29: OK
A30: 6 | B30: =IF($K$64=2,C30/$M$64,C30) -> 1820 | C30: 1820 | G30: 6 | H30: Polski | I30: Dołożyć do wykazu | J30: Mam faktycznie stuszować wykaz?? | K30: OK | L30: Liczba zapisów w wykazie: | M30: Wyobrazić wykaz | N30: Z powrotem na wybór | O30: Eksport wykazu | P30: Cena (PLN) | Q30: Num | R30: Model | S30: Numer zamówienia | T30: Typ | U30: Wysokość [mm] | V30: Długość [mm] | W30: t1 | X30: t2 | Y30: ti | Z30: Wydajność cieplna | AA30: Notatka | AB30: Identyfikacja: | AC30: Wybrany zakres nie zawiera prawiedlowe dane!!! | AD30: OK
A31: 7 | G31: 7 | H31: Magyar | I31: Adatbázisba küldés | J31: Valóban törölni az adatbázist? | K31: OK | L31: Azt adatbázis tételeinek száma: | M31: Adatbázis megjelenítése | N31: Vissza a kiválasztáshoz | O31: Adatbázis exportja | P31: Ár ( ) | Q31: Sz. | R31: Modell | S31: Megrend. szám | T31: Típus | U31: Magasság [mm] | V31: Hosszúság [mm] | W31: t1 | X31: t2 | Y31: ti | Z31: Hőteljesítmény | AA31: Megjegyzés | AB31: Azonosító: | AC31: A kiválasztott terület nem tartalmaz valós adatokat !!! | AD31: OK
G32: 8 | H32: Svenska | I32: Lägg till i databasen | J32: Ska du verkligen tömma databasen? | K32: OK | L32: Antal artiklar i databasen: | M32: Visa databasen | N32: Tillbaka till meny | O32: Exportera värde | P32: Pris ( ) | Q32: Nr. | R32: Model | S32: Order Nr. | T32: TYP | U32: Höjd [mm] | V32: Längd [mm] | W32: t1 | X32: t2 | Y32: ti | Z32: Värmeavgivning | AA32: Notering | AB32: Identifikation: | AC32: Vald ruta inehåller inte rätt data !!! | AD32: OK
A33: Výška do | G33: 9 | H33: Română | I33: Adăugare la baza de date | J33: Sigur doriţi să ştergeţi baza de date? | K33: OK | L33: Nr. articolelor din baza de date | M33: Afişare bază de date | N33: Înapoi la meniu | O33: Exportare bază de date | P33: Preţ ( ) | Q33: Nr. | R33: Model. | S33: Comanda nr. | T33: Tip | U33: Înălţime [mm] | V33: Lungime [mm] | W33: t1 | X33: t2 | Y33: ti | Z33: Putere termică | AA33: Notă | AB33: Identificare: | AC33: Câmpul selectat nu conţine date corecte !! | AD33: OK
A34: 1 | B34: =VLOOKUP(A34,A35:B41,2,FALSE) -> wszystko | G34: 10 | H34: Български | I34: Допълни в базата данни | J34: Наистина ли да изтрия базата данни? | K34: OK | L34: Брой записвания в база данни: | M34: Покажи база данни | N34: Обратно към избор | O34: Експорт на база данни | P34: Цена ( ) | Q34: Номер | R34: Модел | S34: Номер за поръчка | T34: Тип | U34: Височина [mm] | V34: Дължина [mm] | W34: t1 | X34: t2 | Y34: ti | Z34: Топлинна мощност | AA34: Забележка | AB34: Идентификация: | AC34: Избраната област не съдържа правилни данни!!! | AD34: OK
A35: 1 | B35: =$I$4 -> wszystko | C35: vše | G35: 11 | H35: Nederlands | I35: Toevoegen in database | J35: Bent u zeker om de database te verwijderen ? | K35: OK | L35: Aantal artikelen in de database: | M35: Toon de database | N35: Terug naar menu | O35: Exporteer database | P35: Prijs ( ) | Q35: Nr. | R35: Model | S35: Bestelnummer | T35: Type | U35: Hoogte [mm] | V35: Lengte [mm] | W35: t1 | X35: t2 | Y35: ti | Z35: Warmteafgifte | AA35: Opmerking | AB35: Identificatie: | AC35: De selectie heeft geen correcte data !!! | AD35: OK
A36: 2 | B36: =IF($K$64=2,C36/$M$64,C36) -> 700 | C36: 700 | G36: 12 | H36: Norsk | I36: Legg til i databasen | J36: Ønsker virkelig du å tømme databasen ? | K36: OK | L36: Antal artikler i databasen | M36: Vis databasen | N36: Tilbake til menyen | O36: Eksporterte verdier | P36: Pris ( ) | Q36: Nr. | R36: Modell | S36: Ordre nr. | T36: Type | U36: Høyde [mm] | V36: Lengde [mm] | W36: t1 | X36: t2 | Y36: ti | Z36: Effekt avgivelse | AA36: Tekst | AB36: Identifikasjon : | AC36: Valgt celle inneholder feil data !!! | AD36: OK
A37: 3 | B37: =IF($K$64=2,C37/$M$64,C37) -> 900 | C37: 900 | G37: 13
A38: 4 | B38: =IF($K$64=2,C38/$M$64,C38) -> 1220 | C38: 1220 | G38: 14
A39: 5 | B39: =IF($K$64=2,C39/$M$64,C39) -> 1500 | C39: 1500
A40: 6 | B40: =IF($K$64=2,C40/$M$64,C40) -> 1820 | C40: 1820
A41: 7
C42: =logic!$L$4 -> Długość | G42: Přidávací a mazací formulář
I43: lblNadpis | K43: lblTypPopis | L43: lblVýškaPopis | M43: lblDélka Popis | N43: lblVýkonPopis | O43: lblKodArtikluPopis | P43: lblPoznamka | Q43: cmdZrusit | R43: cmdVlozit | S43: cmdNelze | T43: lblZapisProveden | U43: cmdVymazat | W43: lblVymaz | X43: lblVymazDatabaze
G44: =G23 -> 1 | H44: =G44+1 -> 2 | I44: =H44+1 -> 3 | J44: =I44+1 -> 4 | K44: =J44+1 -> 5 | L44: =K44+1 -> 6 | M44: =L44+1 -> 7 | N44: =M44+1 -> 8 | O44: =N44+1 -> 9 | P44: =O44+1 -> 10 | Q44: =P44+1 -> 11 | R44: =Q44+1 -> 12 | S44: =R44+1 -> 13 | T44: =S44+1 -> 14 | U44: =T44+1 -> 15 | V44: =U44+1 -> 16 | W44: =V44+1 -> 17 | X44: =W44+1 -> 18 | Y44: =X44+1 -> 19 | Z44: =Y44+1 -> 20 | AA44: =Z44+1 -> 21 | AB44: =AA44+1 -> 22
A45: =$K$64 -> 1 | B45: =VLOOKUP(A45,A46:B47,2,FALSE) -> W | C45: =VLOOKUP(A45,A46:C47,3,FALSE) -> W | D45: =VLOOKUP(A45,A46:D47,4,FALSE) -> 1 | E45: =VLOOKUP(B45,B46:E47,4,FALSE) -> [W] | G45: =$G$4 -> 6 | H45: =VLOOKUP($G45,$G46:H59,H44) -> Polski | I45: =VLOOKUP($G45,$G46:I59,I44) -> Dorzucanie pozycje do wykazu | J45: =VLOOKUP($G45,$G46:J59,J44) -> Model | K45: =VLOOKUP($G45,$G46:K59,K44) -> Typ | L45: =VLOOKUP($G45,$G46:L59,L44)&" ["&$O$64&"]" -> Wysokość [mm] [mm] | M45: =VLOOKUP($G45,$G46:M59,M44)&" ["&$O$64&"]" -> Długość [mm] [mm] | N45: =VLOOKUP($G45,$G46:N59,N44) -> Wydajność cieplna | O45: =VLOOKUP($G45,$G46:O59,O44) -> Numer zamówienia | P45: =VLOOKUP($G45,$G46:P59,P44) -> Notatka (maksymalnie 20 znaków) | Q45: =VLOOKUP($G45,$G46:Q59,Q44) -> Anulować | R45: =VLOOKUP($G45,$G46:R59,R44) -> Włożyć | S45: =VLOOKUP($G45,$G46:S59,S44) -> Formularz nie można w ten sposób zamknąć!!! | T45: =VLOOKUP($G45,$G46:T59,T44) -> Zapis dokonan z powodzeniem | U45: =VLOOKUP($G45,$G46:U59,U44) -> Wykreślać | V45: =VLOOKUP($G45,$G46:V59,V44) -> Wykaz | W45: =VLOOKUP($G45,$G46:W59,W44) -> Wykreślać pozycje z wykazu | X45: =VLOOKUP($G45,$G46:X59,X44) -> Wykreślić z wykazu | Y45: =VLOOKUP($G45,$G46:Y59,Y44) -> 0 | Z45: =VLOOKUP($G45,$G46:Z59,Z44) -> 0 | AA45: =VLOOKUP($G45,$G46:AA59,AA44) -> 0 | AB45: =VLOOKUP($G45,$G46:AB59,AB44) -> 0
A46: 1 | B46: W | C46: W | D46: 1 | E46: [W] | G46: 1 | H46: Česky | I46: Přidání položky do databáze | J46: Model | K46: Typ | L46: Výška [mm] | M46: Délka [mm] | N46: =O5 -> Tepelný výkon | O46: Objednací číslo | P46: Poznámka (maximum 20 znaků): | Q46: Zrušit | R46: Vložit | S46: Formulář nelze zavřít tímto způsobem !!! | T46: Zápis úspěšně proveden | U46: Vymazat | V46: Databáze | W46: Výmaz položky z databáze | X46: Výmaz databáze
A47: 2 | B47: BTU | C47: BTU | D47: 3.412 | E47: [BTU] | G47: 2 | H47: English | I47: Add item into the database | J47: Model | K47: Type | L47: Height [mm] | M47: Length [mm] | N47: Heat output | O47: Order No. | P47: Note (up to 20 characters) | Q47: Cancel | R47: Add | S47: The form cannot be closed in this way !!! | T47: Entry successfully processed | U47: Delete | V47: Database | W47: Delete an item from the database | X47: Database erase
G48: 3 | H48: Français | I48: Adjonction d´un article dans la base de données | J48: Modèle | K48: Type | L48: Hauteur [mm] | M48: Longueur [mm] | N48: Puissance thermique | O48: Indication de l´article | P48: Note (20 caractères au maximum) | Q48: Annuler | R48: Insérer | S48: Il n´est pas possible de fermer le formulaire de cette façon !!! | T48: Inscription réalisée avec succès | U48: Effacer | V48: Base de données | W48: Effacement d´un article | X48: Effacer la base de données
G49: 4 | H49: Deutsch | I49: Den Posten in die Database hinzufügen | J49: Modell | K49: Typ | L49: Bauhöhe [mm] | M49: Baulänge [mm] | N49: Wärmeleistungen | O49: Bestellnummer | P49: Bemerkung (max. 20 Zeichen) | Q49: Aufheben | R49: Einfügen | S49: Das Formular kann nicht auf diese Art geschlossen werden !!! | T49: Eingabe erfolgreich durchgeführt | U49: Löschen | V49: Database | W49: Den Posten aus der Database löschen | X49: Database löschen
A50: 1 | B50: =VLOOKUP(A50,A51:B52,2,FALSE) -> dolne z dołu w dół | G50: 5 | H50: Русский | I50: Добавить в базу данных | J50: Модель | K50: Тип | L50: Высота [mm] | M50: Длина [mm] | N50: Тепловая мощность | O50: Код изделия | P50: Примечание (макс 20 знаков) | Q50: Отменить | R50: Добавить | S50: Документ не возможно закрыть в таком формате!!! | T50: Запись успешно сделана | U50: Смазать | V50: База данных | W50: Исключение позиции из базы данных | X50: Сброс базы данных
A51: 1 | B51: =Z4 -> dolne z dołu w dół | G51: 6 | H51: Polski | I51: Dorzucanie pozycje do wykazu | J51: Model | K51: Typ | L51: Wysokość [mm] | M51: Długość [mm] | N51: Wydajność cieplna | O51: Numer zamówienia | P51: Notatka (maksymalnie 20 znaków) | Q51: Anulować | R51: Włożyć | S51: Formularz nie można w ten sposób zamknąć!!! | T51: Zapis dokonan z powodzeniem | U51: Wykreślać | V51: Wykaz | W51: Wykreślać pozycje z wykazu | X51: Wykreślić z wykazu
A52: 2 | B52: =AA4 -> dwustronne z góry na dół | G52: 7 | H52: Magyar | I52: Tétel hozzáadása az adatbázishoz | J52: Modell | K52: Típus | L52: Magasság [mm] | M52: Hosszúság [mm] | N52: Hőteljesítmény | O52: Megrendelési szám | P52: Megjegyzés (maximum 20 karakter): | Q52: Mégse | R52: Beszúr | S52: Így nem lehet bezárni a programot !!! | T52: A beírás sikeres volt | U52: Töröl | V52: Adatbázis | W52: Tétel törlése az adatbázisból | X52: Adatbázis törlése
G53: 8 | H53: Svenska | I53: Lägg objekt i databasen | J53: Model | K53: Typ | L53: Höjd [mm] | M53: Längd [mm] | N53: Värmeavgivning | O53: Order Nr. | P53: Notering (upp till 20 tecken) | Q53: Ångra | R53: Lägg till | S53: Formuläret kan inte stängas på detta sätt!!! | T53: Invärde korrekta | U53: Ta bort | V53: Databas | W53: Ta bort ett objekt från databas | X53: Radera data
G54: 9 | H54: Română | I54: Adăugare articol în baza de date | J54: Model | K54: Tip | L54: Înălţime [mm] | M54: Lungime [mm] | N54: =O13 -> Putere termică | O54: Comanda nr. | P54: Observaţii (până la 20 de caractere) | Q54: Anulare | R54: Adăugare | S54: Fereastra nu poate fi închisă în acest mod !!! | T54: Valorile de intrare au fost procesate cu succes | U54: Şterge | V54: Bază de date | W54: Ştergerea unui articol din baza de date | X54: Ştergere baza de date
G55: 10 | H55: Български | I55: Допълване на позиции в базата данни | J55: Модел | K55: Тип | L55: Височина [mm] | M55: Дължина [mm] | N55: =O14 -> Топлинна мощност | O55: Номер за поръчка | P55: Забележка (максимално 20 знака): | Q55: Анулирай | R55: Въведи | S55: Формулярът не може да се затвори по този начин !!! | T55: Успешно извършено записване | U55: Изтрий | V55: База данни | W55: Изтрий позиции в база данни | X55: Изтрий база данни
G56: 11 | H56: Nederlands | I56: Toevoegen van artikel in database | J56: Model | K56: Type | L56: Hoogte [mm] | M56: Lengte [mm] | N56: Warmteafgifte | O56: Bestelnummer | P56: Opmerking (maximum 20 karakters) | Q56: Annuleren | R56: Toevoegen | S56: Afsluiten van het document niet mogelijk !!! | T56: Ingave succesvol beëindigd | U56: Verwijder | V56: Database | W56: Verwijder een artikel uit de database | X56: Verwijder de database
A57: Číslování verzí | G57: 12 | H57: Norsk | I57: Legg produktet i databasen | J57: Modell | K57: Type | L57: Høyde [mm] | M57: Lengde [mm] | N57: Effekt avgivelse | O57: Ordre nr. | P57: Tekst (maks 20 tegn) | Q57: Angre | R57: Legg til | S57: Skjemaet kan ikke lukkes på denne måten!!! | T57: Inndata er korrekt | U57: Ta bort | V57: Database | W57: Ta bort en enhet fra databasen | X57: Slett inndata
A58: kód země | B58: číslo verze | D58: datum sort. | E58: makra | G58: 13
A59: CZ | B59: 1 | C59: 02 | D59: 01/2017 | E59: M | G59: 14
A61: AT | B61: 1 | C61: 01 | E61: M
A62: CZ | B62: 2 | C62: 02
A63: DE | B63: 3 | C63: 03
A64: PL | B64: 4 | C64: 04 | K64: 1 | L64: =VLOOKUP(K64,K65:L66,2,FALSE) -> System metryczny | M64: =VLOOKUP(K64,K65:M66,3,FALSE) -> 1 | N64: =VLOOKUP(L64,L65:N66,3,FALSE) -> Celsius | O64: =VLOOKUP(M64,M65:O66,3,FALSE) -> mm
A65: UA | B65: 5 | C65: 05 | K65: 1 | L65: =$AF$4 -> System metryczny | M65: 1 | N65: Celsius | O65: mm
A66: RU | C66: 06 | E66: =A59&" OTT "&B59&"."&C59&"-"&MID(D59,1,2)&"/"&MID(D59,6,2)&" "&E59 -> CZ OTT 1.02-01/17 M | K66: 2 | L66: =$AG$4 -> System imperialny | M66: 25.4 | N66: Fahrenheit | O66: inch
A67: HU | C67: 07
A68: SW | C68: 08
A69: RO | C69: 09
A70: CL | C70: 10
A74: KLMM | B74: =VLOOKUP(model_zdroj,A75:B90,2,FALSE) -> KORALUX LINEAR MAX - M | F74: KORALUX STANDARD | I74: =VLOOKUP(F74,F75:I89,4,FALSE) -> KSC
A75: KSC | B75: KORALUX STANDARD | F75: KORALUX STANDARD | I75: =A75 -> KSC
A76: KLC | B76: KORALUX LINEAR CLASSIC | F76: KORALUX LINEAR CLASSIC | I76: KLC
A77: KLCM | B77: KORALUX LINEAR CLASSIC - M | F77: KORALUX LINEAR CLASSIC - M | I77: KLCM
A78: KRC | B78: KORALUX RONDO CLASSIC | F78: KORALUX RONDO CLASSIC | I78: KRC
A79: KRCM | B79: KORALUX RONDO CLASSIC - M | F79: KORALUX RONDO CLASSIC - M | I79: KRCM
A80: KLT | B80: KORALUX LINEAR COMFORT | F80: KORALUX LINEAR COMFORT | I80: KLT
A81: KLTM | B81: KORALUX LINEAR COMFORT - M | F81: KORALUX LINEAR COMFORT - M | I81: KLTM
A82: KRT | B82: KORALUX RONDO COMFORT | F82: KORALUX RONDO COMFORT | I82: KRT
A83: KRTM | B83: KORALUX RONDO COMFORT - M | F83: KORALUX RONDO COMFORT - M | I83: KRTM
A84: KLM | B84: KORALUX LINEAR MAX | F84: KORALUX LINEAR MAX | I84: KLM
A85: KLMM | B85: KORALUX LINEAR MAX - M | F85: KORALUX LINEAR MAX - M | I85: KLMM
A86: KRM | B86: KORALUX RONDO MAX | F86: KORALUX RONDO MAX | I86: KRM
A87: KRMM | B87: KORALUX RONDO MAX - M | F87: KORALUX RONDO MAX - M | I87: KRMM
A88: KLXM | B88: KORALUX LINEAR EXCLUSIVE - M | F88: KORALUX LINEAR EXCLUSIVE - M | I88: KLXM
A89: KRXM | B89: KORALUX RONDO EXCLUSIVE - M | F89: KORALUX RONDO EXCLUSIVE - M | I89: KRXM
A90: KLN | B90: KORALUX NEO | F90: KORALUX NEO | I90: KLN
D97: VÝKONY
A98: 1 | B98: =VLOOKUP(A98,A99:B100,2,FALSE) -> LINEAR | D98: 2 | E98: =VLOOKUP(D98,D99:E100,2,FALSE) -> NF
A99: 1 | B99: LINEAR | D99: 1 | E99: České
A100: 2 | B100: RONDO | D100: 2 | E100: NF
A104: 1 | B104: =VLOOKUP(A104,A105:B106,2,FALSE) -> FARBA
A105: 1 | B105: =AD4 -> FARBA
A106: 2 | B106: =AE4 -> CHROM
